Workbook

Sheet CAMP PILOTO EVOL
A1: PARA DESTACAR UM PILOTO MARQUE/DESMARQUE COM UM "X" AO LADO DO NOME E CLIQUE NO BOTÃO. => | D1: OK | F1: OK | H1: OK | J1: OK | L1: OK | N1: OK | P1: OK | R1: OK | T1: OK | V1: OK | X1: OK | Z1: DIF. LIDER | AA1: DIF. 5º | AB1: DIF. PRÓXIMO | AC1: OK | AE1: DIF. LIDER | AF1: DIF. 5º | AG1: DIF. PRÓXIMO
D2: 1ª etapa | F2: 2ª etapa | H2: 3ª etapa | J2: 4ª etapa | L2: 5ª etapa | N2: 6ª etapa | P2: 7ª etapa | R2: 8ª etapa | T2: 9ª etapa | V2: 10ª etapa | X2: 11ª etapa | AC2: 12ª etapa
B4: Nome do (a) Piloto (a) | D4: PILOTO | E4: PONTOS | F4: PILOTO | G4: PONTOS | H4: PILOTO | I4: PONTOS | J4: PILOTO | K4: PONTOS | L4: PILOTO | M4: PONTOS | N4: PILOTO | O4: PONTOS | P4: PILOTO | Q4: PONTOS | R4: PILOTO | S4: PONTOS | T4: PILOTO | U4: PONTOS | V4: PILOTO | W4: PONTOS | X4: PILOTO | Y4: PONTOS | AC4: PILOTO | AD4: PONTOS
B5: Alan Moreira | C5: 1 | D5: Gui Figueiredo | E5: 45 | F5: Alexandre Melillo | G5: 68 | H5: Gui Figueiredo | I5: 83 | J5: Gui Figueiredo | K5: 91 | L5: Gui Figueiredo | M5: 129 | N5: Gui Figueiredo | O5: 167 | P5: Gui Figueiredo | Q5: 195 | R5: Fernando Mota | S5: 213 | T5: Christian Guedes | U5: 252 | V5: Christian Guedes | W5: 282 | X5: Christian Guedes | Y5: 323 | Z5: - | AA5: - | AB5: - | AC5: Christian Guedes | AD5: 364 | AE5: - | AF5: - | AG5: -
A6: X | B6: Alexandre Melillo | C6: 2 | D6: Alexandre Melillo | E6: 42 | F6: Lucio Chequer | G6: 68 | H6: Bruno Nosse | I6: 74 | J6: Alexandre Melillo | K6: 78 | L6: Christian Guedes | M6: 116 | N6: Fernando Mota | O6: 157 | P6: Bruno Nosse | Q6: 181 | R6: Christian Guedes | S6: 211 | T6: Fernando Mota | U6: 251 | V6: Fernando Mota | W6: 279 | X6: Gui Figueiredo | Y6: 318 | Z6: =Y$5-Y6 -> 5 | AA6: - | AB6: =Y5-Y6 -> 5 | AC6: Gui Figueiredo | AD6: 356 | AE6: =AD$5-AD6 -> 8 | AF6: - | AG6: =AD5-AD6 -> 8
B7: Anderson Teixeira | C7: 3 | D7: Ricardo Amaral | E7: 38 | F7: Matheus Azevedo | G7: 65 | H7: Alexandre Melillo | I7: 72 | J7: Bruno Nosse | K7: 76 | L7: Fernando Mota | M7: 111 | N7: Alexandre Melillo | O7: 144 | P7: Fernando Mota | Q7: 177 | R7: Bruno Nosse | S7: 205 | T7: Alexandre Melillo | U7: 245 | V7: Gui Figueiredo | W7: 272 | X7: Fernando Mota | Y7: 313 | Z7: =Y$5-Y7 -> 10 | AA7: - | AB7: =Y6-Y7 -> 5 | AC7: Fernando Mota | AD7: 339 | AE7: =AD$5-AD7 -> 25 | AF7: - | AG7: =AD6-AD7 -> 17
B8: Aparecido Arantes | C8: 4 | D8: Matheus Azevedo | E8: 36 | F8: Wesley Canuto | G8: 63 | H8: Guilherme Alves | I8: 71 | J8: Christian Guedes | K8: 75 | L8: Alexandre Melillo | M8: 108 | N8: Guilherme Alves | O8: 141 | P8: Christian Guedes | Q8: 170 | R8: Guilherme Alves | S8: 203 | T8: Jarbas Reis | U8: 233 | V8: Alexandre Melillo | W8: 271 | X8: Alexandre Melillo | Y8: 309 | Z8: =Y$5-Y8 -> 14 | AA8: - | AB8: =Y7-Y8 -> 4 | AC8: Alexandre Melillo | AD8: 331 | AE8: =AD$5-AD8 -> 33 | AF8: - | AG8: =AD7-AD8 -> 8
B9: Bernardo Gatti | C9: 5 | D9: Diego Rodrigues | E9: 34 | F9: Jarbas Reis | G9: 62 | H9: Lucio Chequer | I9: 68 | J9: Guilherme Alves | K9: 71 | L9: Bruno Nosse | M9: 108 | N9: Bruno Nosse | O9: 136 | P9: Alexandre Melillo | Q9: 170 | R9: Alexandre Melillo | S9: 200 | T9: Gui Figueiredo | U9: 231 | V9: Bruno Nosse | W9: 261 | X9: Jarbas Reis | Y9: 293 | Z9: =Y$5-Y9 -> 30 | AA9: - | AB9: =Y8-Y9 -> 16 | AC9: Jarbas Reis | AD9: 306 | AE9: =AD$5-AD9 -> 58 | AF9: - | AG9: =AD8-AD9 -> 25
B10: Bruno Nosse | C10: 6 | D10: Bruno Nosse | E10: 32 | F10: Bruno Nosse | G10: 56 | H10: Wesley Canuto | I10: 67 | J10: Wesley Canuto | K10: 69 | L10: Guilherme Alves | M10: 107 | N10: Christian Guedes | O10: 134 | P10: Anderson Teixeira | Q10: 166 | R10: Jarbas Reis | S10: 198 | T10: Bruno Nosse | U10: 223 | V10: Jarbas Reis | W10: 257 | X10: Bruno Nosse | Y10: 287 | Z10: =Y$5-Y10 -> 36 | AA10: =Y$9-Y10 -> 6 | AB10: =Y9-Y10 -> 6 | AC10: Bruno Nosse | AD10: 300 | AE10: =AD$5-AD10 -> 64 | AF10: =AD$9-AD10 -> 6 | AG10: =AD9-AD10 -> 6
B11: Felipe Bouhid | C11: 7 | D11: Lucio Chequer | E11: 30 | F11: Ricardo Amaral | G11: 51 | H11: Jarbas Reis | I11: 62 | J11: Lucio Chequer | K11: 68 | L11: Jarbas Reis | M11: 100 | N11: Gui Figueiredo | O11: 167 | P11: Guilherme Alves | Q11: 165 | R11: Gui Figueiredo | S11: 195 | T11: Wesley Canuto | U11: 217 | V11: Wesley Canuto | W11: 249 | X11: Wesley Canuto | Y11: 271 | Z11: =Y$5-Y11 -> 52 | AA11: =Y$9-Y11 -> 22 | AB11: =Y10-Y11 -> 16 | AC11: Wesley Canuto | AD11: 291 | AE11: =AD$5-AD11 -> 73 | AF11: =AD$9-AD11 -> 15 | AG11: =AD10-AD11 -> 9
B12: Celso Dantas | C12: 8 | D12: Frederico Papatella | E12: 28 | F12: Felipe Bouhid | G12: 50 | H12: Anderson Teixeira | I12: 56 | J12: Fernando Mota | K12: 66 | L12: Wesley Canuto | M12: 95 | N12: Fernando Mota | O12: 157 | P12: Wesley Canuto | Q12: 159 | R12: Wesley Canuto | S12: 187 | T12: Guilherme Alves | U12: 204 | V12: Guilherme Alves | W12: 239 | X12: Anderson Teixeira | Y12: 252 | Z12: =Y$5-Y12 -> 71 | AA12: =Y$9-Y12 -> 41 | AB12: =Y11-Y12 -> 19 | AC12: Guilherme Alves | AD12: 287 | AE12: =AD$5-AD12 -> 77 | AF12: =AD$9-AD12 -> 19 | AG12: =AD11-AD12 -> 4
A13: X | B13: Christian Guedes | C13: 9 | D13: Guilherme Alves | E13: 26 | F13: Diego Rodrigues | G13: 48 | H13: Felipe Bouhid | I13: 50 | J13: Jarbas Reis | K13: 62 | L13: Anderson Teixeira | M13: 84 | N13: Alexandre Melillo | O13: 144 | P13: Jarbas Reis | Q13: 152 | R13: Anderson Teixeira | S13: 176 | T13: Anderson Teixeira | U13: 200 | V13: Anderson Teixeira | W13: 220 | X13: Guilherme Alves | Y13: 242 | Z13: =Y$5-Y13 -> 81 | AA13: =Y$9-Y13 -> 51 | AB13: =Y12-Y13 -> 10 | AC13: Anderson Teixeira | AD13: 277 | AE13: =AD$5-AD13 -> 87 | AF13: =AD$9-AD13 -> 29 | AG13: =AD12-AD13 -> 10
B14: Diego Rodrigues | C14: 10 | D14: Raphael Reis | E14: 24 | F14: Gui Figueiredo | G14: 45 | H14: Christian Guedes | I14: 49 | J14: Anderson Teixeira | K14: 60 | L14: Lucio Chequer | M14: 79 | N14: Guilherme Alves | O14: 141 | P14: Matheus Azevedo | Q14: 138 | R14: Matheus Azevedo | S14: 162 | T14: Lucio Chequer | U14: 167 | V14: Jean Paul | W14: 211 | X14: Jean Paul | Y14: 239 | Z14: =Y$5-Y14 -> 84 | AA14: =Y$9-Y14 -> 54 | AB14: =Y13-Y14 -> 3 | AC14: Jean Paul | AD14: 273 | AE14: =AD$5-AD14 -> 91 | AF14: =AD$9-AD14 -> 33 | AG14: =AD13-AD14 -> 4
B15: SSSSSSS | C15: 11 | D15: Wesley Canuto | E15: 22 | F15: Frederico Papatella | G15: 45 | H15: Diego Rodrigues | I15: 48 | J15: Frederico Papatella | K15: 58 | L15: Frederico Papatella | M15: 76 | N15: Bruno Nosse | O15: 136 | P15: Lucio Chequer | Q15: 119 | R15: Lucio Chequer | S15: 145 | T15: Jean Paul | U15: 166 | V15: Lucio Chequer | W15: 193 | X15: Lucio Chequer | Y15: 204 | Z15: =Y$5-Y15 -> 119 | AA15: =Y$9-Y15 -> 89 | AB15: =Y14-Y15 -> 35 | AC15: Diego Rodrigues | AD15: 233 | AE15: =AD$5-AD15 -> 131 | AF15: =AD$9-AD15 -> 73 | AG15: =AD14-AD15 -> 40
A16: X | B16: Fernando Mota | C16: 12 | D16: Jean Paul | E16: 20 | F16: Samuel Farley | G16: 42 | H16: Wander Neto | I16: 48 | J16: Jean Paul | K16: 52 | L16: Diego Rodrigues | M16: 72 | N16: Christian Guedes | O16: 134 | P16: Jean Paul | Q16: 116 | R16: Samuel Farley | S16: 142 | T16: Matheus Azevedo | U16: 162 | V16: Diego Rodrigues | W16: 183 | X16: Diego Rodrigues | Y16: 197 | Z16: =Y$5-Y16 -> 126 | AA16: =Y$9-Y16 -> 96 | AB16: =Y15-Y16 -> 7 | AC16: Samuel Farley | AD16: 223 | AE16: =AD$5-AD16 -> 141 | AF16: =AD$9-AD16 -> 83 | AG16: =AD15-AD16 -> 10
B17: Frederico Papatella | C17: 13 | D17: Felipe Bouhid | E17: 18 | F17: Anderson Teixeira | G17: 36 | H17: Fernando Mota | I17: 48 | J17: Samuel Farley | K17: 50 | L17: Matheus Azevedo | M17: 71 | N17: Wesley Canuto | O17: 127 | P17: Samuel Farley | Q17: 108 | R17: Jean Paul | S17: 134 | T17: Samuel Farley | U17: 151 | V17: Matheus Azevedo | W17: 177 | X17: Samuel Farley | Y17: 193 | Z17: =Y$5-Y17 -> 130 | AA17: =Y$9-Y17 -> 100 | AB17: =Y16-Y17 -> 4 | AC17: Lucio Chequer | AD17: 222 | AE17: =AD$5-AD17 -> 142 | AF17: =AD$9-AD17 -> 84 | AG17: =AD16-AD17 -> 1
A18: X | B18: Gui Figueiredo | C18: 14 | D18: Jarbas Reis | E18: 17 | F18: Aparecido Arantes | G18: 30 | H18: Frederico Papatella | I18: 45 | J18: Wander Neto | K18: 49 | L18: Jean Paul | M18: 69 | N18: Jarbas Reis | O18: 126 | P18: Diego Rodrigues | Q18: 103 | R18: Renato Amaral | S18: 124 | T18: Diego Rodrigues | U18: 147 | V18: Samuel Farley | W18: 171 | X18: Matheus Azevedo | Y18: 184 | Z18: =Y$5-Y18 -> 139 | AA18: =Y$9-Y18 -> 109 | AB18: =Y17-Y18 -> 9 | AC18: Matheus Azevedo | AD18: 179 | AE18: =AD$5-AD18 -> 185 | AF18: =AD$9-AD18 -> 127 | AG18: =AD17-AD18 -> 43
B19: Guilherme Alves | C19: 15 | D19: Wander Neto | E19: 16 | F19: Guilherme Alves | G19: 29 | H19: Ricardo Amaral | I19: 43 | J19: Diego Rodrigues | K19: 48 | L19: Renato Amaral | M19: 66 | N19: Anderson Teixeira | O19: 125 | P19: Wander Neto | Q19: 99 | R19: Diego Rodrigues | S19: 119 | T19: Wander Neto | U19: 135 | V19: Wander Neto | W19: 151 | X19: Renato Amaral | Y19: 158 | Z19: =Y$5-Y19 -> 165 | AA19: =Y$9-Y19 -> 135 | AB19: =Y18-Y19 -> 26 | AC19: Frederico Papatella | AD19: 177 | AE19: =AD$5-AD19 -> 187 | AF19: =AD$9-AD19 -> 129 | AG19: =AD18-AD19 -> 2
B20: Gustavo Barros | C20: 16 | D20: Christian Guedes | E20: 15 | F20: Celso Dantas | G20: 29 | H20: Samuel Farley | I20: 43 | J20: Renato Amaral | K20: 44 | L20: Samuel Farley | M20: 64 | N20: Diego Rodrigues | O20: 102 | P20: Frederico Papatella | Q20: 94 | R20: Wander Neto | S20: 119 | T20: Renato Amaral | U20: 132 | V20: Renato Amaral | W20: 150 | X20: Wander Neto | Y20: 156 | Z20: =Y$5-Y20 -> 167 | AA20: =Y$9-Y20 -> 137 | AB20: =Y19-Y20 -> 2 | AC20: Renato Amaral | AD20: 173 | AE20: =AD$5-AD20 -> 191 | AF20: =AD$9-AD20 -> 133 | AG20: =AD19-AD20 -> 4
B21: Gustavo Mourão | C21: 17 | D21: Rafael Lemes | E21: 14 | F21: Henry Douglas | G21: 29 | H21: Matheus Azevedo | I21: 39 | J21: Ricardo Amaral | K21: 43 | L21: Vitor Gatti | M21: 60 | N21: Lucio Chequer | O21: 101 | P21: Renato Amaral | Q21: 92 | R21: Frederico Papatella | S21: 110 | T21: Frederico Papatella | U21: 127 | V21: Frederico Papatella | W21: 140 | X21: Frederico Papatella | Y21: 155 | Z21: =Y$5-Y21 -> 168 | AA21: =Y$9-Y21 -> 138 | AB21: =Y20-Y21 -> 1 | AC21: Vitor Gatti | AD21: 173 | AE21: =AD$5-AD21 -> 191 | AF21: =AD$9-AD21 -> 133 | AG21: =AD20-AD21 -> 0
B22: Gustavo Pereira | C22: 18 | D22: Henry Douglas | E22: 13 | F22: Raphael Reis | G22: 25 | H22: Raphael Reis | I22: 39 | J22: Aparecido Arantes | K22: 40 | L22: Wander Neto | M22: 53 | N22: Matheus Azevedo | O22: 99 | P22: Vitor Gatti | Q22: 89 | R22: Vitor Gatti | S22: 91 | T22: Vitor Gatti | U22: 117 | V22: Vitor Gatti | W22: 131 | X22: Vitor Gatti | Y22: 145 | Z22: =Y$5-Y22 -> 178 | AA22: =Y$9-Y22 -> 148 | AB22: =Y21-Y22 -> 10 | AC22: Wander Neto | AD22: 160 | AE22: =AD$5-AD22 -> 204 | AF22: =AD$9-AD22 -> 146 | AG22: =AD21-AD22 -> 13
B23: Henry Douglas | C23: 19 | D23: Gustavo Pereira | E23: 12 | F23: Wander Neto | G23: 25 | H23: Luiza Mendes | I23: 37 | J23: Matheus Azevedo | K23: 39 | L23: SSSSSSS | M23: 48 | N23: Samuel Farley | O23: 88 | P23: Henry Douglas | Q23: 68 | R23: Henry Douglas | S23: 81 | T23: Ricardo Amaral | U23: 100 | V23: Ricardo Amaral | W23: 111 | X23: Ricardo Amaral | Y23: 141 | Z23: =Y$5-Y23 -> 182 | AA23: =Y$9-Y23 -> 152 | AB23: =Y22-Y23 -> 4 | AC23: Ricardo Amaral | AD23: 155 | AE23: =AD$5-AD23 -> 209 | AF23: =AD$9-AD23 -> 151 | AG23: =AD22-AD23 -> 5
B24: Hugo Denucci | C24: 20 | D24: Iago Bastos | E24: 11 | F24: Christian Guedes | G24: 25 | H24: Aparecido Arantes | I24: 31 | J24: Raphael Reis | K24: 39 | L24: Aparecido Arantes | M24: 41 | N24: Jean Paul | O24: 82 | P24: Raphael Reis | Q24: 67 | R24: Ricardo Amaral | S24: 80 | T24: Henry Douglas | U24: 92 | V24: Aparecido Arantes | W24: 103 | X24: Henry Douglas | Y24: 117 | Z24: =Y$5-Y24 -> 206 | AA24: =Y$9-Y24 -> 176 | AB24: =Y23-Y24 -> 24 | AC24: Raphael Reis | AD24: 130 | AE24: =AD$5-AD24 -> 234 | AF24: =AD$9-AD24 -> 176 | AG24: =AD23-AD24 -> 25
B25: Iago Bastos | C25: 21 | D25: Renato Amaral | E25: 9 | F25: Iago Bastos | G25: 22 | H25: Renato Amaral | I25: 31 | J25: Luiza Mendes | K25: 37 | L25: Raphael Reis | M25: 40 | N25: Frederico Papatella | O25: 77 | P25: Ricardo Amaral | Q25: 66 | R25: Aparecido Arantes | S25: 73 | T25: Aparecido Arantes | U25: 88 | V25: Henry Douglas | W25: 103 | X25: Iago Bastos | Y25: 107 | Z25: =Y$5-Y25 -> 216 | AA25: =Y$9-Y25 -> 186 | AB25: =Y24-Y25 -> 10 | AC25: Henry Douglas | AD25: 130 | AE25: =AD$5-AD25 -> 234 | AF25: =AD$9-AD25 -> 176 | AG25: =AD24-AD25 -> 0
A26: X | B26: Jarbas Reis | C26: 22 | D26: Samuel Farley | E26: 8 | F26: Fernando Mota | G26: 21 | H26: Celso Dantas | I26: 29 | J26: Vitor Gatti | K26: 30 | L26: Ricardo Amaral | M26: 38 | N26: Renato Amaral | O26: 75 | P26: Aparecido Arantes | Q26: 58 | R26: Iago Bastos | S26: 71 | T26: Iago Bastos | U26: 80 | V26: Iago Bastos | W26: 89 | X26: Aparecido Arantes | Y26: 103 | Z26: =Y$5-Y26 -> 220 | AA26: =Y$9-Y26 -> 190 | AB26: =Y25-Y26 -> 4 | AC26: Aparecido Arantes | AD26: 114 | AE26: =AD$5-AD26 -> 250 | AF26: =AD$9-AD26 -> 192 | AG26: =AD25-AD26 -> 16
B27: Jean Paul | C27: 23 | D27: Celso Dantas | E27: 7 | F27: Jean Paul | G27: 20 | H27: Iago Bastos | I27: 29 | J27: Celso Dantas | K27: 29 | L27: Henry Douglas | M27: 37 | N27: Wander Neto | O27: 69 | P27: Renato Martins | Q27: 54 | R27: Raphael Reis | S27: 67 | T27: Raphael Reis | U27: 74 | V27: Renato Martins | W27: 80 | X27: Raphael Reis | Y27: 98 | Z27: =Y$5-Y27 -> 225 | AA27: =Y$9-Y27 -> 195 | AB27: =Y26-Y27 -> 5 | AC27: Renato Martins | AD27: 113 | AE27: =AD$5-AD27 -> 251 | AF27: =AD$9-AD27 -> 193 | AG27: =AD26-AD27 -> 1
B28: João Ferreira | C28: 24 | D28: Bernardo Gatti | E28: 6 | F28: Levindo Neto | G28: 20 | H28: Jean Paul | I28: 26 | J28: Felipe Bouhid | K28: 27 | L28: Luiza Mendes | M28: 32 | N28: Vitor Gatti | O28: 61 | P28: Iago Bastos | Q28: 54 | R28: Renato Martins | S28: 62 | T28: Bernardo Gatti | U28: 70 | V28: Raphael Reis | W28: 74 | X28: Renato Martins | Y28: 93 | Z28: =Y$5-Y28 -> 230 | AA28: =Y$9-Y28 -> 200 | AB28: =Y27-Y28 -> 5 | AC28: Iago Bastos | AD28: 102 | AE28: =AD$5-AD28 -> 262 | AF28: =AD$9-AD28 -> 204 | AG28: =AD27-AD28 -> 11
B29: Levindo Neto | C29: 25 | D29: Levindo Neto | E29: 5 | F29: SSSSSSS | G29: 18 | H29: SSSSSSS | I29: 25 | J29: Henry Douglas | K29: 21 | L29: João Ferreira | M29: 30 | N29: Aparecido Arantes | O29: 58 | P29: Gustavo Barros | Q29: 48 | R29: Bernardo Gatti | S29: 58 | T29: Renato Martins | U29: 68 | V29: Bernardo Gatti | W29: 70 | X29: Levindo Neto | Y29: 75 | Z29: =Y$5-Y29 -> 248 | AA29: =Y$9-Y29 -> 218 | AB29: =Y28-Y29 -> 18 | AC29: Bernardo Gatti | AD29: 85 | AE29: =AD$5-AD29 -> 279 | AF29: =AD$9-AD29 -> 221 | AG29: =AD28-AD29 -> 17
B30: Lucio Chequer | C30: 26 | D30: João Ferreira | E30: 5 | F30: Renato Amaral | G30: 17 | H30: Gustavo Pereira | I30: 24 | J30: Levindo Neto | K30: 20 | L30: Celso Dantas | M30: 29 | N30: Felipe Bouhid | O30: 57 | P30: Levindo Neto | Q30: 42 | R30: Levindo Neto | S30: 50 | T30: Gustavo Barros | U30: 58 | V30: Gustavo Barros | W30: 58 | X30: Bernardo Gatti | Y30: 73 | Z30: =Y$5-Y30 -> 250 | AA30: =Y$9-Y30 -> 220 | AB30: =Y29-Y30 -> 2 | AC30: Levindo Neto | AD30: 70 | AE30: =AD$5-AD30 -> 294 | AF30: =AD$9-AD30 -> 236 | AG30: =AD29-AD30 -> 15
B31: Luiza Mendes | C31: 27 | D31: Hugo Denucci | E31: 4 | F31: Renato Martins | G31: 14 | H31: Levindo Neto | I31: 20 | J31: Gustavo Barros | K31: 19 | L31: Iago Bastos | M31: 24 | N31: SSSSSSS | O31: 55 | P31: João Ferreira | Q31: 39 | R31: Gustavo Barros | S31: 48 | T31: Levindo Neto | U31: 50 | V31: Levindo Neto | W31: 58 | X31: Gustavo Barros | Y31: 53 | Z31: =Y$5-Y31 -> 270 | AA31: =Y$9-Y31 -> 240 | AB31: =Y30-Y31 -> 20 | AC31: Felipe Bouhid | AD31: 53 | AE31: =AD$5-AD31 -> 311 | AF31: =AD$9-AD31 -> 253 | AG31: =AD30-AD31 -> 17
B32: Matheus Azevedo | C32: 28 | D32: Victor Marinho | E32: 3 | F32: Gustavo Pereira | G32: 13 | H32: Vitor Gatti | I32: 18 | J32: Renato Martins | K32: 14 | L32: Felipe Bouhid | M32: 22 | N32: Henry Douglas | O32: 52 | P32: Bernardo Gatti | Q32: 36 | R32: João Ferreira | S32: 40 | T32: João Ferreira | U32: 40 | V32: Felipe Bouhid | W32: 37 | X32: Celso Dantas | Y32: 45 | Z32: =Y$5-Y32 -> 278 | AA32: =Y$9-Y32 -> 248 | AB32: =Y31-Y32 -> 8 | AC32: Gustavo Barros | AD32: 53 | AE32: =AD$5-AD32 -> 311 | AF32: =AD$9-AD32 -> 253 | AG32: =AD31-AD32 -> 0
B33: Rafael Lemes | C33: 29 | D33: Renato Martins | E33: 2 | F33: Bernardo Gatti | G33: 12 | H33: Henry Douglas | I33: 17 | J33: João Ferreira | K33: 14 | L33: Levindo Neto | M33: 21 | N33: Ricardo Amaral | O33: 51 | P33: Celso Dantas | Q33: 29 | R33: Celso Dantas | S33: 29 | T33: Celso Dantas | U33: 29 | V33: João Ferreira | W33: 35 | X33: Felipe Bouhid | Y33: 37 | Z33: =Y$5-Y33 -> 286 | AA33: =Y$9-Y33 -> 256 | AB33: =Y32-Y33 -> 8 | AC33: Celso Dantas | AD33: 40 | AE33: =AD$5-AD33 -> 324 | AF33: =AD$9-AD33 -> 266 | AG33: =AD32-AD33 -> 13
B34: Raphael Reis | C34: 30 | D34: Fernando Mota | E34: 1 | F34: Victor Marinho | G34: 10 | H34: Alan Moreira | I34: 15 | J34: Iago Bastos | K34: 13 | L34: Hugo Denucci | M34: 21 | N34: Raphael Reis | O34: 45 | P34: Victor Marinho | Q34: 25 | R34: Victor Marinho | S34: 26 | T34: Victor Marinho | U34: 21 | V34: Celso Dantas | W34: 29 | X34: João Ferreira | Y34: 35 | Z34: =Y$5-Y34 -> 288 | AA34: =Y$9-Y34 -> 258 | AB34: =Y33-Y34 -> 2 | AC34: João Ferreira | AD34: 35 | AE34: =AD$5-AD34 -> 329 | AF34: =AD$9-AD34 -> 271 | AG34: =AD33-AD34 -> 5
B35: Renato Amaral | C35: 31 | D35: Vitor Gatti | E35: 1 | F35: Rafael Lemes | G35: 9 | H35: Renato Martins | I35: 14 | J35: SSSSSSS | K35: 13 | L35: Victor Marinho | M35: 21 | N35: Iago Bastos | O35: 44 | P35: Luiza Mendes | Q35: 22 | R35: Luiza Mendes | S35: 17 | T35: Felipe Bouhid | U35: 20 | V35: Hugo Denucci | W35: 16 | X35: Hugo Denucci | Y35: 11 | Z35: =Y$5-Y35 -> 312 | AA35: =Y$9-Y35 -> 282 | AB35: =Y34-Y35 -> 24 | AC35: Alan Moreira | AD35: 9 | AE35: =AD$5-AD35 -> 355 | AF35: =AD$9-AD35 -> 297 | AG35: =AD34-AD35 -> 26
B36: Renato Martins | C36: 32 | D36: Luiza Mendes | E36: 1 | F36: João Ferreira | G36: 7 | H36: Gustavo Barros | I36: 13 | J36: Victor Marinho | K36: 13 | L36: Gustavo Barros | M36: 19 | N36: Renato Martins | O36: 42 | P36: Hugo Denucci | Q36: 21 | R36: Hugo Denucci | S36: 16 | T36: Hugo Denucci | U36: 16 | V36: Victor Marinho | W36: 16 | X36: Victor Marinho | Y36: 11 | Z36: =Y$5-Y36 -> 312 | AA36: =Y$9-Y36 -> 282 | AB36: =Y35-Y36 -> 0 | AC36: Hugo Denucci | AD36: 6 | AE36: =AD$5-AD36 -> 358 | AF36: =AD$9-AD36 -> 300 | AG36: =AD35-AD36 -> 3
B37: Ricardo Amaral | C37: 33 | D37: Anderson Teixeira | E37: 0 | F37: Alan Moreira | G37: 5 | H37: Bernardo Gatti | I37: 12 | J37: Hugo Denucci | K37: 11 | L37: Renato Martins | M37: 9 | N37: João Ferreira | O37: 37 | P37: Alan Moreira | Q37: 14 | R37: Alan Moreira | S37: 14 | T37: Alan Moreira | U37: 14 | V37: Alan Moreira | W37: 14 | X37: Alan Moreira | Y37: 9 | Z37: =Y$5-Y37 -> 314 | AA37: =Y$9-Y37 -> 284 | AB37: =Y36-Y37 -> 2 | AC37: Victor Marinho | AD37: 6 | AE37: =AD$5-AD37 -> 358 | AF37: =AD$9-AD37 -> 300 | AG37: =AD36-AD37 -> 0
B38: Samuel Farley | C38: 34 | D38: Aparecido Arantes | E38: 0 | F38: Vitor Gatti | G38: 5 | H38: Victor Marinho | I38: 10 | J38: Gustavo Pereira | K38: 7 | L38: Rafael Lemes | M38: 4 | N38: Gustavo Barros | O38: 35 | P38: Gustavo Pereira | Q38: 10 | R38: Felipe Bouhid | S38: 7 | T38: Luiza Mendes | U38: 12 | V38: Luiza Mendes | W38: 7 | X38: Luiza Mendes | Y38: 2 | Z38: =Y$5-Y38 -> 321 | AA38: =Y$9-Y38 -> 291 | AB38: =Y37-Y38 -> 7 | AC38: Luiza Mendes | AD38: 0 | AE38: =AD$5-AD38 -> 364 | AF38: =AD$9-AD38 -> 306 | AG38: =AD37-AD38 -> 6
B39: Victor Marinho | C39: 35 | D39: SSSSSSS | E39: 0 | F39: Hugo Denucci | G39: 4 | H39: Rafael Lemes | I39: 9 | J39: Alan Moreira | K39: 5 | L39: Bernardo Gatti | M39: 4 | N39: Luiza Mendes | O39: 32 | P39: Rafael Lemes | Q39: 7 | R39: Gustavo Pereira | S39: 5 | T39: Gustavo Pereira | U39: 5 | V39: SSSSSSS | W39: 0 | X39: SSSSSSS | Y39: 0 | Z39: =Y$5-Y39 -> 323 | AA39: =Y$9-Y39 -> 293 | AB39: =Y38-Y39 -> 2 | AC39: SSSSSSS | AD39: 0 | AE39: =AD$5-AD39 -> 364 | AF39: =AD$9-AD39 -> 306 | AG39: =AD38-AD39 -> 0
B40: Vitor Gatti | C40: 36 | D40: Alan Moreira | E40: 0 | F40: Luiza Mendes | G40: 1 | H40: João Ferreira | I40: 7 | J40: Bernardo Gatti | K40: 1 | L40: Gustavo Pereira | M40: 2 | N40: Levindo Neto | O40: 32 | P40: SSSSSSS | Q40: 0 | R40: Rafael Lemes | S40: 2 | T40: SSSSSSS | U40: 0 | V40: Rafael Lemes | W40: 0 | X40: Rafael Lemes | Y40: 0 | Z40: =Y$5-Y40 -> 323 | AA40: =Y$9-Y40 -> 293 | AB40: =Y39-Y40 -> 0 | AC40: Rafael Lemes | AD40: 0 | AE40: =AD$5-AD40 -> 364 | AF40: =AD$9-AD40 -> 306 | AG40: =AD39-AD40 -> 0
B41: Wander Neto | C41: 37 | D41: Gustavo Barros | E41: 0 | F41: Gustavo Barros | G41: 0 | H41: Hugo Denucci | I41: 4 | J41: Rafael Lemes | K41: 0 | L41: Alan Moreira | M41: 0 | N41: Celso Dantas | O41: 29 | P41: Felipe Bouhid | Q41: 0 | R41: SSSSSSS | S41: 0 | T41: Rafael Lemes | U41: 0 | V41: Gustavo Pereira | W41: 0 | X41: Gustavo Pereira | Y41: 0 | Z41: =Y$5-Y41 -> 323 | AA41: =Y$9-Y41 -> 293 | AB41: =Y40-Y41 -> 0 | AC41: Gustavo Pereira | AD41: 0 | AE41: =AD$5-AD41 -> 364 | AF41: =AD$9-AD41 -> 306 | AG41: =AD40-AD41 -> 0
B42: Wesley Canuto | C42: 38 | D42: Gustavo Mourão | E42: 0 | F42: Gustavo Mourão | G42: 0 | H42: Gustavo Mourão | I42: 0 | J42: Gustavo Mourão | K42: 0 | L42: Gustavo Mourão | M42: 0 | N42: Bernardo Gatti | O42: 22 | P42: Gustavo Mourão | Q42: 0 | R42: Gustavo Mourão | S42: 0 | T42: Gustavo Mourão | U42: 0 | V42: Gustavo Mourão | W42: 0 | X42: Gustavo Mourão | Y42: 0 | Z42: =Y$5-Y42 -> 323 | AA42: =Y$9-Y42 -> 293 | AB42: =Y41-Y42 -> 0 | AC42: Gustavo Mourão | AD42: 0 | AE42: =AD$5-AD42 -> 364 | AF42: =AD$9-AD42 -> 306 | AG42: =AD41-AD42 -> 0
C43: 39 | N43: Victor Marinho | O43: 22 | W43: 0 | Z43: =Y$5-Y43 -> 323 | AA43: =Y$9-Y43 -> 293 | AB43: =Y42-Y43 -> 0 | AE43: =AD$5-AD43 -> 364 | AF43: =AD$9-AD43 -> 306 | AG43: =AD42-AD43 -> 0
C44: 40 | N44: Hugo Denucci | O44: 21 | W44: 0 | Z44: =Y$5-Y44 -> 323 | AA44: =Y$9-Y44 -> 293 | AB44: =Y43-Y44 -> 0 | AE44: =AD$5-AD44 -> 364 | AF44: =AD$9-AD44 -> 306 | AG44: =AD43-AD44 -> 0
C45: 41 | N45: Alan Moreira | O45: 19 | W45: 0 | Z45: =Y$5-Y45 -> 323 | AA45: =Y$9-Y45 -> 293 | AB45: =Y44-Y45 -> 0 | AE45: =AD$5-AD45 -> 364 | AF45: =AD$9-AD45 -> 306 | AG45: =AD44-AD45 -> 0
C46: 42 | N46: Rafael Lemes | O46: 17 | W46: 0 | Z46: =Y$5-Y46 -> 323 | AA46: =Y$9-Y46 -> 293 | AB46: =Y45-Y46 -> 0 | AE46: =AD$5-AD46 -> 364 | AF46: =AD$9-AD46 -> 306 | AG46: =AD45-AD46 -> 0
C47: 43 | N47: Gustavo Pereira | O47: 15 | W47: 0 | Z47: =Y$5-Y47 -> 323 | AA47: =Y$9-Y47 -> 293 | AB47: =Y46-Y47 -> 0 | AE47: =AD$5-AD47 -> 364 | AF47: =AD$9-AD47 -> 306 | AG47: =AD46-AD47 -> 0
C48: 44 | N48: Gustavo Mourão | O48: 0 | W48: 0 | Z48: =Y$5-Y48 -> 323 | AA48: =Y$9-Y48 -> 293 | AB48: =Y47-Y48 -> 0 | AE48: =AD$5-AD48 -> 364 | AF48: =AD$9-AD48 -> 306 | AG48: =AD47-AD48 -> 0
C49: 45 | W49: 0 | Z49: =Y$5-Y49 -> 323 | AA49: =Y$9-Y49 -> 293 | AB49: =Y48-Y49 -> 0 | AE49: =AD$5-AD49 -> 364 | AF49: =AD$9-AD49 -> 306 | AG49: =AD48-AD49 -> 0

Sheet CAMP EQUIPE EVOL
A1: 2022 | B1: OK | D1: OK | F1: OK | H1: OK | J1: OK | L1: OK | N1: OK | P1: OK | R1: OK | T1: OK | V1: DIF. LIDER | W1: DIF. 3º | X1: DIF. PRÓXIMO | Y1: OK | AA1: DIF. LIDER | AB1: DIF. 3º | AC1: DIF. PRÓXIMO | AD1: OK | AF1: DIF. LIDER | AG1: DIF. 3º | AH1: DIF. PRÓXIMO
B2: 1ª etapa | D2: 2ª etapa | F2: 3ª etapa | H2: 4ª etapa | J2: 5ª etapa | L2: 6ª etapa | N2: 7ª etapa | P2: 8ª etapa | R2: 9ª etapa | T2: 10ª etapa | Y2: 11ª etapa | AD2: 12ª etapa
D3: 0 | F3: 00:00:00 | H3: 00:00:00 | J3: 00:00:00 | L3: 00:00:00 | N3: 00:00:00 | P3: 00:00:00 | R3: 00:00:00 | T3: 00:00:00 | Y3: 00:00:00 | AD3: 00:00:00
A4: EQUIPES | B4: EQUIPES | C4: Pontuação Geral | D4: EQUIPES | E4: Pontuação Geral | F4: EQUIPES | G4: Pontuação Geral | H4: EQUIPES | I4: Pontuação Geral | J4: EQUIPES | K4: Pontuação Geral | L4: EQUIPES | M4: Pontuação Geral | N4: Posição | O4: Pontos | P4: Posição | Q4: Pontos | R4: Posição | S4: Pontos | T4: Posição | U4: Pontos | Y4: Posição | Z4: Pontos | AD4: Posição | AE4: Pontos
A5: 1º | B5: AST | C5: 94 | D5: AST | E5: 151 | F5: Frigoindaiá | G5: 156 | H5: Frigoindaiá | I5: 156 | J5: LQN | K5: 233 | L5: LQN | M5: 330 | N5: Delcar | O5: 386 | P5: Delcar | Q5: 513 | R5: Delcar | S5: 532 | T5: Delcar | U5: 611 | V5: - | W5: - | X5: - | Y5: Delcar | Z5: 679 | AA5: - | AB5: - | AC5: - | AD5: Delcar | AE5: 753 | AF5: - | AG5: - | AH5: -
B6: Alexandre Melillo | C6: 42 | D6: Alexandre Melillo | E6: 68 | F6: Bruno Nosse | G6: 74 | H6: Bruno Nosse | I6: 74 | J6: Guilherme Alves | K6: 81 | L6: Guilherme Alves | M6: 115 | N6: Anderson Teixeira | O6: 150 | P6: Anderson Teixeira | Q6: 186 | R6: Anderson Teixeira | S6: 174 | T6: Anderson Teixeira | U6: 174 | V6: - | W6: - | X6: - | Y6: Anderson Teixeira | Z6: 206 | AA6: - | AB6: - | AC6: - | AD6: Anderson Teixeira | AE6: 231 | AF6: - | AG6: - | AH6: -
B7: Renato Martins | C7: 0 | D7: Renato Martins | E7: 0 | F7: Celso Dantas | G7: 7 | H7: Celso Dantas | I7: 7 | J7: Aparecido Arantes | K7: 15 | L7: Aparecido Arantes | M7: 32 | N7: Jean Paul | O7: 96 | P7: Jean Paul | Q7: 96 | R7: Jean Paul | S7: 128 | T7: Jean Paul | U7: 173 | V7: - | W7: - | X7: - | Y7: Jean Paul | Z7: 201 | AA7: - | AB7: - | AC7: - | AD7: Jean Paul | AE7: 235 | AF7: - | AG7: - | AH7: -
B8: SSSSSSS | C8: 0 | D8: SSSSSSS | E8: 18 | F8: Matheus Azevedo | G8: 39 | H8: Matheus Azevedo | I8: 39 | J8: Fernando Mota | K8: 111 | L8: Fernando Mota | M8: 157 | N8: Bernardo Gatti | O8: 12 | P8: Bernardo Gatti | Q8: 34 | R8: Bernardo Gatti | S8: 34 | T8: Bernardo Gatti | U8: 34 | V8: - | W8: - | X8: - | Y8: Bernardo Gatti | Z8: 34 | AA8: - | AB8: - | AC8: - | AD8: Bernardo Gatti | AE8: 34 | AF8: - | AG8: - | AH8: -
B9: Ricardo Amaral | C9: 38 | D9: Ricardo Amaral | E9: 51 | F9: Luiza Mendes | G9: 36 | H9: Luiza Mendes | I9: 36 | J9: João Ferreira | K9: 26 | L9: João Ferreira | M9: 26 | N9: Renato Amaral | O9: 66 | P9: Renato Amaral | Q9: 106 | R9: Renato Amaral | S9: 98 | T9: Renato Amaral | U9: 116 | V9: - | W9: - | X9: - | Y9: Renato Amaral | Z9: 124 | AA9: - | AB9: - | AC9: - | AD9: Renato Amaral | AE9: 139 | AF9: - | AG9: - | AH9: -
B10: Rafael Lemes | C10: 14 | D10: Rafael Lemes | E10: 14 | F10: XXXX | G10: 0 | H10: XXXX | I10: 0 | J10: XXX | K10: 0 | L10: XXX | M10: 0 | N10: Wander Neto | O10: 62 | P10: Wander Neto | Q10: 91 | R10: Wander Neto | S10: 98 | T10: Wander Neto | U10: 114 | V10: - | W10: - | X10: - | Y10: Wander Neto | Z10: 114 | AA10: - | AB10: - | AC10: - | AD10: Wander Neto | AE10: 114 | AF10: - | AG10: - | AH10: -
A11: 2º | B11: Frigoindaiá | C11: 75 | D11: Frigoindaiá | E11: 150 | F11: AST | G11: 151 | H11: Lokamig | I11: 155 | J11: Frigoindaiá | K11: 230 | L11: Delcar | M11: 281 | N11: LQN | O11: 383 | P11: LQN | Q11: 505 | R11: LQN | S11: 526 | T11: LQN | U11: 604 | V11: =U5-U11 -> 7 | W11: - | X11: =U5-U11 -> 7 | Y11: LQN | Z11: 638 | AA11: =Z5-Z11 -> 41 | AB11: - | AC11: =Z5-Z11 -> 41 | AD11: LQN | AE11: 720 | AF11: =AE5-AE11 -> 33 | AG11: - | AH11: =AE5-AE11 -> 33
B12: Bruno Nosse | C12: 32 | D12: Bruno Nosse | E12: 56 | F12: Alexandre Melillo | G12: 68 | H12: Wesley Canuto | I12: 69 | J12: Bruno Nosse | K12: 98 | L12: Anderson Teixeira | M12: 109 | N12: Guilherme Alves | O12: 118 | P12: Guilherme Alves | Q12: 180 | R12: Guilherme Alves | S12: 157 | T12: Guilherme Alves | U12: 192 | V12: - | W12: - | X12: - | Y12: Guilherme Alves | Z12: 192 | AA12: - | AB12: - | AC12: - | AD12: Guilherme Alves | AE12: 237 | AF12: - | AG12: - | AH12: -
B13: Celso Dantas | C13: 7 | D13: Celso Dantas | E13: 29 | F13: Renato Martins | G13: 0 | H13: Lucio Chequer | I13: 56 | J13: Celso Dantas | K13: 29 | L13: Jean Paul | M13: 62 | N13: Aparecido Arantes | O13: 62 | P13: Aparecido Arantes | Q13: 77 | R13: Aparecido Arantes | S13: 92 | T13: Aparecido Arantes | U13: 107 | V13: - | W13: - | X13: - | Y13: Aparecido Arantes | Z13: 107 | AA13: - | AB13: - | AC13: - | AD13: Aparecido Arantes | AE13: 118 | AF13: - | AG13: - | AH13: -
B14: Matheus Azevedo | C14: 36 | D14: Matheus Azevedo | E14: 65 | F14: SSSSSSS | G14: 18 | H14: Gustavo Pereira | I14: 0 | J14: Matheus Azevedo | K14: 67 | L14: Bernardo Gatti | M14: 12 | N14: Fernando Mota | O14: 177 | P14: Fernando Mota | Q14: 222 | R14: Fernando Mota | S14: 251 | T14: Fernando Mota | U14: 279 | V14: - | W14: - | X14: - | Y14: Fernando Mota | Z14: 313 | AA14: - | AB14: - | AC14: - | AD14: Fernando Mota | AE14: 339 | AF14: - | AG14: - | AH14: -
B15: Luiza Mendes | C15: 0 | D15: Luiza Mendes | E15: 0 | F15: Ricardo Amaral | G15: 51 | H15: Vitor Gatti | I15: 30 | J15: Luiza Mendes | K15: 36 | L15: Renato Amaral | M15: 66 | N15: João Ferreira | O15: 26 | P15: João Ferreira | Q15: 26 | R15: João Ferreira | S15: 26 | T15: João Ferreira | U15: 26 | V15: - | W15: - | X15: - | Y15: João Ferreira | Z15: 26 | AA15: - | AB15: - | AC15: - | AD15: João Ferreira | AE15: 26 | AF15: - | AG15: - | AH15: -
B16: XXXX | C16: 0 | D16: XXXX | E16: 0 | F16: Rafael Lemes | G16: 14 | H16: XXXXXXXXX | I16: 0 | J16: XXXX | K16: 0 | L16: Wander Neto | M16: 32 | N16: XXX | O16: 0 | P16: XXX | Q16: 0 | R16: XXX | S16: 0 | T16: XXX | U16: 0 | V16: - | W16: - | X16: - | Y16: XXX | Z16: 0 | AA16: - | AB16: - | AC16: - | AD16: XXX | AE16: 0 | AF16: - | AG16: - | AH16: -
A17: 3º | B17: Lokamig | C17: 64 | D17: Lokamig | E17: 147 | F17: Lokamig | G17: 147 | H17: Delcar | I17: 152 | J17: AST | K17: 223 | L17: Lokamig | M17: 280 | N17: Frigoindaiá | O17: 360 | P17: Lokamig | Q17: 462 | R17: Lokamig | S17: 485 | T17: Lokamig | U17: 557 | V17: =U5-U17 -> 54 | W17: - | X17: =U11-U17 -> 47 | Y17: Lokamig | Z17: 612 | AA17: =Z5-Z17 -> 67 | AB17: - | AC17: =Z11-Z17 -> 26 | AD17: Lokamig | AE17: 668 | AF17: =AE5-AE17 -> 85 | AG17: - | AH17: =AE11-AE17 -> 52
B18: Wesley Canuto | C18: 22 | D18: Wesley Canuto | E18: 63 | F18: Wesley Canuto | G18: 63 | H18: Anderson Teixeira | I18: 44 | J18: Alexandre Melillo | K18: 94 | L18: Wesley Canuto | M18: 111 | N18: Bruno Nosse | O18: 177 | P18: Wesley Canuto | Q18: 203 | R18: Wesley Canuto | S18: 201 | T18: Wesley Canuto | U18: 233 | V18: - | W18: - | X18: - | Y18: Wesley Canuto | Z18: 265 | AA18: - | AB18: - | AC18: - | AD18: Wesley Canuto | AE18: 275 | AF18: - | AG18: - | AH18: -
B19: Lucio Chequer | C19: 30 | D19: Lucio Chequer | E19: 68 | F19: Lucio Chequer | G19: 68 | H19: Jean Paul | I19: 32 | J19: Renato Martins | K19: 0 | L19: Lucio Chequer | M19: 97 | N19: Celso Dantas | O19: 29 | P19: Lucio Chequer | Q19: 156 | R19: Lucio Chequer | S19: 156 | T19: Lucio Chequer | U19: 182 | V19: - | W19: - | X19: - | Y19: Lucio Chequer | Z19: 204 | AA19: - | AB19: - | AC19: - | AD19: Lucio Chequer | AE19: 222 | AF19: - | AG19: - | AH19: -
B20: Gustavo Pereira | C20: 12 | D20: Gustavo Pereira | E20: 12 | F20: Gustavo Pereira | G20: 12 | H20: Bernardo Gatti | I20: 0 | J20: SSSSSSS | K20: 52 | L20: Gustavo Pereira | M20: 12 | N20: Matheus Azevedo | O20: 118 | P20: Gustavo Pereira | Q20: 12 | R20: Gustavo Pereira | S20: 12 | T20: Gustavo Pereira | U20: 12 | V20: - | W20: - | X20: - | Y20: Gustavo Pereira | Z20: 12 | AA20: - | AB20: - | AC20: - | AD20: Gustavo Pereira | AE20: 12 | AF20: - | AG20: - | AH20: -
B21: Vitor Gatti | C21: 0 | D21: Vitor Gatti | E21: 4 | F21: Vitor Gatti | G21: 4 | H21: Renato Amaral | I21: 44 | J21: Ricardo Amaral | K21: 51 | L21: Vitor Gatti | M21: 60 | N21: Luiza Mendes | O21: 36 | P21: Vitor Gatti | Q21: 91 | R21: Vitor Gatti | S21: 116 | T21: Vitor Gatti | U21: 130 | V21: - | W21: - | X21: - | Y21: Vitor Gatti | Z21: 131 | AA21: - | AB21: - | AC21: - | AD21: Vitor Gatti | AE21: 159 | AF21: - | AG21: - | AH21: -
B22: XXXXXXXXX | C22: 0 | D22: XXXXXXXXX | E22: 0 | F22: XXXXXXXXX | G22: 0 | H22: Wander Neto | I22: 32 | J22: Rafael Lemes | K22: 26 | L22: XXXXXXXXX | M22: 0 | N22: XXXX | O22: 0 | P22: XXXXXXXXX | Q22: 0 | R22: XXXXXXXXX | S22: 0 | T22: XXXXXXXXX | U22: 0 | V22: - | W22: - | X22: - | Y22: XXXXXXXXX | Z22: 0 | AA22: - | AB22: - | AC22: - | AD22: XXXXXXXXX | AE22: 0 | AF22: - | AG22: - | AH22: -
A23: 4º | B23: Clinorte | C23: 59 | D23: Clinorte | E23: 137 | F23: Clinorte | G23: 137 | H23: AST | I23: 151 | J23: Lokamig | K23: 219 | L23: AST | M23: 279 | N23: Lokamig | O23: 351 | P23: Frigoindaiá | Q23: 448 | R23: Alpha | S23: 460 | T23: Alpha | U23: 511 | V23: =U$5-U23 -> 100 | W23: =U$17-U23 -> 46 | X23: =U17-U23 -> 46 | Y23: Alpha | Z23: 587 | AA23: =Z$5-Z23 -> 92 | AB23: =Z$17-Z23 -> 25 | AC23: =Z17-Z23 -> 25 | AD23: Alpha | AE23: 650 | AF23: =AE$5-AE23 -> 103 | AG23: =AE$17-AE23 -> 18 | AH23: =AE17-AE23 -> 18
B24: Raphael Reis | C24: 24 | D24: Raphael Reis | E24: 25 | F24: Raphael Reis | G24: 25 | H24: Alexandre Melillo | I24: 68 | J24: Wesley Canuto | K24: 91 | L24: Alexandre Melillo | M24: 130 | N24: Wesley Canuto | O24: 143 | P24: Bruno Nosse | Q24: 218 | R24: Christian Guedes | S24: 249 | T24: Christian Guedes | U24: 279 | V24: - | W24: - | X24: - | Y24: Christian Guedes | Z24: 320 | AA24: - | AB24: - | AC24: - | AD24: Christian Guedes | AE24: 361 | AF24: - | AG24: - | AH24: -
B25: Jarbas Reis | C25: 17 | D25: Jarbas Reis | E25: 62 | F25: Jarbas Reis | G25: 62 | H25: Renato Martins | I25: 0 | J25: Lucio Chequer | K25: 86 | L25: Renato Martins | M25: 20 | N25: Lucio Chequer | O25: 108 | P25: Celso Dantas | Q25: 29 | R25: Levindo Neto | S25: 10 | T25: Levindo Neto | U25: 18 | V25: - | W25: - | X25: - | Y25: Levindo Neto | Z25: 35 | AA25: - | AB25: - | AC25: - | AD25: Levindo Neto | AE25: 35 | AF25: - | AG25: - | AH25: -
B26: Gustavo Mourão | C26: 0 | D26: Gustavo Mourão | E26: 0 | F26: Gustavo Mourão | G26: 0 | H26: SSSSSSS | I26: 18 | J26: Gustavo Pereira | K26: 12 | L26: SSSSSSS | M26: 52 | N26: Gustavo Pereira | O26: 12 | P26: Matheus Azevedo | Q26: 165 | R26: Frederico Papatella | S26: 122 | T26: Frederico Papatella | U26: 135 | V26: - | W26: - | X26: - | Y26: Frederico Papatella | Z26: 135 | AA26: - | AB26: - | AC26: - | AD26: Frederico Papatella | AE26: 157 | AF26: - | AG26: - | AH26: -
B27: Felipe Bouhid | C27: 18 | D27: Felipe Bouhid | E27: 50 | F27: Felipe Bouhid | G27: 50 | H27: Ricardo Amaral | I27: 51 | J27: Vitor Gatti | K27: 30 | L27: Ricardo Amaral | M27: 51 | N27: Vitor Gatti | O27: 88 | P27: Luiza Mendes | Q27: 36 | R27: Iago Bastos | S27: 79 | T27: Iago Bastos | U27: 79 | V27: - | W27: - | X27: - | Y27: Iago Bastos | Z27: 97 | AA27: - | AB27: - | AC27: - | AD27: Iago Bastos | AE27: 97 | AF27: - | AG27: - | AH27: -
B28: XXXXXXXX | C28: 0 | D28: XXXXXXXX | E28: 0 | F28: XXXXXXXX | G28: 0 | H28: Rafael Lemes | I28: 14 | J28: XXXXXXXXX | K28: 0 | L28: Rafael Lemes | M28: 26 | N28: XXXXXXXXX | O28: 0 | P28: XXXX | Q28: 0 | R28: XX | T28: XX | V28: - | W28: - | X28: - | Y28: XX | AA28: - | AB28: - | AC28: - | AD28: XX | AF28: - | AG28: - | AH28: -
A29: 5º | B29: SASantiago | C29: 57 | D29: Delcar | E29: 98 | F29: LQN | G29: 127 | H29: Alpha | I29: 149 | J29: Alpha | K29: 217 | L29: Frigoindaiá | M29: 276 | N29: AST | O29: 324 | P29: Alpha | Q29: 431 | R29: Frigoindaiá | S29: 448 | T29: Frigoindaiá | U29: 486 | V29: =U$5-U29 -> 125 | W29: =U$17-U29 -> 71 | X29: =U23-U29 -> 25 | Y29: AST | Z29: 566 | AA29: =Z$5-Z29 -> 113 | AB29: =Z$17-Z29 -> 46 | AC29: =Z23-Z29 -> 21 | AD29: AST | AE29: 617 | AF29: =AE$5-AE29 -> 136 | AG29: =AE$17-AE29 -> 51 | AH29: =AE23-AE29 -> 33
B30: Gui Figueiredo | C30: 45 | D30: Anderson Teixeira | E30: 36 | F30: Guilherme Alves | G30: 48 | H30: Christian Guedes | I30: 75 | J30: Christian Guedes | K30: 116 | L30: Bruno Nosse | M30: 132 | N30: Alexandre Melillo | O30: 160 | P30: Christian Guedes | Q30: 208 | R30: Bruno Nosse | S30: 218 | T30: Bruno Nosse | U30: 256 | V30: - | W30: - | X30: - | Y30: Alexandre Melillo | Z30: 283 | AA30: - | AB30: - | AC30: - | AD30: Alexandre Melillo | AE30: 300 | AF30: - | AG30: - | AH30: -
B31: Alan Moreira | C31: 0 | D31: Jean Paul | E31: 20 | F31: Aparecido Arantes | G31: 30 | H31: Levindo Neto | I31: 10 | J31: Levindo Neto | K31: 10 | L31: Celso Dantas | M31: 29 | N31: Renato Martins | O31: 28 | P31: Levindo Neto | Q31: 25 | R31: Celso Dantas | S31: 29 | T31: Celso Dantas | U31: 29 | V31: - | W31: - | X31: - | Y31: Renato Martins | Z31: 71 | AA31: - | AB31: - | AC31: - | AD31: Renato Martins | AE31: 91 | AF31: - | AG31: - | AH31: -
B32: Samuel Farley | C32: 8 | D32: Bernardo Gatti | E32: 0 | F32: Fernando Mota | G32: 48 | H32: Frederico Papatella | I32: 46 | J32: Frederico Papatella | K32: 64 | L32: Matheus Azevedo | M32: 79 | N32: SSSSSSS | O32: 59 | P32: Frederico Papatella | Q32: 122 | R32: Matheus Azevedo | S32: 165 | T32: Matheus Azevedo | U32: 165 | V32: - | W32: - | X32: - | Y32: SSSSSSS | Z32: 59 | AA32: - | AB32: - | AC32: - | AD32: SSSSSSS | AE32: 59 | AF32: - | AG32: - | AH32: -
B33: Hugo Denucci | C33: 4 | D33: Renato Amaral | E33: 17 | F33: João Ferreira | G33: 1 | H33: Iago Bastos | I33: 18 | J33: Iago Bastos | K33: 27 | L33: Luiza Mendes | M33: 36 | N33: Ricardo Amaral | O33: 51 | P33: Iago Bastos | Q33: 76 | R33: Luiza Mendes | S33: 36 | T33: Luiza Mendes | U33: 36 | V33: - | W33: - | X33: - | Y33: Ricardo Amaral | Z33: 127 | AA33: - | AB33: - | AC33: - | AD33: Ricardo Amaral | AE33: 141 | AF33: - | AG33: - | AH33: -
B34: X | D34: Wander Neto | E34: 25 | F34: XXX | G34: 0 | H34: XX | J34: XX | L34: XXXX | M34: 0 | N34: Rafael Lemes | O34: 26 | P34: XX | R34: XXXX | S34: 0 | T34: XXXX | U34: 0 | V34: - | W34: - | X34: - | Y34: Rafael Lemes | Z34: 26 | AA34: - | AB34: - | AC34: - | AD34: Rafael Lemes | AE34: 26 | AF34: - | AG34: - | AH34: -
A35: 6º | B35: Alpha | C35: 54 | D35: Alpha | E35: 97 | F35: Delcar | G35: 127 | H35: Clinorte | I35: 137 | J35: Delcar | K35: 215 | L35: Alpha | M35: 271 | N35: Alpha | O35: 317 | P35: AST | Q35: 413 | R35: AST | S35: 440 | T35: AST | U35: 485 | V35: =U$5-U35 -> 126 | W35: =U$17-U35 -> 72 | X35: =U29-U35 -> 1 | Y35: Frigoindaiá | Z35: 528 | AA35: =Z$5-Z35 -> 151 | AB35: =Z$17-Z35 -> 84 | AC35: =Z29-Z35 -> 38 | AD35: SASantiago | AE35: 592 | AF35: =AE$5-AE35 -> 161 | AG35: =AE$17-AE35 -> 76 | AH35: =AE29-AE35 -> 25
B36: Christian Guedes | C36: 15 | D36: Christian Guedes | E36: 15 | F36: Anderson Teixeira | G36: 56 | H36: Raphael Reis | I36: 25 | J36: Anderson Teixeira | K36: 68 | L36: Christian Guedes | M36: 131 | N36: Christian Guedes | O36: 167 | P36: Alexandre Melillo | Q36: 214 | R36: Alexandre Melillo | S36: 223 | T36: Alexandre Melillo | U36: 245 | V36: - | W36: - | X36: - | Y36: Bruno Nosse | Z36: 282 | AA36: - | AB36: - | AC36: - | AD36: Gui Figueiredo | AE36: 356 | AF36: - | AG36: - | AH36: -
B37: Levindo Neto | C37: 0 | D37: Levindo Neto | E37: 15 | F37: Jean Paul | G37: 0 | H37: Jarbas Reis | I37: 62 | J37: Jean Paul | K37: 49 | L37: Levindo Neto | M37: 10 | N37: Levindo Neto | O37: 10 | P37: Renato Martins | Q37: 48 | R37: Renato Martins | S37: 46 | T37: Renato Martins | U37: 58 | V37: - | W37: - | X37: - | Y37: Celso Dantas | Z37: 45 | AA37: - | AB37: - | AC37: - | AD37: Alan Moreira | AE37: 29 | AF37: - | AG37: - | AH37: -
B38: Frederico Papatella | C38: 28 | D38: Frederico Papatella | E38: 45 | F38: Bernardo Gatti | G38: 0 | H38: Gustavo Mourão | I38: 0 | J38: Bernardo Gatti | K38: 0 | L38: Frederico Papatella | M38: 92 | N38: Frederico Papatella | O38: 92 | P38: SSSSSSS | Q38: 59 | R38: SSSSSSS | S38: 59 | T38: SSSSSSS | U38: 59 | V38: - | W38: - | X38: - | Y38: Matheus Azevedo | Z38: 165 | AA38: - | AB38: - | AC38: - | AD38: Samuel Farley | AE38: 186 | AF38: - | AG38: - | AH38: -
B39: Iago Bastos | C39: 11 | D39: Iago Bastos | E39: 22 | F39: Renato Amaral | G39: 30 | H39: Felipe Bouhid | I39: 50 | J39: Renato Amaral | K39: 66 | L39: Iago Bastos | M39: 38 | N39: Iago Bastos | O39: 48 | P39: Ricardo Amaral | Q39: 66 | R39: Ricardo Amaral | S39: 86 | T39: Ricardo Amaral | U39: 97 | V39: - | W39: - | X39: - | Y39: Luiza Mendes | Z39: 36 | AA39: - | AB39: - | AC39: - | AD39: Hugo Denucci | AE39: 21 | AF39: - | AG39: - | AH39: -
B40: XX | D40: XX | F40: Wander Neto | G40: 41 | H40: XXXXXXXX | I40: 0 | J40: Wander Neto | K40: 32 | L40: XX | N40: XX | P40: Rafael Lemes | Q40: 26 | R40: Rafael Lemes | S40: 26 | T40: Rafael Lemes | U40: 26 | V40: - | W40: - | X40: - | Y40: XXXX | Z40: 0 | AA40: - | AB40: - | AC40: - | AD40: X | AF40: - | AG40: - | AH40: -
A41: 7º | B41: Ventura | C41: 50 | D41: SASantiago | E41: 96 | F41: Alpha | G41: 122 | H41: LQN | I41: 136 | J41: SASantiago | K41: 183 | L41: SASantiago | M41: 259 | N41: SASantiago | O41: 311 | P41: SASantiago | Q41: 384 | R41: SASantiago | S41: 395 | T41: SASantiago | U41: 456 | V41: =U$5-U41 -> 155 | W41: =U$17-U41 -> 101 | X41: =U35-U41 -> 29 | Y41: SASantiago | Z41: 524 | AA41: =Z$5-Z41 -> 155 | AB41: =Z$17-Z41 -> 88 | AC41: =Z35-Z41 -> 4 | AD41: Frigoindaiá | AE41: 564 | AF41: =AE$5-AE41 -> 189 | AG41: =AE$17-AE41 -> 104 | AH41: =AE35-AE41 -> 28
B42: Diego Rodrigues | C42: 34 | D42: Gui Figueiredo | E42: 45 | F42: Christian Guedes | G42: 49 | H42: Guilherme Alves | I42: 45 | J42: Gui Figueiredo | K42: 129 | L42: Gui Figueiredo | M42: 167 | N42: Gui Figueiredo | O42: 195 | P42: Gui Figueiredo | Q42: 195 | R42: Gui Figueiredo | S42: 231 | T42: Gui Figueiredo | U42: 272 | V42: - | W42: - | X42: - | Y42: Gui Figueiredo | Z42: 318 | AA42: - | AB42: - | AC42: - | AD42: Bruno Nosse | AE42: 294 | AF42: - | AG42: - | AH42: -
B43: Henry Douglas | C43: 13 | D43: Alan Moreira | E43: 5 | F43: Levindo Neto | G43: 0 | H43: Aparecido Arantes | I43: 15 | J43: Alan Moreira | K43: 10 | L43: Alan Moreira | M43: 24 | N43: Alan Moreira | O43: 24 | P43: Alan Moreira | Q43: 29 | R43: Alan Moreira | S43: 29 | T43: Alan Moreira | U43: 29 | V43: - | W43: - | X43: - | Y43: Alan Moreira | Z43: 29 | AA43: - | AB43: - | AC43: - | AD43: Celso Dantas | AE43: 45 | AF43: - | AG43: - | AH43: -
B44: Gustavo Barros | C44: 0 | D44: Samuel Farley | E44: 42 | F44: Frederico Papatella | G44: 44 | H44: Fernando Mota | I44: 66 | J44: Samuel Farley | K44: 33 | L44: Samuel Farley | M44: 57 | N44: Samuel Farley | O44: 71 | P44: Samuel Farley | Q44: 139 | R44: Samuel Farley | S44: 114 | T44: Samuel Farley | U44: 134 | V44: - | W44: - | X44: - | Y44: Samuel Farley | Z44: 156 | AA44: - | AB44: - | AC44: - | AD44: Matheus Azevedo | AE44: 189 | AF44: - | AG44: - | AH44: -
B45: Victor Marinho | C45: 3 | D45: Hugo Denucci | E45: 4 | F45: Iago Bastos | G45: 29 | H45: João Ferreira | I45: 10 | J45: Hugo Denucci | K45: 11 | L45: Hugo Denucci | M45: 11 | N45: Hugo Denucci | O45: 21 | P45: Hugo Denucci | Q45: 21 | R45: Hugo Denucci | S45: 21 | T45: Hugo Denucci | U45: 21 | V45: - | W45: - | X45: - | Y45: Hugo Denucci | Z45: 21 | AA45: - | AB45: - | AC45: - | AD45: Luiza Mendes | AE45: 36 | AF45: - | AG45: - | AH45: -
B46: XXXXX | C46: 0 | D46: X | F46: XX | H46: XXX | I46: 0 | J46: X | L46: X | N46: X | P46: X | R46: X | T46: X | V46: - | W46: - | X46: - | Y46: X | AA46: - | AB46: - | AC46: - | AD46: XXXX | AE46: 0 | AF46: - | AG46: - | AH46: -
A47: 8º | B47: Delcar | C47: 45 | D47: Ventura | E47: 87 | F47: SASantiago | G47: 114 | H47: SASantiago | I47: 126 | J47: Clinorte | K47: 175 | L47: Clinorte | M47: 211 | N47: Clinorte | O47: 259 | P47: Clinorte | Q47: 343 | R47: Clinorte | S47: 367 | T47: Clinorte | U47: 408 | V47: =U$5-U47 -> 203 | W47: =U$17-U47 -> 149 | X47: =U41-U47 -> 48 | Y47: Clinorte | Z47: 468 | AA47: =Z$5-Z47 -> 211 | AB47: =Z$17-Z47 -> 144 | AC47: =Z41-Z47 -> 56 | AD47: Clinorte | AE47: 516 | AF47: =AE$5-AE47 -> 237 | AG47: =AE$17-AE47 -> 152 | AH47: =AE41-AE47 -> 48
B48: Anderson Teixeira | C48: 0 | D48: Diego Rodrigues | E48: 48 | F48: Gui Figueiredo | G48: 83 | H48: Gui Figueiredo | I48: 91 | J48: Raphael Reis | K48: 25 | L48: Raphael Reis | M48: 40 | N48: Raphael Reis | O48: 62 | P48: Raphael Reis | Q48: 67 | R48: Raphael Reis | S48: 69 | T48: Raphael Reis | U48: 69 | V48: - | W48: - | X48: - | Y48: Raphael Reis | Z48: 93 | AA48: - | AB48: - | AC48: - | AD48: Raphael Reis | AE48: 125 | AF48: - | AG48: - | AH48: -
B49: Jean Paul | C49: 20 | D49: Henry Douglas | E49: 29 | F49: Alan Moreira | G49: 10 | H49: Alan Moreira | I49: 0 | J49: Jarbas Reis | K49: 100 | L49: Jarbas Reis | M49: 104 | N49: Jarbas Reis | O49: 130 | P49: Jarbas Reis | Q49: 202 | R49: Jarbas Reis | S49: 211 | T49: Jarbas Reis | U49: 235 | V49: - | W49: - | X49: - | Y49: Jarbas Reis | Z49: 271 | AA49: - | AB49: - | AC49: - | AD49: Jarbas Reis | AE49: 271 | AF49: - | AG49: - | AH49: -
B50: Bernardo Gatti | C50: 0 | D50: Gustavo Barros | E50: 0 | F50: Samuel Farley | G50: 17 | H50: Samuel Farley | I50: 24 | J50: Gustavo Mourão | K50: 0 | L50: Gustavo Mourão | M50: 0 | N50: Gustavo Mourão | O50: 0 | P50: Gustavo Mourão | Q50: 0 | R50: Gustavo Mourão | S50: 0 | T50: Gustavo Mourão | U50: 0 | V50: - | W50: - | X50: - | Y50: Gustavo Mourão | Z50: 0 | AA50: - | AB50: - | AC50: - | AD50: Gustavo Mourão | AE50: 0 | AF50: - | AG50: - | AH50: -
B51: Renato Amaral | C51: 9 | D51: Victor Marinho | E51: 10 | F51: Hugo Denucci | G51: 4 | H51: Hugo Denucci | I51: 11 | J51: Felipe Bouhid | K51: 50 | L51: Felipe Bouhid | M51: 67 | N51: Felipe Bouhid | O51: 67 | P51: Felipe Bouhid | Q51: 74 | R51: Felipe Bouhid | S51: 87 | T51: Felipe Bouhid | U51: 104 | V51: - | W51: - | X51: - | Y51: Felipe Bouhid | Z51: 104 | AA51: - | AB51: - | AC51: - | AD51: Felipe Bouhid | AE51: 120 | AF51: - | AG51: - | AH51: -
B52: Wander Neto | C52: 16 | D52: XXXXX | E52: 0 | F52: X | H52: X | J52: XXXXXXXX | K52: 0 | L52: XXXXXXXX | M52: 0 | N52: XXXXXXXX | O52: 0 | P52: XXXXXXXX | Q52: 0 | R52: XXXXXXXX | S52: 0 | T52: XXXXXXXX | U52: 0 | V52: - | W52: - | X52: - | Y52: XXXXXXXX | Z52: 0 | AA52: - | AB52: - | AC52: - | AD52: XXXXXXXX | AE52: 0 | AF52: - | AG52: - | AH52: -
A53: 9º | B53: LQN | C53: 32 | D53: LQN | E53: 85 | F53: Ventura | G53: 88 | H53: Ventura | I53: 95 | J53: Ventura | K53: 133 | L53: Ventura | M53: 190 | N53: Ventura | O53: 227 | P53: Ventura | Q53: 284 | R53: Ventura | S53: 306 | T53: Ventura | U53: 352 | V53: =U$5-U53 -> 259 | W53: =U$17-U53 -> 205 | X53: =U47-U53 -> 56 | Y53: Ventura | Z53: 379 | AA53: =Z$5-Z53 -> 300 | AB53: =Z$17-Z53 -> 233 | AC53: =Z47-Z53 -> 89 | AD53: Ventura | AE53: 428 | AF53: =AE$5-AE53 -> 325 | AG53: =AE$17-AE53 -> 240 | AH53: =AE47-AE53 -> 88
B54: Guilherme Alves | C54: 26 | D54: Guilherme Alves | E54: 29 | F54: Diego Rodrigues | G54: 58 | H54: Diego Rodrigues | I54: 48 | J54: Diego Rodrigues | K54: 72 | L54: Diego Rodrigues | M54: 102 | N54: Diego Rodrigues | O54: 116 | P54: Diego Rodrigues | Q54: 133 | R54: Diego Rodrigues | S54: 145 | T54: Diego Rodrigues | U54: 181 | V54: - | W54: - | X54: - | Y54: Diego Rodrigues | Z54: 197 | AA54: - | AB54: - | AC54: - | AD54: Diego Rodrigues | AE54: 233 | AF54: - | AG54: - | AH54: -
B55: Aparecido Arantes | C55: 0 | D55: Aparecido Arantes | E55: 30 | F55: Henry Douglas | G55: 13 | H55: Henry Douglas | I55: 33 | J55: Henry Douglas | K55: 33 | L55: Henry Douglas | M55: 44 | N55: Henry Douglas | O55: 60 | P55: Henry Douglas | Q55: 87 | R55: Henry Douglas | S55: 87 | T55: Henry Douglas | U55: 97 | V55: - | W55: - | X55: - | Y55: Henry Douglas | Z55: 108 | AA55: - | AB55: - | AC55: - | AD55: Henry Douglas | AE55: 121 | AF55: - | AG55: - | AH55: -
B56: Fernando Mota | C56: 1 | D56: Fernando Mota | E56: 21 | F56: Gustavo Barros | G56: 13 | H56: Gustavo Barros | I56: 11 | J56: Gustavo Barros | K56: 24 | L56: Gustavo Barros | M56: 40 | N56: Gustavo Barros | O56: 40 | P56: Gustavo Barros | Q56: 53 | R56: Gustavo Barros | S56: 63 | T56: Gustavo Barros | U56: 63 | V56: - | W56: - | X56: - | Y56: Gustavo Barros | Z56: 63 | AA56: - | AB56: - | AC56: - | AD56: Gustavo Barros | AE56: 63 | AF56: - | AG56: - | AH56: -
B57: João Ferreira | C57: 5 | D57: João Ferreira | E57: 5 | F57: Victor Marinho | G57: 4 | H57: Victor Marinho | I57: 3 | J57: Victor Marinho | K57: 4 | L57: Victor Marinho | M57: 4 | N57: Victor Marinho | O57: 11 | P57: Victor Marinho | Q57: 11 | R57: Victor Marinho | S57: 11 | T57: Victor Marinho | U57: 11 | V57: - | W57: - | X57: - | Y57: Victor Marinho | Z57: 11 | AA57: - | AB57: - | AC57: - | AD57: Victor Marinho | AE57: 11 | AF57: - | AG57: - | AH57: -
B58: XXX | C58: 0 | D58: XXX | E58: 0 | F58: XXXXX | G58: 0 | H58: XXXXX | I58: 0 | J58: XXXXX | K58: 0 | L58: XXXXX | M58: 0 | N58: XXXXX | O58: 0 | P58: XXXXX | Q58: 0 | R58: XXXXX | S58: 0 | T58: XXXXX | U58: 0 | V58: - | W58: - | X58: - | Y58: XXXXX | Z58: 0 | AA58: - | AB58: - | AC58: - | AD58: XXXXX | AE58: 0 | AF58: - | AG58: - | AH58: -

Sheet TROCA KART
A1: PILOTO | B1: 1 ETAPA | C1: 2 ETAPA | D1: 3 ETAPA | E1: 4 ETAPA | F1: 5 ETAPA | G1: 6 ETAPA | H1: 7 ETAPA | I1: 8 ETAPA | J1: 9 ETAPA | K1: 10 ETAPA | L1: 11 ETAPA | M1: 12 ETAPA | N1: Troca
A2: Alan Moreira | N2: 0
A3: Alexandre Melillo | L3: TROCA | N3: 1
A4: Anderson Teixeira | J4: TROCA | N4: 1
A5: Aparecido Arantes | N5: 0
A6: Bernardo Gatti | G6: TROCA | N6: 1
A7: Bruno Nosse | D7: TROCA | F7: TROCA | K7: TROCA | M7: TROCA | N7: 4
A8: Caetano | N8: 0
A9: Celso Dantas | N9: 0
A10: Christian Guedes | B10: TROCA | D10: TROCA | N10: 2
A11: Diego Rodrigues | K11: TROCA | N11: 1
A12: Délcio Ragazzi | N12: 0
A13: Fernando Mota | N13: 0
A14: Frederico Papatella | D14: TROCA | E14: TROCA | F14: TROCA | G14: TROCA | N14: 4
A15: Gui Figueiredo | L15: TROCA | N15: 1
A16: Guilherme Alves | J16: TROCA | M16: TROCA | N16: 2
A17: Gustavo Barros | N17: 0
A18: Gustavo Mourão | N18: 0
A19: Gustavo Pereira | N19: 0
A20: Henry Douglas | C20: TROCA | E20: TROCA | G20: TROCA | N20: 3
A21: Hugo Denucci | N21: 0
A22: Iago Bastos | N22: 0
A23: Jarbas Reis | B23: TROCA | E23: TROCA | N23: 2
A24: Jean Paul | J24: TROCA | N24: 1
A25: João Ferreira | N25: 0
A26: Levindo Neto | N26: 0
A27: Lucio Chequer | N27: 0
A28: Luiza Mendes | B28: TROCA | N28: 1
A29: Matheus Azevedo | C29: TROCA | D29: TROCA | N29: 2
A30: Rafael Lemes | N30: 0
A31: Raphael Reis | B31: TROCA | C31: TROCA | D31: TROCA | M31: TROCA | N31: 4
A32: Renato Amaral | C32: TROCA | G32: TROCA | J32: TROCA | N32: 3
A33: Renato Martins | D33: TROCA | N33: 1
A34: Ricardo Amaral | N34: 0
A35: Samuel Farley | D35: TROCA | F35: TROCA | N35: 2
A36: Victor Marinho | N36: 0
A37: Vitor Gatti | F37: TROCA | N37: 1
A38: Wander Neto | F38: TROCA | N38: 1
A39: Wesley Canuto | N39: 0
N40: 0
N41: 0
N42: 0
N43: 0
N44: 0
N45: 0
N46: 0

Sheet PRESENÇAS
A1: PILOTO | B1: 1 ETAPA | C1: 2 ETAPA | D1: 3 ETAPA | E1: 4 ETAPA | F1: 5 ETAPA | G1: 6 ETAPA | H1: 7 ETAPA | I1: 8 ETAPA | J1: 9 ETAPA | K1: 10 ETAPA | L1: 11 ETAPA | M1: 12 ETAPA | N1: Faltou | O1: PUNIÇÕES
A2: Alan Moreira | B2: Faltou | C2: ok | D2: ok | E2: Faltou | F2: Faltou | G2: ok | H2: Faltou | I2: Faltou | J2: Faltou | K2: Faltou | L2: Faltou | M2: Faltou | N2: 9 | O2: 0
A3: Alexandre Melillo | B3: ok | C3: ok | D3: ok | E3: ok | F3: ok | G3: ok | H3: ok | I3: ok | J3: ok | K3: ok | L3: ok | M3: ok | N3: 0 | O3: 0
A4: Anderson Teixeira | B4: Faltou | C4: ok | D4: ok | E4: ok | F4: ok | G4: ok | H4: ok | I4: ok | J4: ok | K4: ok | L4: ok | M4: ok | N4: 1 | O4: 1
A5: Aparecido Arantes | B5: Faltou | C5: ok | D5: ok | E5: ok | F5: Faltou | G5: ok | H5: Faltou | I5: ok | J5: ok | K5: ok | L5: Faltou | M5: ok | N5: 4 | O5: 0
A6: Bernardo Gatti | B6: ok | C6: ok | D6: ok | E6: Faltou | F6: ok | G6: ok | H6: ok | I6: ok | J6: ok | K6: ok | L6: Faltou | M6: ok | N6: 2 | O6: 2
A7: Bruno Nosse | B7: ok | C7: ok | D7: ok | E7: ok | F7: ok | G7: ok | H7: ok | I7: ok | J7: ok | K7: ok | L7: ok | M7: ok | N7: 0 | O7: 0
A8: Felipe Bouhid | B8: Faltou | C8: Faltou | D8: Faltou | E8: Faltou | F8: Faltou | G8: Faltou | H8: Faltou | I8: ok | J8: ok | K8: ok | L8: Faltou | M8: ok | N8: 8 | O8: 1
A9: Celso Dantas | B9: ok | C9: ok | D9: Faltou | E9: Faltou | F9: Faltou | G9: Faltou | H9: Faltou | I9: Faltou | J9: Faltou | K9: Faltou | L9: ok | M9: Faltou | N9: 9 | O9: 0
A10: Christian Guedes | B10: ok | C10: ok | D10: ok | E10: ok | F10: ok | G10: ok | H10: ok | I10: ok | J10: ok | K10: ok | L10: ok | M10: ok | N10: 0 | O10: 0
A11: Diego Rodrigues | B11: ok | C11: ok | D11: ok | E11: ok | F11: Faltou | G11: ok | H11: ok | I11: ok | J11: ok | K11: ok | L11: Faltou | M11: ok | N11: 2 | O11: 2
A12: SSSSSSS | B12: Faltou | C12: Faltou | D12: Faltou | E12: Faltou | F12: Faltou | G12: Faltou | H12: Faltou | I12: Faltou | J12: Faltou | K12: Faltou | L12: Faltou | M12: Faltou | N12: 12 | O12: 0
A13: Fernando Mota | B13: ok | C13: ok | D13: ok | E13: ok | F13: ok | G13: ok | H13: ok | I13: ok | J13: ok | K13: ok | L13: ok | M13: ok | N13: 0 | O13: 0
A14: Frederico Papatella | B14: ok | C14: ok | D14: ok | E14: ok | F14: ok | G14: ok | H14: Faltou | I14: ok | J14: ok | K14: ok | L14: ok | M14: ok | N14: 1 | O14: 1
A15: Gui Figueiredo | B15: ok | C15: Faltou | D15: ok | E15: ok | F15: ok | G15: ok | H15: Faltou | I15: Faltou | J15: ok | K15: ok | L15: ok | M15: ok | N15: 3 | O15: 0
A16: Guilherme Alves | B16: ok | C16: ok | D16: ok | E16: Faltou | F16: ok | G16: ok | H16: ok | I16: ok | J16: ok | K16: ok | L16: Faltou | M16: ok | N16: 2 | O16: 1
A17: Gustavo Barros | B17: Faltou | C17: Faltou | D17: ok | E17: ok | F17: Faltou | G17: ok | H17: ok | I17: Faltou | J17: ok | K17: Faltou | L17: Faltou | M17: Faltou | N17: 7 | O17: 0
A18: Gustavo Mourão | B18: Faltou | C18: Faltou | D18: Faltou | E18: Faltou | F18: Faltou | G18: Faltou | H18: Faltou | I18: Faltou | J18: Faltou | K18: Faltou | L18: Faltou | M18: Faltou | N18: 12 | O18: 0
A19: Gustavo Pereira | B19: ok | C19: ok | D19: ok | E19: Faltou | F19: Faltou | G19: Faltou | H19: Faltou | I19: Faltou | J19: Faltou | K19: Faltou | L19: Faltou | M19: Faltou | N19: 9 | O19: 0
A20: Henry Douglas | B20: ok | C20: ok | D20: ok | E20: ok | F20: ok | G20: ok | H20: ok | I20: ok | J20: ok | K20: ok | L20: ok | M20: ok | N20: 0 | O20: 1
A21: Hugo Denucci | B21: ok | C21: Faltou | D21: Faltou | E21: ok | F21: ok | G21: Faltou | H21: Faltou | I21: Faltou | J21: Faltou | K21: Faltou | L21: Faltou | M21: Faltou | N21: 9 | O21: 0
A22: Iago Bastos | B22: ok | C22: ok | D22: ok | E22: Faltou | F22: ok | G22: ok | H22: ok | I22: ok | J22: ok | K22: Faltou | L22: ok | M22: Faltou | N22: 3 | O22: 0
A23: Jarbas Reis | B23: ok | C23: ok | D23: ok | E23: ok | F23: ok | G23: ok | H23: ok | I23: ok | J23: ok | K23: ok | L23: ok | M23: Faltou | N23: 1 | O23: 0
A24: Jean Paul | B24: ok | C24: Faltou | D24: ok | E24: ok | F24: ok | G24: ok | H24: ok | I24: ok | J24: ok | K24: ok | L24: ok | M24: ok | N24: 1 | O24: 0
A25: João Ferreira | B25: ok | C25: ok | D25: ok | E25: ok | F25: ok | G25: ok | H25: Faltou | I25: Faltou | J25: Faltou | K25: Faltou | L25: Faltou | M25: Faltou | N25: 6 | O25: 0
A26: Levindo Neto | B26: ok | C26: ok | D26: ok | E26: ok | F26: ok | G26: ok | H26: Faltou | I26: Faltou | J26: Faltou | K26: ok | L26: ok | M26: Faltou | N26: 4 | O26: 1
A27: Lucio Chequer | B27: ok | C27: ok | D27: Faltou | E27: ok | F27: ok | G27: ok | H27: ok | I27: ok | J27: ok | K27: ok | L27: Faltou | M27: ok | N27: 2 | O27: 1
A28: Luiza Mendes | B28: ok | C28: Faltou | D28: ok | E28: Faltou | F28: Faltou | G28: Faltou | H28: Faltou | I28: Faltou | J28: Faltou | K28: Faltou | L28: Faltou | M28: Faltou | N28: 10 | O28: 0
A29: Matheus Azevedo | B29: ok | C29: ok | D29: ok | E29: ok | F29: ok | G29: ok | H29: ok | I29: ok | J29: ok | K29: Faltou | L29: Faltou | M29: Faltou | N29: 3 | O29: 2
A30: Rafael Lemes | B30: ok | C30: Faltou | D30: ok | E30: Faltou | F30: ok | G30: Faltou | H30: Faltou | I30: Faltou | J30: Faltou | K30: Faltou | L30: Faltou | M30: Faltou | N30: 9 | O30: 0
A31: Raphael Reis | B31: ok | C31: ok | D31: ok | E31: Faltou | F31: Faltou | G31: ok | H31: ok | I31: Faltou | J31: ok | K31: Faltou | L31: ok | M31: ok | N31: 4 | O31: 0
A32: Renato Amaral | B32: ok | C32: ok | D32: ok | E32: ok | F32: ok | G32: ok | H32: ok | I32: ok | J32: ok | K32: ok | L32: ok | M32: ok | N32: 0 | O32: 1
A33: Renato Martins | B33: ok | C33: ok | D33: ok | E33: ok | F33: Faltou | G33: ok | H33: ok | I33: Faltou | J33: ok | K33: ok | L33: ok | M33: ok | N33: 2 | O33: 1
A34: Ricardo Amaral | B34: ok | C34: ok | D34: ok | E34: Faltou | F34: Faltou | G34: Faltou | H34: ok | I34: ok | J34: ok | K34: ok | L34: ok | M34: ok | N34: 3 | O34: 1
A35: Samuel Farley | B35: ok | C35: ok | D35: ok | E35: ok | F35: ok | G35: ok | H35: ok | I35: ok | J35: ok | K35: ok | L35: ok | M35: ok | N35: 0 | O35: 0
A36: Victor Marinho | B36: ok | C36: ok | D36: ok | E36: ok | F36: ok | G36: ok | H36: Faltou | I36: Faltou | J36: Faltou | K36: Faltou | L36: Faltou | M36: Faltou | N36: 6 | O36: 1
A37: Vitor Gatti | B37: ok | C37: ok | D37: ok | E37: ok | F37: ok | G37: ok | H37: ok | I37: ok | J37: ok | K37: ok | L37: Faltou | M37: ok | N37: 1 | O37: 3
A38: Wander Neto | B38: ok | C38: ok | D38: ok | E38: ok | F38: ok | G38: ok | H38: ok | I38: ok | J38: ok | K38: ok | L38: Faltou | M38: Faltou | N38: 2 | O38: 1
A39: Wesley Canuto | B39: ok | C39: ok | D39: ok | E39: ok | F39: ok | G39: ok | H39: ok | I39: ok | J39: ok | K39: ok | L39: ok | M39: ok | N39: 0 | O39: 0
N40: 0 | O40: 0
N41: 0 | O41: 0
N42: 0 | O42: 0
N43: 0 | O43: 0
N44: 0 | O44: 0
N45: 0 | O45: 0
N46: 0.3223684211

Sheet TABELA
A1: 2022 | E1: OK | I1: OK | M1: OK | Q1: OK | U1: OK | Y1: OK | AC1: OK | AG1: OK | AK1: OK | AO1: OK | AS1: OK | AW1: OK
D2: 1ª etapa | H2: 2ª etapa | L2: 3ª etapa | P2: 4ª etapa | T2: 5ª etapa | X2: 6ª etapa | AB2: 7ª etapa | AF2: 8ª etapa | AJ2: 9ª etapa | AN2: 10ª etapa | AR2: 11ª etapa | AV2: 12ª etapa
B4: Nome do (a) Piloto (a) | C4: Pontuação Geral | D4: Posição | E4: Pontos | F4: Bônus | G4: Penalidade | H4: Posição | I4: Pontos | J4: Bônus | K4: Penalidade | L4: Posição | M4: Pontos | N4: Bônus | O4: Penalidade | P4: Posição | Q4: Pontos | R4: Bônus | S4: Penalidade | T4: Posição | U4: Pontos | V4: Bônus | W4: Penalidade | X4: Posição | Y4: Pontos | Z4: Bônus | AA4: Penalidade | AB4: Posição | AC4: Pontos | AD4: Bônus | AE4: Penalidade | AF4: Posição | AG4: Pontos | AH4: Bônus | AI4: Penalidade | AJ4: Posição | AK4: Pontos | AL4: Bônus | AM4: Penalidade | AN4: Posição | AO4: Pontos | AP4: Bônus | AQ4: Penalidade | AR4: Posição | AS4: Pontos | AT4: Bônus | AU4: Penalidade | AV4: Posição | AW4: Pontos | AX4: Bônus | AY4: Penalidade | AZ4: 1º LUGAR | BA4: 2º LUGAR | BB4: 3º LUGAR | BC4: 4º LUGAR | BD4: 5º LUGAR | BE4: 6º LUGAR | BF4: 7º LUGAR | BG4: 8º LUGAR | BH4: 9º LUGAR | BI4: 10º LUGAR | BJ4: 11º LUGAR | BK4: 12º LUGAR | BL4: 13º LUGAR | BM4: 14º LUGAR | BN4: 15º LUGAR | BO4: 16º LUGAR | BP4: 17º LUGAR | BQ4: 18º LUGAR | BR4: 19º LUGAR | BS4: 20º LUGAR | BT4: 21º LUGAR | BU4: 22º LUGAR | BV4: 23º LUGAR | BW4: 24º LUGAR | BX4: 25º LUGAR | BY4: 26º LUGAR | BZ4: 27º LUGAR | CA4: 28º LUGAR | CB4: 29º LUGAR | CC4: 30º LUGAR | CD4: 31º LUGAR | CE4: 32º LUGAR | CF4: 33º LUGAR | CG4: 34º LUGAR | CH4: 35º LUGAR | CI4: 36º LUGAR | CJ4: 37º LUGAR | CK4: 38º LUGAR | CL4: 39º LUGAR | CM4: 40º LUGAR | CN4: 41º LUGAR
A5: 1 | B5: Alan Moreira | C5: 9 | E5: 0 | H5: 26 | I5: 5 | L5: 21 | M5: 10 | Q5: 0 | S5: -5 | U5: 0 | W5: -5 | X5: 17 | Y5: 14 | AC5: 0 | AE5: -5 | AG5: 0 | AK5: 0 | AO5: 0 | AS5: 0 | AU5: -5 | AW5: 0 | AZ5: 0 | BA5: 0 | BB5: 0 | BC5: 0 | BD5: 0 | BE5: 0 | BF5: 0 | BG5: 0 | BH5: 0 | BI5: 0 | BJ5: 0 | BK5: 0 | BL5: 0 | BM5: 0 | BN5: 0 | BO5: 0 | BP5: 1 | BQ5: 0 | BR5: 0 | BS5: 0 | BT5: 1 | BU5: 0 | BV5: 0 | BW5: 0 | BX5: 0 | BY5: 1 | BZ5: 0 | CA5: 0 | CB5: 0 | CC5: 0 | CD5: 0 | CE5: 0 | CF5: 0 | CG5: 0 | CH5: 0 | CI5: 0 | CJ5: 0 | CK5: 0 | CL5: 0 | CM5: 0 | CN5: 0
A6: 2 | B6: Alexandre Melillo | C6: 366 | D6: 2 | E6: 41 | F6: 1 | H6: 9 | I6: 26 | L6: 7 | M6: 30 | P6: 4 | Q6: 36 | T6: 9 | U6: 26 | X6: 4 | Y6: 36 | AB6: 13 | AC6: 18 | AF6: 7 | AG6: 30 | AJ6: 1 | AK6: 45 | AN6: 11 | AO6: 22 | AR6: 3 | AS6: 38 | AV6: 14 | AW6: 17 | AZ6: 1 | BA6: 1 | BB6: 1 | BC6: 2 | BD6: 0 | BE6: 0 | BF6: 2 | BG6: 0 | BH6: 2 | BI6: 0 | BJ6: 1 | BK6: 0 | BL6: 1 | BM6: 1 | BN6: 0 | BO6: 0 | BP6: 0 | BQ6: 0 | BR6: 0 | BS6: 0 | BT6: 0 | BU6: 0 | BV6: 0 | BW6: 0 | BX6: 0 | BY6: 0 | BZ6: 0 | CA6: 0 | CB6: 0 | CC6: 0 | CD6: 0 | CE6: 0 | CF6: 0 | CG6: 0 | CH6: 0 | CI6: 0 | CJ6: 0 | CK6: 0 | CL6: 0 | CM6: 0 | CN6: 0
A7: 3 | B7: Anderson Teixeira | C7: 286 | E7: 0 | H7: 4 | I7: 36 | L7: 12 | M7: 20 | P7: 10 | Q7: 24 | T7: 10 | U7: 24 | X7: 2 | Y7: 41 | AB7: 2 | AC7: 41 | AF7: 21 | AG7: 10 | AI7: SIM | AJ7: 10 | AK7: 24 | AN7: 22 | AO7: 9 | AR7: 6 | AS7: 32 | AV7: 10 | AW7: 24 | AX7: 1 | AZ7: 0 | BA7: 2 | BB7: 0 | BC7: 1 | BD7: 0 | BE7: 1 | BF7: 0 | BG7: 0 | BH7: 0 | BI7: 4 | BJ7: 0 | BK7: 1 | BL7: 0 | BM7: 0 | BN7: 0 | BO7: 0 | BP7: 0 | BQ7: 0 | BR7: 0 | BS7: 0 | BT7: 1 | BU7: 1 | BV7: 0 | BW7: 0 | BX7: 0 | BY7: 0 | BZ7: 0 | CA7: 0 | CB7: 0 | CC7: 0 | CD7: 0 | CE7: 0 | CF7: 0 | CG7: 0 | CH7: 0 | CI7: 0 | CJ7: 0 | CK7: 0 | CL7: 0 | CM7: 0 | CN7: 0
A8: 4 | B8: Aparecido Arantes | C8: 114 | E8: 0 | H8: 7 | I8: 30 | L8: 31 | M8: 1 | P8: 16 | Q8: 15 | S8: -5 | U8: 0 | X8: 14 | Y8: 17 | AC8: 0 | AF8: 16 | AG8: 15 | AJ8: 16 | AK8: 15 | AN8: 16 | AO8: 15 | AS8: 0 | AV8: 20 | AW8: 11 | AZ8: 0 | BA8: 0 | BB8: 0 | BC8: 0 | BD8: 0 | BE8: 0 | BF8: 1 | BG8: 0 | BH8: 0 | BI8: 0 | BJ8: 0 | BK8: 0 | BL8: 0 | BM8: 1 | BN8: 0 | BO8: 4 | BP8: 0 | BQ8: 0 | BR8: 0 | BS8: 1 | BT8: 0 | BU8: 0 | BV8: 0 | BW8: 0 | BX8: 0 | BY8: 0 | BZ8: 0 | CA8: 0 | CB8: 0 | CC8: 0 | CD8: 1 | CE8: 0 | CF8: 0 | CG8: 0 | CH8: 0 | CI8: 0 | CJ8: 0 | CK8: 0 | CL8: 0 | CM8: 0 | CN8: 0
A9: 5 | B9: Bernardo Gatti | C9: 85 | D9: 25 | E9: 6 | H9: 25 | I9: 6 | L9: 28 | M9: 3 | Q9: 0 | S9: -5 | T9: 28 | U9: 3 | W9: SIM | X9: 19 | Y9: 12 | AB9: 17 | AC9: 14 | AF9: 11 | AG9: 22 | AJ9: 19 | AK9: 12 | AN9: 47 | AO9: 0 | AQ9: SIM | AS9: 0 | AV9: 19 | AW9: 12 | AZ9: 0 | BA9: 0 | BB9: 0 | BC9: 0 | BD9: 0 | BE9: 0 | BF9: 0 | BG9: 0 | BH9: 0 | BI9: 0 | BJ9: 1 | BK9: 0 | BL9: 0 | BM9: 0 | BN9: 0 | BO9: 0 | BP9: 1 | BQ9: 0 | BR9: 3 | BS9: 0 | BT9: 0 | BU9: 0 | BV9: 0 | BW9: 0 | BX9: 2 | BY9: 0 | BZ9: 0 | CA9: 2 | CB9: 0 | CC9: 0 | CD9: 0 | CE9: 0 | CF9: 0 | CG9: 0 | CH9: 0 | CI9: 0 | CJ9: 0 | CK9: 0 | CL9: 0 | CM9: 0 | CN9: 0
A10: 6 | B10: Bruno Nosse | C10: 321 | D10: 6 | E10: 32 | H10: 10 | I10: 24 | L10: 2 | M10: 41 | N10: 1 | P10: 5 | Q10: 34 | T10: 18 | U10: 13 | X10: 8 | Y10: 28 | AB10: 1 | AC10: 45 | AF10: 19 | AG10: 12 | AJ10: 13 | AK10: 18 | AN10: 3 | AO10: 38 | AR10: 9 | AS10: 26 | AV10: 22 | AW10: 9 | AZ10: 1 | BA10: 1 | BB10: 1 | BC10: 0 | BD10: 1 | BE10: 1 | BF10: 0 | BG10: 1 | BH10: 1 | BI10: 1 | BJ10: 0 | BK10: 0 | BL10: 1 | BM10: 0 | BN10: 0 | BO10: 0 | BP10: 0 | BQ10: 1 | BR10: 1 | BS10: 0 | BT10: 0 | BU10: 1 | BV10: 0 | BW10: 0 | BX10: 0 | BY10: 0 | BZ10: 0 | CA10: 0 | CB10: 0 | CC10: 0 | CD10: 0 | CE10: 0 | CF10: 0 | CG10: 0 | CH10: 0 | CI10: 0 | CJ10: 0 | CK10: 0 | CL10: 0 | CM10: 0 | CN10: 0
A11: 7 | B11: Felipe Bouhid | C11: 53 | E11: 0 | I11: 0 | M11: 0 | Q11: 0 | U11: 0 | Y11: 0 | AC11: 0 | AF11: 24 | AG11: 7 | AI11: SIM | AJ11: 18 | AK11: 13 | AN11: 14 | AO11: 17 | AS11: 0 | AV11: 15 | AW11: 16 | AZ11: 0 | BA11: 0 | BB11: 0 | BC11: 0 | BD11: 0 | BE11: 1 | BF11: 0 | BG11: 0 | BH11: 0 | BI11: 0 | BJ11: 0 | BK11: 0 | BL11: 1 | BM11: 2 | BN11: 1 | BO11: 0 | BP11: 0 | BQ11: 1 | BR11: 0 | BS11: 0 | BT11: 0 | BU11: 0 | BV11: 0 | BW11: 1 | BX11: 0 | BY11: 0 | BZ11: 0 | CA11: 0 | CB11: 0 | CC11: 0 | CD11: 0 | CE11: 0 | CF11: 0 | CG11: 0 | CH11: 0 | CI11: 0 | CJ11: 0 | CK11: 0 | CL11: 0 | CM11: 0 | CN11: 0
A12: 8 | B12: Celso Dantas | C12: 40 | D12: 24 | E12: 7 | H12: 11 | I12: 22 | M12: 0 | Q12: 0 | U12: 0 | Y12: 0 | AC12: 0 | AG12: 0 | AK12: 0 | AO12: 0 | AR12: 15 | AS12: 16 | AW12: 0 | AY12: -5 | AZ12: 0 | BA12: 0 | BB12: 0 | BC12: 0 | BD12: 0 | BE12: 0 | BF12: 0 | BG12: 0 | BH12: 0 | BI12: 0 | BJ12: 1 | BK12: 0 | BL12: 0 | BM12: 0 | BN12: 1 | BO12: 0 | BP12: 0 | BQ12: 0 | BR12: 0 | BS12: 0 | BT12: 0 | BU12: 0 | BV12: 0 | BW12: 1 | BX12: 0 | BY12: 0 | BZ12: 0 | CA12: 0 | CB12: 0 | CC12: 0 | CD12: 0 | CE12: 0 | CF12: 0 | CG12: 0 | CH12: 0 | CI12: 0 | CJ12: 0 | CK12: 0 | CL12: 0 | CM12: 0 | CN12: 0
A13: 9 | B13: Christian Guedes | C13: 389 | D13: 16 | E13: 15 | H13: 21 | I13: 10 | L13: 5 | M13: 34 | P13: 2 | Q13: 41 | T13: 2 | U13: 41 | X13: 13 | Y13: 18 | AB13: 4 | AC13: 36 | AF13: 2 | AG13: 41 | AJ13: 2 | AK13: 41 | AN13: 7 | AO13: 30 | AR13: 2 | AS13: 41 | AV13: 2 | AW13: 41 | AZ13: 0 | BA13: 6 | BB13: 0 | BC13: 1 | BD13: 1 | BE13: 0 | BF13: 1 | BG13: 0 | BH13: 0 | BI13: 0 | BJ13: 0 | BK13: 0 | BL13: 1 | BM13: 0 | BN13: 0 | BO13: 1 | BP13: 0 | BQ13: 0 | BR13: 0 | BS13: 0 | BT13: 1 | BU13: 0 | BV13: 0 | BW13: 0 | BX13: 0 | BY13: 0 | BZ13: 0 | CA13: 0 | CB13: 0 | CC13: 0 | CD13: 0 | CE13: 0 | CF13: 0 | CG13: 0 | CH13: 0 | CI13: 0 | CJ13: 0 | CK13: 0 | CL13: 0 | CM13: 0 | CN13: 0
A14: 10 | B14: Diego Rodrigues | C14: 233 | D14: 5 | E14: 34 | H14: 17 | I14: 14 | K14: SIM | L14: 10 | M14: 24 | P14: 17 | Q14: 14 | U14: 0 | X14: 7 | Y14: 30 | AB14: 31 | AC14: 1 | AE14: SIM | AF14: 15 | AG14: 16 | AJ14: 8 | AK14: 28 | AN14: 4 | AO14: 36 | AS14: 0 | AV14: 4 | AW14: 36 | AZ14: 0 | BA14: 0 | BB14: 0 | BC14: 2 | BD14: 1 | BE14: 0 | BF14: 1 | BG14: 1 | BH14: 0 | BI14: 1 | BJ14: 0 | BK14: 0 | BL14: 0 | BM14: 0 | BN14: 1 | BO14: 0 | BP14: 2 | BQ14: 0 | BR14: 0 | BS14: 0 | BT14: 0 | BU14: 0 | BV14: 0 | BW14: 0 | BX14: 0 | BY14: 0 | BZ14: 0 | CA14: 0 | CB14: 0 | CC14: 0 | CD14: 1 | CE14: 0 | CF14: 0 | CG14: 0 | CH14: 0 | CI14: 0 | CJ14: 0 | CK14: 0 | CL14: 0 | CM14: 0 | CN14: 0
A15: 11 | B15: SSSSSSS | C15: 0 | E15: 0 | I15: 0 | M15: 0 | Q15: 0 | U15: 0 | Y15: 0 | AC15: 0 | AG15: 0 | AK15: 0 | AO15: 0 | AS15: 0 | AW15: 0 | AZ15: 0 | BA15: 0 | BB15: 0 | BC15: 0 | BD15: 1 | BE15: 0 | BF15: 0 | BG15: 0 | BH15: 0 | BI15: 0 | BJ15: 0 | BK15: 0 | BL15: 1 | BM15: 0 | BN15: 0 | BO15: 0 | BP15: 0 | BQ15: 0 | BR15: 0 | BS15: 0 | BT15: 0 | BU15: 0 | BV15: 0 | BW15: 1 | BX15: 0 | BY15: 0 | BZ15: 0 | CA15: 0 | CB15: 0 | CC15: 0 | CD15: 0 | CE15: 0 | CF15: 0 | CG15: 0 | CH15: 0 | CI15: 0 | CJ15: 0 | CK15: 0 | CL15: 0 | CM15: 0 | CN15: 0
A16: 12 | B16: Fernando Mota | C16: 349 | D16: 31 | E16: 1 | H16: 12 | I16: 20 | L16: 8 | M16: 28 | P16: 3 | Q16: 38 | T16: 1 | U16: 45 | X16: 1 | Y16: 45 | Z16: 1 | AB16: 22 | AC16: 9 | AF16: 4 | AG16: 36 | AJ16: 3 | AK16: 38 | AN16: 8 | AO16: 28 | AR16: 5 | AS16: 34 | AV16: 9 | AW16: 26 | AZ16: 2 | BA16: 0 | BB16: 2 | BC16: 1 | BD16: 1 | BE16: 0 | BF16: 0 | BG16: 2 | BH16: 1 | BI16: 0 | BJ16: 0 | BK16: 1 | BL16: 0 | BM16: 0 | BN16: 0 | BO16: 0 | BP16: 0 | BQ16: 0 | BR16: 0 | BS16: 0 | BT16: 0 | BU16: 1 | BV16: 0 | BW16: 0 | BX16: 0 | BY16: 0 | BZ16: 0 | CA16: 0 | CB16: 0 | CC16: 0 | CD16: 1 | CE16: 0 | CF16: 0 | CG16: 0 | CH16: 0 | CI16: 0 | CJ16: 0 | CK16: 0 | CL16: 0 | CM16: 0 | CN16: 0
A17: 13 | B17: Frederico Papatella | C17: 190 | D17: 8 | E17: 28 | H17: 14 | I17: 17 | L17: 15 | M17: 16 | P17: 7 | Q17: 30 | T17: 13 | U17: 18 | X17: 35 | Y17: 1 | AA17: SIM | AC17: 0 | AF17: 18 | AG17: 13 | AJ17: 14 | AK17: 17 | AN17: 18 | AO17: 13 | AR17: 16 | AS17: 15 | AV17: 11 | AW17: 22 | AZ17: 0 | BA17: 0 | BB17: 0 | BC17: 0 | BD17: 0 | BE17: 0 | BF17: 1 | BG17: 1 | BH17: 0 | BI17: 0 | BJ17: 1 | BK17: 0 | BL17: 1 | BM17: 2 | BN17: 1 | BO17: 1 | BP17: 0 | BQ17: 2 | BR17: 0 | BS17: 0 | BT17: 0 | BU17: 0 | BV17: 0 | BW17: 0 | BX17: 0 | BY17: 0 | BZ17: 0 | CA17: 0 | CB17: 0 | CC17: 0 | CD17: 0 | CE17: 0 | CF17: 0 | CG17: 0 | CH17: 1 | CI17: 0 | CJ17: 0 | CK17: 0 | CL17: 0 | CM17: 0 | CN17: 0
A18: 14 | B18: Gui Figueiredo | C18: 356 | D18: 1 | E18: 45 | I18: 0 | L18: 3 | M18: 38 | P18: 1 | Q18: 45 | R18: 1 | T18: 8 | U18: 28 | X18: 3 | Y18: 38 | AC18: 0 | AG18: 0 | AJ18: 4 | AK18: 36 | AN18: 2 | AO18: 41 | AR18: 1 | AS18: 45 | AT18: 1 | AV18: 3 | AW18: 38 | AZ18: 3 | BA18: 1 | BB18: 3 | BC18: 1 | BD18: 0 | BE18: 0 | BF18: 0 | BG18: 1 | BH18: 0 | BI18: 0 | BJ18: 0 | BK18: 0 | BL18: 0 | BM18: 0 | BN18: 0 | BO18: 0 | BP18: 0 | BQ18: 0 | BR18: 0 | BS18: 0 | BT18: 0 | BU18: 0 | BV18: 0 | BW18: 0 | BX18: 0 | BY18: 0 | BZ18: 0 | CA18: 0 | CB18: 0 | CC18: 0 | CD18: 0 | CE18: 0 | CF18: 0 | CG18: 0 | CH18: 0 | CI18: 0 | CJ18: 0 | CK18: 0 | CL18: 0 | CM18: 0 | CN18: 0
A19: 15 | B19: Guilherme Alves | C19: 287 | D19: 9 | E19: 26 | H19: 28 | I19: 3 | L19: 1 | M19: 45 | Q19: 0 | T19: 4 | U19: 36 | X19: 5 | Y19: 34 | AB19: 10 | AC19: 24 | AF19: 3 | AG19: 38 | AJ19: 35 | AK19: 1 | AM19: SIM | AN19: 5 | AO19: 34 | AP19: 1 | AS19: 0 | AV19: 1 | AW19: 45 | AZ19: 2 | BA19: 0 | BB19: 1 | BC19: 1 | BD19: 2 | BE19: 0 | BF19: 0 | BG19: 0 | BH19: 1 | BI19: 1 | BJ19: 0 | BK19: 0 | BL19: 0 | BM19: 0 | BN19: 0 | BO19: 0 | BP19: 0 | BQ19: 0 | BR19: 0 | BS19: 0 | BT19: 0 | BU19: 0 | BV19: 0 | BW19: 0 | BX19: 0 | BY19: 0 | BZ19: 0 | CA19: 1 | CB19: 0 | CC19: 0 | CD19: 0 | CE19: 0 | CF19: 0 | CG19: 0 | CH19: 1 | CI19: 0 | CJ19: 0 | CK19: 0 | CL19: 0 | CM19: 0 | CN19: 0
A20: 16 | B20: Gustavo Barros | C20: 53 | E20: 0 | I20: 0 | L20: 18 | M20: 13 | P20: 20 | Q20: 11 | S20: -5 | U20: 0 | X20: 15 | Y20: 16 | AB20: 18 | AC20: 13 | AG20: 0 | AJ20: 21 | AK20: 10 | AO20: 0 | AS20: 0 | AU20: -5 | AW20: 0 | AZ20: 0 | BA20: 0 | BB20: 0 | BC20: 0 | BD20: 0 | BE20: 0 | BF20: 0 | BG20: 0 | BH20: 0 | BI20: 0 | BJ20: 0 | BK20: 0 | BL20: 0 | BM20: 0 | BN20: 1 | BO20: 0 | BP20: 0 | BQ20: 2 | BR20: 0 | BS20: 1 | BT20: 1 | BU20: 0 | BV20: 0 | BW20: 0 | BX20: 0 | BY20: 0 | BZ20: 0 | CA20: 0 | CB20: 0 | CC20: 0 | CD20: 0 | CE20: 0 | CF20: 0 | CG20: 0 | CH20: 0 | CI20: 0 | CJ20: 0 | CK20: 0 | CL20: 0 | CM20: 0 | CN20: 0
A21: 17 | B21: Gustavo Mourão | C21: 0 | E21: 0 | G21: -5 | I21: 0 | K21: -5 | M21: 0 | Q21: 0 | S21: -5 | U21: 0 | W21: -5 | Y21: 0 | AA21: -5 | AC21: 0 | AE21: -5 | AG21: 0 | AI21: -5 | AK21: 0 | AM21: -5 | AO21: 0 | AQ21: -5 | AS21: 0 | AU21: -5 | AW21: 0 | AY21: -5 | AZ21: 0 | BA21: 0 | BB21: 0 | BC21: 0 | BD21: 0 | BE21: 0 | BF21: 0 | BG21: 0 | BH21: 0 | BI21: 0 | BJ21: 0 | BK21: 0 | BL21: 0 | BM21: 0 | BN21: 0 | BO21: 0 | BP21: 0 | BQ21: 0 | BR21: 0 | BS21: 0 | BT21: 0 | BU21: 0 | BV21: 0 | BW21: 0 | BX21: 0 | BY21: 0 | BZ21: 0 | CA21: 0 | CB21: 0 | CC21: 0 | CD21: 0 | CE21: 0 | CF21: 0 | CG21: 0 | CH21: 0 | CI21: 0 | CJ21: 0 | CK21: 0 | CL21: 0 | CM21: 0 | CN21: 0
A22: 18 | B22: Gustavo Pereira | C22: 0 | D22: 19 | E22: 12 | H22: 30 | I22: 1 | L22: 19 | M22: 12 | Q22: 0 | S22: -5 | U22: 0 | W22: -5 | Y22: 0 | AA22: -5 | AC22: 0 | AG22: 0 | AI22: -5 | AK22: 0 | AO22: 0 | AQ22: -5 | AS22: 0 | AU22: -5 | AW22: 0 | AY22: -5 | AZ22: 0 | BA22: 0 | BB22: 0 | BC22: 0 | BD22: 0 | BE22: 0 | BF22: 0 | BG22: 0 | BH22: 0 | BI22: 0 | BJ22: 0 | BK22: 0 | BL22: 0 | BM22: 0 | BN22: 0 | BO22: 0 | BP22: 0 | BQ22: 0 | BR22: 2 | BS22: 0 | BT22: 0 | BU22: 0 | BV22: 0 | BW22: 0 | BX22: 0 | BY22: 0 | BZ22: 0 | CA22: 0 | CB22: 0 | CC22: 1 | CD22: 0 | CE22: 0 | CF22: 0 | CG22: 0 | CH22: 0 | CI22: 0 | CJ22: 0 | CK22: 0 | CL22: 0 | CM22: 0 | CN22: 0
A23: 19 | B23: Henry Douglas | C23: 151 | D23: 18 | E23: 13 | H23: 15 | I23: 16 | L23: 30 | M23: 1 | O23: SIM | P23: 12 | Q23: 20 | T23: 16 | U23: 15 | X23: 20 | Y23: 11 | AB23: 15 | AC23: 16 | AF23: 20 | AG23: 11 | AJ23: 20 | AK23: 11 | AN23: 21 | AO23: 10 | AR23: 17 | AS23: 14 | AV23: 18 | AW23: 13 | AZ23: 0 | BA23: 0 | BB23: 0 | BC23: 0 | BD23: 0 | BE23: 0 | BF23: 0 | BG23: 0 | BH23: 0 | BI23: 0 | BJ23: 0 | BK23: 1 | BL23: 0 | BM23: 0 | BN23: 2 | BO23: 1 | BP23: 1 | BQ23: 2 | BR23: 0 | BS23: 3 | BT23: 1 | BU23: 0 | BV23: 0 | BW23: 0 | BX23: 0 | BY23: 0 | BZ23: 0 | CA23: 0 | CB23: 0 | CC23: 1 | CD23: 0 | CE23: 0 | CF23: 0 | CG23: 0 | CH23: 0 | CI23: 0 | CJ23: 0 | CK23: 0 | CL23: 0 | CM23: 0 | CN23: 0
A24: 20 | B24: Hugo Denucci | C24: 6 | D24: 27 | E24: 4 | I24: 0 | M24: 0 | P24: 24 | Q24: 7 | T24: 21 | U24: 10 | Y24: 0 | AC24: 0 | AG24: 0 | AI24: -5 | AK24: 0 | AO24: 0 | AS24: 0 | AU24: -5 | AW24: 0 | AY24: -5 | AZ24: 0 | BA24: 0 | BB24: 0 | BC24: 0 | BD24: 0 | BE24: 0 | BF24: 0 | BG24: 0 | BH24: 0 | BI24: 0 | BJ24: 0 | BK24: 0 | BL24: 0 | BM24: 0 | BN24: 0 | BO24: 0 | BP24: 0 | BQ24: 0 | BR24: 0 | BS24: 0 | BT24: 1 | BU24: 0 | BV24: 0 | BW24: 1 | BX24: 0 | BY24: 0 | BZ24: 1 | CA24: 0 | CB24: 0 | CC24: 0 | CD24: 0 | CE24: 0 | CF24: 0 | CG24: 0 | CH24: 0 | CI24: 0 | CJ24: 0 | CK24: 0 | CL24: 0 | CM24: 0 | CN24: 0
A25: 21 | B25: Iago Bastos | C25: 102 | D25: 20 | E25: 11 | H25: 20 | I25: 11 | L25: 13 | M25: 18 | Q25: 0 | S25: -5 | T25: 22 | U25: 9 | X25: 22 | Y25: 9 | AB25: 21 | AC25: 10 | AF25: 14 | AG25: 17 | AJ25: 17 | AK25: 14 | AM25: -5 | AO25: 0 | AR25: 13 | AS25: 18 | AW25: 0 | AY25: -5 | AZ25: 0 | BA25: 0 | BB25: 0 | BC25: 0 | BD25: 0 | BE25: 0 | BF25: 0 | BG25: 0 | BH25: 0 | BI25: 0 | BJ25: 0 | BK25: 0 | BL25: 2 | BM25: 1 | BN25: 0 | BO25: 0 | BP25: 1 | BQ25: 0 | BR25: 0 | BS25: 2 | BT25: 1 | BU25: 2 | BV25: 0 | BW25: 0 | BX25: 0 | BY25: 0 | BZ25: 0 | CA25: 0 | CB25: 0 | CC25: 0 | CD25: 0 | CE25: 0 | CF25: 0 | CG25: 0 | CH25: 0 | CI25: 0 | CJ25: 0 | CK25: 0 | CL25: 0 | CM25: 0 | CN25: 0
A26: 22 | B26: Jarbas Reis | C26: 310 | D26: 14 | E26: 17 | H26: 1 | I26: 45 | L26: 27 | M26: 4 | P26: 18 | Q26: 13 | T26: 3 | U26: 38 | X26: 9 | Y26: 26 | AB26: 9 | AC26: 26 | AF26: 1 | AG26: 45 | AH26: 1 | AJ26: 5 | AK26: 34 | AL26: 1 | AN26: 10 | AO26: 24 | AR26: 4 | AS26: 36 | AW26: 0 | AZ26: 2 | BA26: 0 | BB26: 1 | BC26: 1 | BD26: 1 | BE26: 0 | BF26: 0 | BG26: 0 | BH26: 2 | BI26: 1 | BJ26: 0 | BK26: 0 | BL26: 0 | BM26: 1 | BN26: 0 | BO26: 0 | BP26: 0 | BQ26: 1 | BR26: 0 | BS26: 0 | BT26: 0 | BU26: 0 | BV26: 0 | BW26: 0 | BX26: 0 | BY26: 0 | BZ26: 1 | CA26: 0 | CB26: 0 | CC26: 0 | CD26: 0 | CE26: 0 | CF26: 0 | CG26: 0 | CH26: 0 | CI26: 0 | CJ26: 0 | CK26: 0 | CL26: 0 | CM26: 0 | CN26: 0
A27: 23 | B27: Jean Paul | C27: 279 | D27: 12 | E27: 20 | I27: 0 | L27: 25 | M27: 6 | P27: 6 | Q27: 32 | T27: 14 | U27: 17 | X27: 18 | Y27: 13 | AB27: 5 | AC27: 34 | AF27: 13 | AG27: 18 | AJ27: 6 | AK27: 32 | AN27: 1 | AO27: 45 | AR27: 8 | AS27: 28 | AV27: 5 | AW27: 34 | AZ27: 1 | BA27: 0 | BB27: 0 | BC27: 0 | BD27: 2 | BE27: 2 | BF27: 0 | BG27: 1 | BH27: 0 | BI27: 0 | BJ27: 0 | BK27: 1 | BL27: 1 | BM27: 1 | BN27: 0 | BO27: 0 | BP27: 0 | BQ27: 1 | BR27: 0 | BS27: 0 | BT27: 0 | BU27: 0 | BV27: 0 | BW27: 0 | BX27: 1 | BY27: 0 | BZ27: 0 | CA27: 0 | CB27: 0 | CC27: 0 | CD27: 0 | CE27: 0 | CF27: 0 | CG27: 0 | CH27: 0 | CI27: 0 | CJ27: 0 | CK27: 0 | CL27: 0 | CM27: 0 | CN27: 0
A28: 24 | B28: João Ferreira | C28: 35 | D28: 26 | E28: 5 | H28: 29 | I28: 2 | L28: 32 | M28: 1 | P28: 22 | Q28: 9 | T28: 15 | U28: 16 | X28: 24 | Y28: 7 | AC28: 0 | AG28: 0 | AK28: 0 | AO28: 0 | AQ28: -5 | AS28: 0 | AW28: 0 | AZ28: 0 | BA28: 0 | BB28: 0 | BC28: 0 | BD28: 0 | BE28: 0 | BF28: 0 | BG28: 0 | BH28: 0 | BI28: 0 | BJ28: 0 | BK28: 0 | BL28: 0 | BM28: 0 | BN28: 1 | BO28: 0 | BP28: 0 | BQ28: 0 | BR28: 0 | BS28: 0 | BT28: 0 | BU28: 1 | BV28: 0 | BW28: 1 | BX28: 0 | BY28: 1 | BZ28: 0 | CA28: 0 | CB28: 1 | CC28: 0 | CD28: 0 | CE28: 1 | CF28: 0 | CG28: 0 | CH28: 0 | CI28: 0 | CJ28: 0 | CK28: 0 | CL28: 0 | CM28: 0 | CN28: 0
A29: 25 | B29: Levindo Neto | C29: 70 | D29: 21 | E29: 10 | G29: -5 | H29: 16 | I29: 15 | L29: 20 | M29: 11 | P29: 21 | Q29: 10 | T29: 31 | U29: 1 | W29: SIM | X29: 23 | Y29: 8 | AC29: 0 | AG29: 0 | AK29: 0 | AN29: 23 | AO29: 8 | AR29: 14 | AS29: 17 | AW29: 0 | AY29: -5 | AZ29: 0 | BA29: 0 | BB29: 0 | BC29: 0 | BD29: 0 | BE29: 0 | BF29: 0 | BG29: 0 | BH29: 0 | BI29: 0 | BJ29: 0 | BK29: 0 | BL29: 0 | BM29: 1 | BN29: 0 | BO29: 1 | BP29: 0 | BQ29: 0 | BR29: 0 | BS29: 1 | BT29: 2 | BU29: 0 | BV29: 2 | BW29: 0 | BX29: 0 | BY29: 0 | BZ29: 0 | CA29: 0 | CB29: 0 | CC29: 0 | CD29: 1 | CE29: 0 | CF29: 0 | CG29: 0 | CH29: 0 | CI29: 0 | CJ29: 0 | CK29: 0 | CL29: 0 | CM29: 0 | CN29: 0
A30: 26 | B30: Lucio Chequer | C30: 222 | D30: 7 | E30: 30 | H30: 3 | I30: 38 | M30: 0 | P30: 13 | Q30: 18 | T30: 20 | U30: 11 | W30: SIM | X30: 11 | Y30: 22 | AB30: 20 | AC30: 11 | AF30: 9 | AG30: 26 | AJ30: 11 | AK30: 22 | AN30: 9 | AO30: 26 | AS30: 0 | AV30: 13 | AW30: 18 | AZ30: 0 | BA30: 0 | BB30: 1 | BC30: 0 | BD30: 0 | BE30: 0 | BF30: 1 | BG30: 0 | BH30: 2 | BI30: 0 | BJ30: 2 | BK30: 0 | BL30: 2 | BM30: 0 | BN30: 0 | BO30: 0 | BP30: 0 | BQ30: 0 | BR30: 0 | BS30: 2 | BT30: 0 | BU30: 0 | BV30: 0 | BW30: 0 | BX30: 0 | BY30: 0 | BZ30: 0 | CA30: 0 | CB30: 0 | CC30: 0 | CD30: 0 | CE30: 0 | CF30: 0 | CG30: 0 | CH30: 0 | CI30: 0 | CJ30: 0 | CK30: 0 | CL30: 0 | CM30: 0 | CN30: 0
A31: 27 | B31: Luiza Mendes | C31: 0 | D31: 30 | E31: 1 | I31: 0 | L31: 4 | M31: 36 | Q31: 0 | U31: 0 | W31: -5 | Y31: 0 | AA31: -5 | AC31: 0 | AE31: -5 | AG31: 0 | AI31: -5 | AK31: 0 | AM31: -5 | AO31: 0 | AQ31: -5 | AS31: 0 | AU31: -5 | AW31: 0 | AY31: -5 | AZ31: 0 | BA31: 0 | BB31: 0 | BC31: 1 | BD31: 0 | BE31: 0 | BF31: 0 | BG31: 0 | BH31: 0 | BI31: 0 | BJ31: 0 | BK31: 0 | BL31: 0 | BM31: 0 | BN31: 0 | BO31: 0 | BP31: 0 | BQ31: 0 | BR31: 0 | BS31: 0 | BT31: 0 | BU31: 0 | BV31: 0 | BW31: 0 | BX31: 0 | BY31: 0 | BZ31: 0 | CA31: 0 | CB31: 0 | CC31: 1 | CD31: 0 | CE31: 0 | CF31: 0 | CG31: 0 | CH31: 0 | CI31: 0 | CJ31: 0 | CK31: 0 | CL31: 0 | CM31: 0 | CN31: 0
A32: 28 | B32: Matheus Azevedo | C32: 179 | D32: 4 | E32: 36 | H32: 8 | I32: 28 | J32: 1 | L32: 29 | M32: 2 | O32: SIM | P32: 19 | Q32: 12 | T32: 6 | U32: 32 | X32: 16 | Y32: 15 | AB32: 3 | AC32: 38 | AD32: 1 | AF32: 10 | AG32: 24 | AJ32: 50 | AK32: 0 | AM32: SIM | AO32: 0 | AS32: 0 | AU32: -5 | AW32: 0 | AY32: -5 | AZ32: 0 | BA32: 0 | BB32: 1 | BC32: 1 | BD32: 0 | BE32: 1 | BF32: 0 | BG32: 1 | BH32: 0 | BI32: 1 | BJ32: 0 | BK32: 0 | BL32: 0 | BM32: 0 | BN32: 0 | BO32: 1 | BP32: 0 | BQ32: 0 | BR32: 1 | BS32: 0 | BT32: 0 | BU32: 0 | BV32: 0 | BW32: 0 | BX32: 0 | BY32: 0 | BZ32: 0 | CA32: 0 | CB32: 1 | CC32: 0 | CD32: 0 | CE32: 0 | CF32: 0 | CG32: 0 | CH32: 0 | CI32: 0 | CJ32: 0 | CK32: 0 | CL32: 0 | CM32: 0 | CN32: 0
A33: 29 | B33: Rafael Lemes | C33: 0 | D33: 17 | E33: 14 | I33: 0 | K33: -5 | L33: 34 | M33: 1 | Q33: 0 | S33: -5 | T33: 19 | U33: 12 | Y33: 0 | AA33: -5 | AC33: 0 | AE33: -5 | AG33: 0 | AI33: -5 | AK33: 0 | AM33: -5 | AO33: 0 | AQ33: -5 | AS33: 0 | AU33: -5 | AW33: 0 | AY33: -5 | AZ33: 0 | BA33: 0 | BB33: 0 | BC33: 0 | BD33: 0 | BE33: 0 | BF33: 0 | BG33: 0 | BH33: 0 | BI33: 0 | BJ33: 0 | BK33: 0 | BL33: 0 | BM33: 0 | BN33: 0 | BO33: 0 | BP33: 1 | BQ33: 0 | BR33: 1 | BS33: 0 | BT33: 0 | BU33: 0 | BV33: 0 | BW33: 0 | BX33: 0 | BY33: 0 | BZ33: 0 | CA33: 0 | CB33: 0 | CC33: 0 | CD33: 0 | CE33: 0 | CF33: 0 | CG33: 1 | CH33: 0 | CI33: 0 | CJ33: 0 | CK33: 0 | CL33: 0 | CM33: 0 | CN33: 0
A34: 30 | B34: Raphael Reis | C34: 130 | D34: 10 | E34: 24 | H34: 31 | I34: 1 | L34: 16 | M34: 15 | Q34: 0 | U34: 0 | X34: 26 | Y34: 5 | AB34: 11 | AC34: 22 | AG34: 0 | AJ34: 24 | AK34: 7 | AO34: 0 | AR34: 10 | AS34: 24 | AV34: 6 | AW34: 32 | AZ34: 0 | BA34: 0 | BB34: 0 | BC34: 0 | BD34: 0 | BE34: 1 | BF34: 0 | BG34: 0 | BH34: 0 | BI34: 2 | BJ34: 1 | BK34: 0 | BL34: 0 | BM34: 0 | BN34: 0 | BO34: 1 | BP34: 0 | BQ34: 0 | BR34: 0 | BS34: 0 | BT34: 0 | BU34: 0 | BV34: 0 | BW34: 1 | BX34: 0 | BY34: 1 | BZ34: 0 | CA34: 0 | CB34: 0 | CC34: 0 | CD34: 1 | CE34: 0 | CF34: 0 | CG34: 0 | CH34: 0 | CI34: 0 | CJ34: 0 | CK34: 0 | CL34: 0 | CM34: 0 | CN34: 0
A35: 31 | B35: Renato Amaral | C35: 187 | D35: 22 | E35: 9 | H35: 23 | I35: 8 | L35: 11 | M35: 22 | P35: 11 | Q35: 22 | T35: 11 | U35: 22 | X35: 25 | Y35: 6 | AB35: 14 | AC35: 17 | AF35: 6 | AG35: 32 | AJ35: 23 | AK35: 8 | AN35: 13 | AO35: 18 | AR35: 23 | AS35: 8 | AU35: SIM | AV35: 16 | AW35: 15 | AZ35: 0 | BA35: 0 | BB35: 0 | BC35: 0 | BD35: 0 | BE35: 1 | BF35: 0 | BG35: 0 | BH35: 0 | BI35: 0 | BJ35: 3 | BK35: 0 | BL35: 1 | BM35: 1 | BN35: 0 | BO35: 1 | BP35: 0 | BQ35: 0 | BR35: 0 | BS35: 0 | BT35: 0 | BU35: 1 | BV35: 3 | BW35: 0 | BX35: 1 | BY35: 0 | BZ35: 0 | CA35: 0 | CB35: 0 | CC35: 0 | CD35: 0 | CE35: 0 | CF35: 0 | CG35: 0 | CH35: 0 | CI35: 0 | CJ35: 0 | CK35: 0 | CL35: 0 | CM35: 0 | CN35: 0
A36: 32 | B36: Renato Martins | C36: 113 | D36: 29 | E36: 2 | G36: SIM | H36: 19 | I36: 12 | L36: 23 | M36: 8 | P36: 23 | Q36: 8 | U36: 0 | X36: 12 | Y36: 20 | AB36: 19 | AC36: 12 | AG36: 0 | AJ36: 25 | AK36: 6 | AN36: 19 | AO36: 12 | AR36: 18 | AS36: 13 | AV36: 12 | AW36: 20 | AZ36: 0 | BA36: 0 | BB36: 0 | BC36: 0 | BD36: 0 | BE36: 0 | BF36: 0 | BG36: 0 | BH36: 0 | BI36: 0 | BJ36: 0 | BK36: 2 | BL36: 0 | BM36: 0 | BN36: 0 | BO36: 0 | BP36: 0 | BQ36: 1 | BR36: 3 | BS36: 0 | BT36: 0 | BU36: 0 | BV36: 2 | BW36: 0 | BX36: 1 | BY36: 0 | BZ36: 0 | CA36: 0 | CB36: 1 | CC36: 0 | CD36: 0 | CE36: 0 | CF36: 0 | CG36: 0 | CH36: 0 | CI36: 0 | CJ36: 0 | CK36: 0 | CL36: 0 | CM36: 0 | CN36: 0
A37: 33 | B37: Ricardo Amaral | C37: 155 | D37: 3 | E37: 38 | H37: 18 | I37: 13 | L37: 26 | M37: 5 | O37: SIM | Q37: 0 | U37: 0 | W37: -5 | Y37: 0 | AB37: 16 | AC37: 15 | AF37: 17 | AG37: 14 | AJ37: 12 | AK37: 20 | AN37: 20 | AO37: 11 | AR37: 7 | AS37: 30 | AV37: 17 | AW37: 14 | AZ37: 0 | BA37: 0 | BB37: 1 | BC37: 0 | BD37: 0 | BE37: 0 | BF37: 1 | BG37: 0 | BH37: 0 | BI37: 0 | BJ37: 0 | BK37: 1 | BL37: 0 | BM37: 0 | BN37: 0 | BO37: 1 | BP37: 2 | BQ37: 1 | BR37: 0 | BS37: 1 | BT37: 0 | BU37: 0 | BV37: 0 | BW37: 0 | BX37: 0 | BY37: 1 | BZ37: 0 | CA37: 0 | CB37: 0 | CC37: 0 | CD37: 0 | CE37: 0 | CF37: 0 | CG37: 0 | CH37: 0 | CI37: 0 | CJ37: 0 | CK37: 0 | CL37: 0 | CM37: 0 | CN37: 0
A38: 34 | B38: Samuel Farley | C38: 240 | D38: 23 | E38: 8 | H38: 5 | I38: 34 | L38: 22 | M38: 9 | P38: 15 | Q38: 16 | T38: 17 | U38: 14 | X38: 10 | Y38: 24 | AB38: 12 | AC38: 20 | AF38: 5 | AG38: 34 | AJ38: 22 | AK38: 9 | AN38: 12 | AO38: 20 | AR38: 11 | AS38: 22 | AV38: 7 | AW38: 30 | AZ38: 0 | BA38: 0 | BB38: 0 | BC38: 0 | BD38: 2 | BE38: 0 | BF38: 1 | BG38: 0 | BH38: 0 | BI38: 1 | BJ38: 1 | BK38: 2 | BL38: 0 | BM38: 0 | BN38: 1 | BO38: 0 | BP38: 1 | BQ38: 0 | BR38: 0 | BS38: 0 | BT38: 0 | BU38: 2 | BV38: 1 | BW38: 0 | BX38: 0 | BY38: 0 | BZ38: 0 | CA38: 0 | CB38: 0 | CC38: 0 | CD38: 0 | CE38: 0 | CF38: 0 | CG38: 0 | CH38: 0 | CI38: 0 | CJ38: 0 | CK38: 0 | CL38: 0 | CM38: 0 | CN38: 0
A39: 35 | B39: Victor Marinho | C39: 6 | D39: 28 | E39: 3 | H39: 24 | I39: 7 | L39: 33 | M39: 1 | P39: 25 | Q39: 6 | T39: 23 | U39: 8 | X39: 36 | Y39: 1 | AA39: SIM | AC39: 0 | AG39: 0 | AK39: 0 | AM39: -5 | AO39: 0 | AQ39: -5 | AS39: 0 | AU39: -5 | AW39: 0 | AY39: -5 | AZ39: 0 | BA39: 0 | BB39: 0 | BC39: 0 | BD39: 0 | BE39: 0 | BF39: 0 | BG39: 0 | BH39: 0 | BI39: 0 | BJ39: 0 | BK39: 0 | BL39: 0 | BM39: 0 | BN39: 0 | BO39: 0 | BP39: 0 | BQ39: 0 | BR39: 0 | BS39: 0 | BT39: 0 | BU39: 0 | BV39: 1 | BW39: 1 | BX39: 1 | BY39: 0 | BZ39: 0 | CA39: 1 | CB39: 0 | CC39: 0 | CD39: 0 | CE39: 0 | CF39: 1 | CG39: 0 | CH39: 0 | CI39: 1 | CJ39: 0 | CK39: 0 | CL39: 0 | CM39: 0 | CN39: 0
A40: 36 | B40: Vitor Gatti | C40: 174 | D40: 32 | E40: 1 | H40: 27 | I40: 4 | K40: SIM | L40: 17 | M40: 14 | P40: 9 | Q40: 26 | T40: 7 | U40: 30 | X40: 31 | Y40: 1 | AA40: SIM | AB40: 8 | AC40: 28 | AF40: 29 | AG40: 2 | AI40: SIM | AJ40: 9 | AK40: 26 | AN40: 17 | AO40: 14 | AS40: 0 | AV40: 8 | AW40: 28 | AZ40: 0 | BA40: 0 | BB40: 0 | BC40: 0 | BD40: 0 | BE40: 0 | BF40: 1 | BG40: 2 | BH40: 2 | BI40: 0 | BJ40: 0 | BK40: 0 | BL40: 0 | BM40: 0 | BN40: 0 | BO40: 0 | BP40: 2 | BQ40: 0 | BR40: 0 | BS40: 0 | BT40: 0 | BU40: 0 | BV40: 0 | BW40: 0 | BX40: 0 | BY40: 0 | BZ40: 1 | CA40: 0 | CB40: 1 | CC40: 0 | CD40: 1 | CE40: 1 | CF40: 0 | CG40: 0 | CH40: 0 | CI40: 0 | CJ40: 0 | CK40: 0 | CL40: 0 | CM40: 0 | CN40: 0
A41: 37 | B41: Wander Neto | C41: 160 | D41: 15 | E41: 16 | H41: 22 | I41: 9 | L41: 6 | M41: 32 | P41: 14 | Q41: 17 | T41: 27 | U41: 4 | W41: SIM | X41: 21 | Y41: 10 | AB41: 7 | AC41: 30 | AF41: 12 | AG41: 20 | AJ41: 15 | AK41: 16 | AN41: 15 | AO41: 16 | AS41: 0 | AU41: -5 | AW41: 0 | AY41: -5 | AZ41: 0 | BA41: 0 | BB41: 0 | BC41: 0 | BD41: 0 | BE41: 1 | BF41: 1 | BG41: 0 | BH41: 0 | BI41: 0 | BJ41: 0 | BK41: 1 | BL41: 0 | BM41: 1 | BN41: 3 | BO41: 0 | BP41: 0 | BQ41: 0 | BR41: 0 | BS41: 0 | BT41: 1 | BU41: 1 | BV41: 0 | BW41: 0 | BX41: 0 | BY41: 0 | BZ41: 1 | CA41: 0 | CB41: 0 | CC41: 0 | CD41: 0 | CE41: 0 | CF41: 0 | CG41: 0 | CH41: 0 | CI41: 0 | CJ41: 0 | CK41: 0 | CL41: 0 | CM41: 0 | CN41: 0
A42: 38 | B42: Wesley Canuto | C42: 321 | D42: 11 | E42: 22 | H42: 2 | I42: 41 | L42: 9 | M42: 26 | P42: 8 | Q42: 28 | T42: 12 | U42: 20 | X42: 6 | Y42: 32 | AB42: 6 | AC42: 32 | AF42: 8 | AG42: 28 | AJ42: 7 | AK42: 30 | AN42: 6 | AO42: 32 | AR42: 12 | AS42: 20 | AV42: 21 | AW42: 10 | AZ42: 0 | BA42: 1 | BB42: 0 | BC42: 0 | BD42: 0 | BE42: 3 | BF42: 1 | BG42: 2 | BH42: 1 | BI42: 0 | BJ42: 1 | BK42: 2 | BL42: 0 | BM42: 0 | BN42: 0 | BO42: 0 | BP42: 0 | BQ42: 0 | BR42: 0 | BS42: 0 | BT42: 1 | BU42: 0 | BV42: 0 | BW42: 0 | BX42: 0 | BY42: 0 | BZ42: 0 | CA42: 0 | CB42: 0 | CC42: 0 | CD42: 0 | CE42: 0 | CF42: 0 | CG42: 0 | CH42: 0 | CI42: 0 | CJ42: 0 | CK42: 0 | CL42: 0 | CM42: 0 | CN42: 0
A43: 39 | C43: 0 | E43: 0 | I43: 0 | M43: 0 | Q43: 0 | U43: 0 | Y43: 0 | AC43: 0 | AG43: 0 | AK43: 0 | AO43: 0 | AS43: 0 | AW43: 0 | AZ43: 0 | BA43: 0 | BB43: 0 | BC43: 0 | BD43: 0 | BE43: 0 | BF43: 0 | BG43: 0 | BH43: 0 | BI43: 0 | BJ43: 0 | BK43: 0 | BL43: 0 | BM43: 0 | BN43: 0 | BO43: 0 | BP43: 0 | BQ43: 0 | BR43: 0 | BS43: 0 | BT43: 0 | BU43: 0 | BV43: 0 | BW43: 0 | BX43: 0 | BY43: 0 | BZ43: 0 | CA43: 0 | CB43: 0 | CC43: 0 | CD43: 0 | CE43: 0 | CF43: 0 | CG43: 0 | CH43: 0 | CI43: 0 | CJ43: 0 | CK43: 0 | CL43: 0 | CM43: 0 | CN43: 0
A44: 40 | C44: 0 | E44: 0 | I44: 0 | M44: 0 | Q44: 0 | U44: 0 | Y44: 0 | AC44: 0 | AG44: 0 | AK44: 0 | AO44: 0 | AS44: 0 | AW44: 0 | AZ44: 0 | BA44: 0 | BB44: 0 | BC44: 0 | BD44: 0 | BE44: 0 | BF44: 0 | BG44: 0 | BH44: 0 | BI44: 0 | BJ44: 0 | BK44: 0 | BL44: 0 | BM44: 0 | BN44: 0 | BO44: 0 | BP44: 0 | BQ44: 0 | BR44: 0 | BS44: 0 | BT44: 0 | BU44: 0 | BV44: 0 | BW44: 0 | BX44: 0 | BY44: 0 | BZ44: 0 | CA44: 0 | CB44: 0 | CC44: 0 | CD44: 0 | CE44: 0 | CF44: 0 | CG44: 0 | CH44: 0 | CI44: 0 | CJ44: 0 | CK44: 0 | CL44: 0 | CM44: 0 | CN44: 0
A45: 41 | C45: 0 | E45: 0 | I45: 0 | M45: 0 | Q45: 0 | U45: 0 | Y45: 0 | AC45: 0 | AG45: 0 | AK45: 0 | AO45: 0 | AS45: 0 | AW45: 0 | AZ45: 0 | BA45: 0 | BB45: 0 | BC45: 0 | BD45: 0 | BE45: 0 | BF45: 0 | BG45: 0 | BH45: 0 | BI45: 0 | BJ45: 0 | BK45: 0 | BL45: 0 | BM45: 0 | BN45: 0 | BO45: 0 | BP45: 0 | BQ45: 0 | BR45: 0 | BS45: 0 | BT45: 0 | BU45: 0 | BV45: 0 | BW45: 0 | BX45: 0 | BY45: 0 | BZ45: 0 | CA45: 0 | CB45: 0 | CC45: 0 | CD45: 0 | CE45: 0 | CF45: 0 | CG45: 0 | CH45: 0 | CI45: 0 | CJ45: 0 | CK45: 0 | CL45: 0 | CM45: 0 | CN45: 0
A46: 42 | C46: 0 | E46: 0 | I46: 0 | M46: 0 | Q46: 0 | U46: 0 | Y46: 0 | AC46: 0 | AG46: 0 | AK46: 0 | AO46: 0 | AS46: 0 | AW46: 0 | AZ46: 0 | BA46: 0 | BB46: 0 | BC46: 0 | BD46: 0 | BE46: 0 | BF46: 0 | BG46: 0 | BH46: 0 | BI46: 0 | BJ46: 0 | BK46: 0 | BL46: 0 | BM46: 0 | BN46: 0 | BO46: 0 | BP46: 0 | BQ46: 0 | BR46: 0 | BS46: 0 | BT46: 0 | BU46: 0 | BV46: 0 | BW46: 0 | BX46: 0 | BY46: 0 | BZ46: 0 | CA46: 0 | CB46: 0 | CC46: 0 | CD46: 0 | CE46: 0 | CF46: 0 | CG46: 0 | CH46: 0 | CI46: 0 | CJ46: 0 | CK46: 0 | CL46: 0 | CM46: 0 | CN46: 0
A47: 43 | C47: 0 | E47: 0 | I47: 0 | M47: 0 | Q47: 0 | U47: 0 | Y47: 0 | AC47: 0 | AG47: 0 | AK47: 0 | AO47: 0 | AS47: 0 | AW47: 0 | AZ47: 0 | BA47: 0 | BB47: 0 | BC47: 0 | BD47: 0 | BE47: 0 | BF47: 0 | BG47: 0 | BH47: 0 | BI47: 0 | BJ47: 0 | BK47: 0 | BL47: 0 | BM47: 0 | BN47: 0 | BO47: 0 | BP47: 0 | BQ47: 0 | BR47: 0 | BS47: 0 | BT47: 0 | BU47: 0 | BV47: 0 | BW47: 0 | BX47: 0 | BY47: 0 | BZ47: 0 | CA47: 0 | CB47: 0 | CC47: 0 | CD47: 0 | CE47: 0 | CF47: 0 | CG47: 0 | CH47: 0 | CI47: 0 | CJ47: 0 | CK47: 0 | CL47: 0 | CM47: 0 | CN47: 0
A48: 44 | C48: 0 | E48: 0 | I48: 0 | M48: 0 | Q48: 0 | U48: 0 | Y48: 0 | AC48: 0 | AG48: 0 | AK48: 0 | AO48: 0 | AS48: 0 | AW48: 0 | AZ48: 0 | BA48: 0 | BB48: 0 | BC48: 0 | BD48: 0 | BE48: 0 | BF48: 0 | BG48: 0 | BH48: 0 | BI48: 0 | BJ48: 0 | BK48: 0 | BL48: 0 | BM48: 0 | BN48: 0 | BO48: 0 | BP48: 0 | BQ48: 0 | BR48: 0 | BS48: 0 | BT48: 0 | BU48: 0 | BV48: 0 | BW48: 0 | BX48: 0 | BY48: 0 | BZ48: 0 | CA48: 0 | CB48: 0 | CC48: 0 | CD48: 0 | CE48: 0 | CF48: 0 | CG48: 0 | CH48: 0 | CI48: 0 | CJ48: 0 | CK48: 0 | CL48: 0 | CM48: 0 | CN48: 0
A49: 45 | C49: 0 | E49: 0 | I49: 0 | M49: 0 | Q49: 0 | U49: 0 | Y49: 0 | AC49: 0 | AG49: 0 | AK49: 0 | AO49: 0 | AS49: 0 | AW49: 0 | AZ49: 0 | BA49: 0 | BB49: 0 | BC49: 0 | BD49: 0 | BE49: 0 | BF49: 0 | BG49: 0 | BH49: 0 | BI49: 0 | BJ49: 0 | BK49: 0 | BL49: 0 | BM49: 0 | BN49: 0 | BO49: 0 | BP49: 0 | BQ49: 0 | BR49: 0 | BS49: 0 | BT49: 0 | BU49: 0 | BV49: 0 | BW49: 0 | BX49: 0 | BY49: 0 | BZ49: 0 | CA49: 0 | CB49: 0 | CC49: 0 | CD49: 0 | CE49: 0 | CF49: 0 | CG49: 0 | CH49: 0 | CI49: 0 | CJ49: 0 | CK49: 0 | CL49: 0 | CM49: 0 | CN49: 0

Sheet Classificação Geral
A1: 2022 | E1: OK | I1: OK | M1: OK | Q1: OK | U1: OK | Y1: OK | AC1: OK | AG1: OK | AK1: OK | AO1: OK | AS1: OK | AW1: OK
D2: 1ª etapa | H2: 2ª etapa | L2: 3ª etapa | P2: 4ª etapa | T2: 5ª etapa | X2: 6ª etapa | AB2: 7ª etapa | AF2: 8ª etapa | AJ2: 9ª etapa | AN2: 10ª etapa | AR2: 11ª etapa | AV2: 12ª etapa
B4: Nome do (a) Piloto (a) | C4: Pontuação Geral | D4: Posição | E4: Pontos | F4: Bônus | G4: Penalidade | H4: Posição | I4: Pontos | J4: Bônus | K4: Penalidade | L4: Posição | M4: Pontos | N4: Bônus | O4: Penalidade | P4: Posição | Q4: Pontos | R4: Bônus | S4: Penalidade | T4: Posição | U4: Pontos | V4: Bônus | W4: Penalidade | X4: Posição | Y4: Pontos | Z4: Bônus | AA4: Penalidade | AB4: Posição | AC4: Pontos | AD4: Bônus | AE4: Penalidade | AF4: Posição | AG4: Pontos | AH4: Bônus | AI4: Penalidade | AJ4: Posição | AK4: Pontos | AL4: Bônus | AM4: Penalidade | AN4: Posição | AO4: Pontos | AP4: Bônus | AQ4: Penalidade | AR4: Posição | AS4: Pontos | AT4: Bônus | AU4: Penalidade | AV4: Posição | AW4: Pontos | AX4: Bônus | AY4: Penalidade | AZ4: 1º LUGAR | BA4: 2º LUGAR | BB4: 3º LUGAR | BC4: 4º LUGAR | BD4: 5º LUGAR | BE4: 6º LUGAR | BF4: 7º LUGAR | BG4: 8º LUGAR | BH4: 9º LUGAR | BI4: 10º LUGAR | BJ4: 11º LUGAR | BK4: 12º LUGAR | BL4: 13º LUGAR | BM4: 14º LUGAR | BN4: 15º LUGAR | BO4: 16º LUGAR | BP4: 17º LUGAR | BQ4: 18º LUGAR | BR4: 19º LUGAR | BS4: 20º LUGAR | BT4: 21º LUGAR | BU4: 22º LUGAR | BV4: 23º LUGAR | BW4: 24º LUGAR | BX4: 25º LUGAR | BY4: 26º LUGAR | BZ4: 27º LUGAR | CA4: 28º LUGAR | CB4: 29º LUGAR | CC4: 30º LUGAR | CD4: 31º LUGAR | CE4: 32º LUGAR | CF4: 33º LUGAR | CG4: 34º LUGAR | CH4: 35º LUGAR | CI4: 36º LUGAR | CJ4: 37º LUGAR | CK4: 38º LUGAR | CL4: 39º LUGAR | CM4: 40º LUGAR | CN4: 41º LUGAR
A5: 1 | B5: Christian Guedes | C5: 389 | D5: 16 | E5: 15 | H5: 21 | I5: 10 | L5: 5 | M5: 34 | P5: 2 | Q5: 41 | T5: 2 | U5: 41 | X5: 13 | Y5: 18 | AB5: 4 | AC5: 36 | AF5: 2 | AG5: 41 | AJ5: 2 | AK5: 41 | AN5: 7 | AO5: 30 | AR5: 2 | AS5: 41 | AV5: 2 | AW5: 41 | AZ5: 0 | BA5: 6 | BB5: 0 | BC5: 1 | BD5: 1 | BE5: 0 | BF5: 1 | BG5: 0 | BH5: 0 | BI5: 0 | BJ5: 0 | BK5: 0 | BL5: 1 | BM5: 0 | BN5: 0 | BO5: 1 | BP5: 0 | BQ5: 0 | BR5: 0 | BS5: 0 | BT5: 1 | BU5: 0 | BV5: 0 | BW5: 0 | BX5: 0 | BY5: 0 | BZ5: 0 | CA5: 0 | CB5: 0 | CC5: 0 | CD5: 0 | CE5: 0 | CF5: 0 | CG5: 0 | CH5: 0 | CI5: 0 | CJ5: 0 | CK5: 0 | CL5: 0 | CM5: 0 | CN5: 0
A6: 2 | B6: Alexandre Melillo | C6: 366 | D6: 2 | E6: 41 | F6: 1 | H6: 9 | I6: 26 | L6: 7 | M6: 30 | P6: 4 | Q6: 36 | T6: 9 | U6: 26 | X6: 4 | Y6: 36 | AB6: 13 | AC6: 18 | AF6: 7 | AG6: 30 | AJ6: 1 | AK6: 45 | AN6: 11 | AO6: 22 | AR6: 3 | AS6: 38 | AV6: 14 | AW6: 17 | AZ6: 1 | BA6: 1 | BB6: 1 | BC6: 2 | BD6: 0 | BE6: 0 | BF6: 2 | BG6: 0 | BH6: 2 | BI6: 0 | BJ6: 1 | BK6: 0 | BL6: 1 | BM6: 1 | BN6: 0 | BO6: 0 | BP6: 0 | BQ6: 0 | BR6: 0 | BS6: 0 | BT6: 0 | BU6: 0 | BV6: 0 | BW6: 0 | BX6: 0 | BY6: 0 | BZ6: 0 | CA6: 0 | CB6: 0 | CC6: 0 | CD6: 0 | CE6: 0 | CF6: 0 | CG6: 0 | CH6: 0 | CI6: 0 | CJ6: 0 | CK6: 0 | CL6: 0 | CM6: 0 | CN6: 0
A7: 3 | B7: Gui Figueiredo | C7: 356 | D7: 1 | E7: 45 | I7: 0 | L7: 3 | M7: 38 | P7: 1 | Q7: 45 | R7: 1 | T7: 8 | U7: 28 | X7: 3 | Y7: 38 | AC7: 0 | AG7: 0 | AJ7: 4 | AK7: 36 | AN7: 2 | AO7: 41 | AR7: 1 | AS7: 45 | AT7: 1 | AV7: 3 | AW7: 38 | AZ7: 3 | BA7: 1 | BB7: 3 | BC7: 1 | BD7: 0 | BE7: 0 | BF7: 0 | BG7: 1 | BH7: 0 | BI7: 0 | BJ7: 0 | BK7: 0 | BL7: 0 | BM7: 0 | BN7: 0 | BO7: 0 | BP7: 0 | BQ7: 0 | BR7: 0 | BS7: 0 | BT7: 0 | BU7: 0 | BV7: 0 | BW7: 0 | BX7: 0 | BY7: 0 | BZ7: 0 | CA7: 0 | CB7: 0 | CC7: 0 | CD7: 0 | CE7: 0 | CF7: 0 | CG7: 0 | CH7: 0 | CI7: 0 | CJ7: 0 | CK7: 0 | CL7: 0 | CM7: 0 | CN7: 0
A8: 4 | B8: Fernando Mota | C8: 349 | D8: 31 | E8: 1 | H8: 12 | I8: 20 | L8: 8 | M8: 28 | P8: 3 | Q8: 38 | T8: 1 | U8: 45 | X8: 1 | Y8: 45 | Z8: 1 | AB8: 22 | AC8: 9 | AF8: 4 | AG8: 36 | AJ8: 3 | AK8: 38 | AN8: 8 | AO8: 28 | AR8: 5 | AS8: 34 | AV8: 9 | AW8: 26 | AZ8: 2 | BA8: 0 | BB8: 2 | BC8: 1 | BD8: 1 | BE8: 0 | BF8: 0 | BG8: 2 | BH8: 1 | BI8: 0 | BJ8: 0 | BK8: 1 | BL8: 0 | BM8: 0 | BN8: 0 | BO8: 0 | BP8: 0 | BQ8: 0 | BR8: 0 | BS8: 0 | BT8: 0 | BU8: 1 | BV8: 0 | BW8: 0 | BX8: 0 | BY8: 0 | BZ8: 0 | CA8: 0 | CB8: 0 | CC8: 0 | CD8: 1 | CE8: 0 | CF8: 0 | CG8: 0 | CH8: 0 | CI8: 0 | CJ8: 0 | CK8: 0 | CL8: 0 | CM8: 0 | CN8: 0
A9: 5 | B9: Bruno Nosse | C9: 321 | D9: 6 | E9: 32 | H9: 10 | I9: 24 | L9: 2 | M9: 41 | N9: 1 | P9: 5 | Q9: 34 | T9: 18 | U9: 13 | X9: 8 | Y9: 28 | AB9: 1 | AC9: 45 | AF9: 19 | AG9: 12 | AJ9: 13 | AK9: 18 | AN9: 3 | AO9: 38 | AR9: 9 | AS9: 26 | AV9: 22 | AW9: 9 | AZ9: 1 | BA9: 1 | BB9: 1 | BC9: 0 | BD9: 1 | BE9: 1 | BF9: 0 | BG9: 1 | BH9: 1 | BI9: 1 | BJ9: 0 | BK9: 0 | BL9: 1 | BM9: 0 | BN9: 0 | BO9: 0 | BP9: 0 | BQ9: 1 | BR9: 1 | BS9: 0 | BT9: 0 | BU9: 1 | BV9: 0 | BW9: 0 | BX9: 0 | BY9: 0 | BZ9: 0 | CA9: 0 | CB9: 0 | CC9: 0 | CD9: 0 | CE9: 0 | CF9: 0 | CG9: 0 | CH9: 0 | CI9: 0 | CJ9: 0 | CK9: 0 | CL9: 0 | CM9: 0 | CN9: 0
A10: 6 | B10: Wesley Canuto | C10: 321 | D10: 11 | E10: 22 | H10: 2 | I10: 41 | L10: 9 | M10: 26 | P10: 8 | Q10: 28 | T10: 12 | U10: 20 | X10: 6 | Y10: 32 | AB10: 6 | AC10: 32 | AF10: 8 | AG10: 28 | AJ10: 7 | AK10: 30 | AN10: 6 | AO10: 32 | AR10: 12 | AS10: 20 | AV10: 21 | AW10: 10 | AZ10: 0 | BA10: 1 | BB10: 0 | BC10: 0 | BD10: 0 | BE10: 3 | BF10: 1 | BG10: 2 | BH10: 1 | BI10: 0 | BJ10: 1 | BK10: 2 | BL10: 0 | BM10: 0 | BN10: 0 | BO10: 0 | BP10: 0 | BQ10: 0 | BR10: 0 | BS10: 0 | BT10: 1 | BU10: 0 | BV10: 0 | BW10: 0 | BX10: 0 | BY10: 0 | BZ10: 0 | CA10: 0 | CB10: 0 | CC10: 0 | CD10: 0 | CE10: 0 | CF10: 0 | CG10: 0 | CH10: 0 | CI10: 0 | CJ10: 0 | CK10: 0 | CL10: 0 | CM10: 0 | CN10: 0
A11: 7 | B11: Jarbas Reis | C11: 310 | D11: 14 | E11: 17 | H11: 1 | I11: 45 | L11: 27 | M11: 4 | P11: 18 | Q11: 13 | T11: 3 | U11: 38 | X11: 9 | Y11: 26 | AB11: 9 | AC11: 26 | AF11: 1 | AG11: 45 | AH11: 1 | AJ11: 5 | AK11: 34 | AL11: 1 | AN11: 10 | AO11: 24 | AR11: 4 | AS11: 36 | AW11: 0 | AZ11: 2 | BA11: 0 | BB11: 1 | BC11: 1 | BD11: 1 | BE11: 0 | BF11: 0 | BG11: 0 | BH11: 2 | BI11: 1 | BJ11: 0 | BK11: 0 | BL11: 0 | BM11: 1 | BN11: 0 | BO11: 0 | BP11: 0 | BQ11: 1 | BR11: 0 | BS11: 0 | BT11: 0 | BU11: 0 | BV11: 0 | BW11: 0 | BX11: 0 | BY11: 0 | BZ11: 1 | CA11: 0 | CB11: 0 | CC11: 0 | CD11: 0 | CE11: 0 | CF11: 0 | CG11: 0 | CH11: 0 | CI11: 0 | CJ11: 0 | CK11: 0 | CL11: 0 | CM11: 0 | CN11: 0
A12: 8 | B12: Guilherme Alves | C12: 287 | D12: 9 | E12: 26 | H12: 28 | I12: 3 | L12: 1 | M12: 45 | Q12: 0 | T12: 4 | U12: 36 | X12: 5 | Y12: 34 | AB12: 10 | AC12: 24 | AF12: 3 | AG12: 38 | AJ12: 35 | AK12: 1 | AM12: SIM | AN12: 5 | AO12: 34 | AP12: 1 | AS12: 0 | AV12: 1 | AW12: 45 | AZ12: 2 | BA12: 0 | BB12: 1 | BC12: 1 | BD12: 2 | BE12: 0 | BF12: 0 | BG12: 0 | BH12: 1 | BI12: 1 | BJ12: 0 | BK12: 0 | BL12: 0 | BM12: 0 | BN12: 0 | BO12: 0 | BP12: 0 | BQ12: 0 | BR12: 0 | BS12: 0 | BT12: 0 | BU12: 0 | BV12: 0 | BW12: 0 | BX12: 0 | BY12: 0 | BZ12: 0 | CA12: 1 | CB12: 0 | CC12: 0 | CD12: 0 | CE12: 0 | CF12: 0 | CG12: 0 | CH12: 1 | CI12: 0 | CJ12: 0 | CK12: 0 | CL12: 0 | CM12: 0 | CN12: 0
A13: 9 | B13: Anderson Teixeira | C13: 286 | E13: 0 | H13: 4 | I13: 36 | L13: 12 | M13: 20 | P13: 10 | Q13: 24 | T13: 10 | U13: 24 | X13: 2 | Y13: 41 | AB13: 2 | AC13: 41 | AF13: 21 | AG13: 10 | AI13: SIM | AJ13: 10 | AK13: 24 | AN13: 22 | AO13: 9 | AR13: 6 | AS13: 32 | AV13: 10 | AW13: 24 | AX13: 1 | AZ13: 0 | BA13: 2 | BB13: 0 | BC13: 1 | BD13: 0 | BE13: 1 | BF13: 0 | BG13: 0 | BH13: 0 | BI13: 4 | BJ13: 0 | BK13: 1 | BL13: 0 | BM13: 0 | BN13: 0 | BO13: 0 | BP13: 0 | BQ13: 0 | BR13: 0 | BS13: 0 | BT13: 1 | BU13: 1 | BV13: 0 | BW13: 0 | BX13: 0 | BY13: 0 | BZ13: 0 | CA13: 0 | CB13: 0 | CC13: 0 | CD13: 0 | CE13: 0 | CF13: 0 | CG13: 0 | CH13: 0 | CI13: 0 | CJ13: 0 | CK13: 0 | CL13: 0 | CM13: 0 | CN13: 0
A14: 10 | B14: Jean Paul | C14: 279 | D14: 12 | E14: 20 | I14: 0 | L14: 25 | M14: 6 | P14: 6 | Q14: 32 | T14: 14 | U14: 17 | X14: 18 | Y14: 13 | AB14: 5 | AC14: 34 | AF14: 13 | AG14: 18 | AJ14: 6 | AK14: 32 | AN14: 1 | AO14: 45 | AR14: 8 | AS14: 28 | AV14: 5 | AW14: 34 | AZ14: 1 | BA14: 0 | BB14: 0 | BC14: 0 | BD14: 2 | BE14: 2 | BF14: 0 | BG14: 1 | BH14: 0 | BI14: 0 | BJ14: 0 | BK14: 1 | BL14: 1 | BM14: 1 | BN14: 0 | BO14: 0 | BP14: 0 | BQ14: 1 | BR14: 0 | BS14: 0 | BT14: 0 | BU14: 0 | BV14: 0 | BW14: 0 | BX14: 1 | BY14: 0 | BZ14: 0 | CA14: 0 | CB14: 0 | CC14: 0 | CD14: 0 | CE14: 0 | CF14: 0 | CG14: 0 | CH14: 0 | CI14: 0 | CJ14: 0 | CK14: 0 | CL14: 0 | CM14: 0 | CN14: 0
A15: 11 | B15: Samuel Farley | C15: 240 | D15: 23 | E15: 8 | H15: 5 | I15: 34 | L15: 22 | M15: 9 | P15: 15 | Q15: 16 | T15: 17 | U15: 14 | X15: 10 | Y15: 24 | AB15: 12 | AC15: 20 | AF15: 5 | AG15: 34 | AJ15: 22 | AK15: 9 | AN15: 12 | AO15: 20 | AR15: 11 | AS15: 22 | AV15: 7 | AW15: 30 | AZ15: 0 | BA15: 0 | BB15: 0 | BC15: 0 | BD15: 2 | BE15: 0 | BF15: 1 | BG15: 0 | BH15: 0 | BI15: 1 | BJ15: 1 | BK15: 2 | BL15: 0 | BM15: 0 | BN15: 1 | BO15: 0 | BP15: 1 | BQ15: 0 | BR15: 0 | BS15: 0 | BT15: 0 | BU15: 2 | BV15: 1 | BW15: 0 | BX15: 0 | BY15: 0 | BZ15: 0 | CA15: 0 | CB15: 0 | CC15: 0 | CD15: 0 | CE15: 0 | CF15: 0 | CG15: 0 | CH15: 0 | CI15: 0 | CJ15: 0 | CK15: 0 | CL15: 0 | CM15: 0 | CN15: 0
A16: 12 | B16: Diego Rodrigues | C16: 233 | D16: 5 | E16: 34 | H16: 17 | I16: 14 | K16: SIM | L16: 10 | M16: 24 | P16: 17 | Q16: 14 | U16: 0 | X16: 7 | Y16: 30 | AB16: 31 | AC16: 1 | AE16: SIM | AF16: 15 | AG16: 16 | AJ16: 8 | AK16: 28 | AN16: 4 | AO16: 36 | AS16: 0 | AV16: 4 | AW16: 36 | AZ16: 0 | BA16: 0 | BB16: 0 | BC16: 2 | BD16: 1 | BE16: 0 | BF16: 1 | BG16: 1 | BH16: 0 | BI16: 1 | BJ16: 0 | BK16: 0 | BL16: 0 | BM16: 0 | BN16: 1 | BO16: 0 | BP16: 2 | BQ16: 0 | BR16: 0 | BS16: 0 | BT16: 0 | BU16: 0 | BV16: 0 | BW16: 0 | BX16: 0 | BY16: 0 | BZ16: 0 | CA16: 0 | CB16: 0 | CC16: 0 | CD16: 1 | CE16: 0 | CF16: 0 | CG16: 0 | CH16: 0 | CI16: 0 | CJ16: 0 | CK16: 0 | CL16: 0 | CM16: 0 | CN16: 0
A17: 13 | B17: Lucio Chequer | C17: 222 | D17: 7 | E17: 30 | H17: 3 | I17: 38 | M17: 0 | P17: 13 | Q17: 18 | T17: 20 | U17: 11 | W17: SIM | X17: 11 | Y17: 22 | AB17: 20 | AC17: 11 | AF17: 9 | AG17: 26 | AJ17: 11 | AK17: 22 | AN17: 9 | AO17: 26 | AS17: 0 | AV17: 13 | AW17: 18 | AZ17: 0 | BA17: 0 | BB17: 1 | BC17: 0 | BD17: 0 | BE17: 0 | BF17: 1 | BG17: 0 | BH17: 2 | BI17: 0 | BJ17: 2 | BK17: 0 | BL17: 2 | BM17: 0 | BN17: 0 | BO17: 0 | BP17: 0 | BQ17: 0 | BR17: 0 | BS17: 2 | BT17: 0 | BU17: 0 | BV17: 0 | BW17: 0 | BX17: 0 | BY17: 0 | BZ17: 0 | CA17: 0 | CB17: 0 | CC17: 0 | CD17: 0 | CE17: 0 | CF17: 0 | CG17: 0 | CH17: 0 | CI17: 0 | CJ17: 0 | CK17: 0 | CL17: 0 | CM17: 0 | CN17: 0
A18: 14 | B18: Frederico Papatella | C18: 190 | D18: 8 | E18: 28 | H18: 14 | I18: 17 | L18: 15 | M18: 16 | P18: 7 | Q18: 30 | T18: 13 | U18: 18 | X18: 35 | Y18: 1 | AA18: SIM | AC18: 0 | AF18: 18 | AG18: 13 | AJ18: 14 | AK18: 17 | AN18: 18 | AO18: 13 | AR18: 16 | AS18: 15 | AV18: 11 | AW18: 22 | AZ18: 0 | BA18: 0 | BB18: 0 | BC18: 0 | BD18: 0 | BE18: 0 | BF18: 1 | BG18: 1 | BH18: 0 | BI18: 0 | BJ18: 1 | BK18: 0 | BL18: 1 | BM18: 2 | BN18: 1 | BO18: 1 | BP18: 0 | BQ18: 2 | BR18: 0 | BS18: 0 | BT18: 0 | BU18: 0 | BV18: 0 | BW18: 0 | BX18: 0 | BY18: 0 | BZ18: 0 | CA18: 0 | CB18: 0 | CC18: 0 | CD18: 0 | CE18: 0 | CF18: 0 | CG18: 0 | CH18: 1 | CI18: 0 | CJ18: 0 | CK18: 0 | CL18: 0 | CM18: 0 | CN18: 0
A19: 15 | B19: Renato Amaral | C19: 187 | D19: 22 | E19: 9 | H19: 23 | I19: 8 | L19: 11 | M19: 22 | P19: 11 | Q19: 22 | T19: 11 | U19: 22 | X19: 25 | Y19: 6 | AB19: 14 | AC19: 17 | AF19: 6 | AG19: 32 | AJ19: 23 | AK19: 8 | AN19: 13 | AO19: 18 | AR19: 23 | AS19: 8 | AU19: SIM | AV19: 16 | AW19: 15 | AZ19: 0 | BA19: 0 | BB19: 0 | BC19: 0 | BD19: 0 | BE19: 1 | BF19: 0 | BG19: 0 | BH19: 0 | BI19: 0 | BJ19: 3 | BK19: 0 | BL19: 1 | BM19: 1 | BN19: 0 | BO19: 1 | BP19: 0 | BQ19: 0 | BR19: 0 | BS19: 0 | BT19: 0 | BU19: 1 | BV19: 3 | BW19: 0 | BX19: 1 | BY19: 0 | BZ19: 0 | CA19: 0 | CB19: 0 | CC19: 0 | CD19: 0 | CE19: 0 | CF19: 0 | CG19: 0 | CH19: 0 | CI19: 0 | CJ19: 0 | CK19: 0 | CL19: 0 | CM19: 0 | CN19: 0
A20: 16 | B20: Matheus Azevedo | C20: 179 | D20: 4 | E20: 36 | H20: 8 | I20: 28 | J20: 1 | L20: 29 | M20: 2 | O20: SIM | P20: 19 | Q20: 12 | T20: 6 | U20: 32 | X20: 16 | Y20: 15 | AB20: 3 | AC20: 38 | AD20: 1 | AF20: 10 | AG20: 24 | AJ20: 50 | AK20: 0 | AM20: SIM | AO20: 0 | AS20: 0 | AU20: -5 | AW20: 0 | AY20: -5 | AZ20: 0 | BA20: 0 | BB20: 1 | BC20: 1 | BD20: 0 | BE20: 1 | BF20: 0 | BG20: 1 | BH20: 0 | BI20: 1 | BJ20: 0 | BK20: 0 | BL20: 0 | BM20: 0 | BN20: 0 | BO20: 1 | BP20: 0 | BQ20: 0 | BR20: 1 | BS20: 0 | BT20: 0 | BU20: 0 | BV20: 0 | BW20: 0 | BX20: 0 | BY20: 0 | BZ20: 0 | CA20: 0 | CB20: 1 | CC20: 0 | CD20: 0 | CE20: 0 | CF20: 0 | CG20: 0 | CH20: 0 | CI20: 0 | CJ20: 0 | CK20: 0 | CL20: 0 | CM20: 0 | CN20: 0
A21: 17 | B21: Vitor Gatti | C21: 174 | D21: 32 | E21: 1 | H21: 27 | I21: 4 | K21: SIM | L21: 17 | M21: 14 | P21: 9 | Q21: 26 | T21: 7 | U21: 30 | X21: 31 | Y21: 1 | AA21: SIM | AB21: 8 | AC21: 28 | AF21: 29 | AG21: 2 | AI21: SIM | AJ21: 9 | AK21: 26 | AN21: 17 | AO21: 14 | AS21: 0 | AV21: 8 | AW21: 28 | AZ21: 0 | BA21: 0 | BB21: 0 | BC21: 0 | BD21: 0 | BE21: 0 | BF21: 1 | BG21: 2 | BH21: 2 | BI21: 0 | BJ21: 0 | BK21: 0 | BL21: 0 | BM21: 0 | BN21: 0 | BO21: 0 | BP21: 2 | BQ21: 0 | BR21: 0 | BS21: 0 | BT21: 0 | BU21: 0 | BV21: 0 | BW21: 0 | BX21: 0 | BY21: 0 | BZ21: 1 | CA21: 0 | CB21: 1 | CC21: 0 | CD21: 1 | CE21: 1 | CF21: 0 | CG21: 0 | CH21: 0 | CI21: 0 | CJ21: 0 | CK21: 0 | CL21: 0 | CM21: 0 | CN21: 0
A22: 18 | B22: Wander Neto | C22: 160 | D22: 15 | E22: 16 | H22: 22 | I22: 9 | L22: 6 | M22: 32 | P22: 14 | Q22: 17 | T22: 27 | U22: 4 | W22: SIM | X22: 21 | Y22: 10 | AB22: 7 | AC22: 30 | AF22: 12 | AG22: 20 | AJ22: 15 | AK22: 16 | AN22: 15 | AO22: 16 | AS22: 0 | AU22: -5 | AW22: 0 | AY22: -5 | AZ22: 0 | BA22: 0 | BB22: 0 | BC22: 0 | BD22: 0 | BE22: 1 | BF22: 1 | BG22: 0 | BH22: 0 | BI22: 0 | BJ22: 0 | BK22: 1 | BL22: 0 | BM22: 1 | BN22: 3 | BO22: 0 | BP22: 0 | BQ22: 0 | BR22: 0 | BS22: 0 | BT22: 1 | BU22: 1 | BV22: 0 | BW22: 0 | BX22: 0 | BY22: 0 | BZ22: 1 | CA22: 0 | CB22: 0 | CC22: 0 | CD22: 0 | CE22: 0 | CF22: 0 | CG22: 0 | CH22: 0 | CI22: 0 | CJ22: 0 | CK22: 0 | CL22: 0 | CM22: 0 | CN22: 0
A23: 19 | B23: Ricardo Amaral | C23: 155 | D23: 3 | E23: 38 | H23: 18 | I23: 13 | L23: 26 | M23: 5 | O23: SIM | Q23: 0 | U23: 0 | W23: -5 | Y23: 0 | AB23: 16 | AC23: 15 | AF23: 17 | AG23: 14 | AJ23: 12 | AK23: 20 | AN23: 20 | AO23: 11 | AR23: 7 | AS23: 30 | AV23: 17 | AW23: 14 | AZ23: 0 | BA23: 0 | BB23: 1 | BC23: 0 | BD23: 0 | BE23: 0 | BF23: 1 | BG23: 0 | BH23: 0 | BI23: 0 | BJ23: 0 | BK23: 1 | BL23: 0 | BM23: 0 | BN23: 0 | BO23: 1 | BP23: 2 | BQ23: 1 | BR23: 0 | BS23: 1 | BT23: 0 | BU23: 0 | BV23: 0 | BW23: 0 | BX23: 0 | BY23: 1 | BZ23: 0 | CA23: 0 | CB23: 0 | CC23: 0 | CD23: 0 | CE23: 0 | CF23: 0 | CG23: 0 | CH23: 0 | CI23: 0 | CJ23: 0 | CK23: 0 | CL23: 0 | CM23: 0 | CN23: 0
A24: 20 | B24: Henry Douglas | C24: 151 | D24: 18 | E24: 13 | H24: 15 | I24: 16 | L24: 30 | M24: 1 | O24: SIM | P24: 12 | Q24: 20 | T24: 16 | U24: 15 | X24: 20 | Y24: 11 | AB24: 15 | AC24: 16 | AF24: 20 | AG24: 11 | AJ24: 20 | AK24: 11 | AN24: 21 | AO24: 10 | AR24: 17 | AS24: 14 | AV24: 18 | AW24: 13 | AZ24: 0 | BA24: 0 | BB24: 0 | BC24: 0 | BD24: 0 | BE24: 0 | BF24: 0 | BG24: 0 | BH24: 0 | BI24: 0 | BJ24: 0 | BK24: 1 | BL24: 0 | BM24: 0 | BN24: 2 | BO24: 1 | BP24: 1 | BQ24: 2 | BR24: 0 | BS24: 3 | BT24: 1 | BU24: 0 | BV24: 0 | BW24: 0 | BX24: 0 | BY24: 0 | BZ24: 0 | CA24: 0 | CB24: 0 | CC24: 1 | CD24: 0 | CE24: 0 | CF24: 0 | CG24: 0 | CH24: 0 | CI24: 0 | CJ24: 0 | CK24: 0 | CL24: 0 | CM24: 0 | CN24: 0
A25: 21 | B25: Raphael Reis | C25: 130 | D25: 10 | E25: 24 | H25: 31 | I25: 1 | L25: 16 | M25: 15 | Q25: 0 | U25: 0 | X25: 26 | Y25: 5 | AB25: 11 | AC25: 22 | AG25: 0 | AJ25: 24 | AK25: 7 | AO25: 0 | AR25: 10 | AS25: 24 | AV25: 6 | AW25: 32 | AZ25: 0 | BA25: 0 | BB25: 0 | BC25: 0 | BD25: 0 | BE25: 1 | BF25: 0 | BG25: 0 | BH25: 0 | BI25: 2 | BJ25: 1 | BK25: 0 | BL25: 0 | BM25: 0 | BN25: 0 | BO25: 1 | BP25: 0 | BQ25: 0 | BR25: 0 | BS25: 0 | BT25: 0 | BU25: 0 | BV25: 0 | BW25: 1 | BX25: 0 | BY25: 1 | BZ25: 0 | CA25: 0 | CB25: 0 | CC25: 0 | CD25: 1 | CE25: 0 | CF25: 0 | CG25: 0 | CH25: 0 | CI25: 0 | CJ25: 0 | CK25: 0 | CL25: 0 | CM25: 0 | CN25: 0
A26: 22 | B26: Aparecido Arantes | C26: 114 | E26: 0 | H26: 7 | I26: 30 | L26: 31 | M26: 1 | P26: 16 | Q26: 15 | S26: -5 | U26: 0 | X26: 14 | Y26: 17 | AC26: 0 | AF26: 16 | AG26: 15 | AJ26: 16 | AK26: 15 | AN26: 16 | AO26: 15 | AS26: 0 | AV26: 20 | AW26: 11 | AZ26: 0 | BA26: 0 | BB26: 0 | BC26: 0 | BD26: 0 | BE26: 0 | BF26: 1 | BG26: 0 | BH26: 0 | BI26: 0 | BJ26: 0 | BK26: 0 | BL26: 0 | BM26: 1 | BN26: 0 | BO26: 4 | BP26: 0 | BQ26: 0 | BR26: 0 | BS26: 1 | BT26: 0 | BU26: 0 | BV26: 0 | BW26: 0 | BX26: 0 | BY26: 0 | BZ26: 0 | CA26: 0 | CB26: 0 | CC26: 0 | CD26: 1 | CE26: 0 | CF26: 0 | CG26: 0 | CH26: 0 | CI26: 0 | CJ26: 0 | CK26: 0 | CL26: 0 | CM26: 0 | CN26: 0
A27: 23 | B27: Renato Martins | C27: 113 | D27: 29 | E27: 2 | G27: SIM | H27: 19 | I27: 12 | L27: 23 | M27: 8 | P27: 23 | Q27: 8 | U27: 0 | X27: 12 | Y27: 20 | AB27: 19 | AC27: 12 | AG27: 0 | AJ27: 25 | AK27: 6 | AN27: 19 | AO27: 12 | AR27: 18 | AS27: 13 | AV27: 12 | AW27: 20 | AZ27: 0 | BA27: 0 | BB27: 0 | BC27: 0 | BD27: 0 | BE27: 0 | BF27: 0 | BG27: 0 | BH27: 0 | BI27: 0 | BJ27: 0 | BK27: 2 | BL27: 0 | BM27: 0 | BN27: 0 | BO27: 0 | BP27: 0 | BQ27: 1 | BR27: 3 | BS27: 0 | BT27: 0 | BU27: 0 | BV27: 2 | BW27: 0 | BX27: 1 | BY27: 0 | BZ27: 0 | CA27: 0 | CB27: 1 | CC27: 0 | CD27: 0 | CE27: 0 | CF27: 0 | CG27: 0 | CH27: 0 | CI27: 0 | CJ27: 0 | CK27: 0 | CL27: 0 | CM27: 0 | CN27: 0
A28: 24 | B28: Iago Bastos | C28: 102 | D28: 20 | E28: 11 | H28: 20 | I28: 11 | L28: 13 | M28: 18 | Q28: 0 | S28: -5 | T28: 22 | U28: 9 | X28: 22 | Y28: 9 | AB28: 21 | AC28: 10 | AF28: 14 | AG28: 17 | AJ28: 17 | AK28: 14 | AM28: -5 | AO28: 0 | AR28: 13 | AS28: 18 | AW28: 0 | AY28: -5 | AZ28: 0 | BA28: 0 | BB28: 0 | BC28: 0 | BD28: 0 | BE28: 0 | BF28: 0 | BG28: 0 | BH28: 0 | BI28: 0 | BJ28: 0 | BK28: 0 | BL28: 2 | BM28: 1 | BN28: 0 | BO28: 0 | BP28: 1 | BQ28: 0 | BR28: 0 | BS28: 2 | BT28: 1 | BU28: 2 | BV28: 0 | BW28: 0 | BX28: 0 | BY28: 0 | BZ28: 0 | CA28: 0 | CB28: 0 | CC28: 0 | CD28: 0 | CE28: 0 | CF28: 0 | CG28: 0 | CH28: 0 | CI28: 0 | CJ28: 0 | CK28: 0 | CL28: 0 | CM28: 0 | CN28: 0
A29: 25 | B29: Bernardo Gatti | C29: 85 | D29: 25 | E29: 6 | H29: 25 | I29: 6 | L29: 28 | M29: 3 | Q29: 0 | S29: -5 | T29: 28 | U29: 3 | W29: SIM | X29: 19 | Y29: 12 | AB29: 17 | AC29: 14 | AF29: 11 | AG29: 22 | AJ29: 19 | AK29: 12 | AN29: 47 | AO29: 0 | AQ29: SIM | AS29: 0 | AV29: 19 | AW29: 12 | AZ29: 0 | BA29: 0 | BB29: 0 | BC29: 0 | BD29: 0 | BE29: 0 | BF29: 0 | BG29: 0 | BH29: 0 | BI29: 0 | BJ29: 1 | BK29: 0 | BL29: 0 | BM29: 0 | BN29: 0 | BO29: 0 | BP29: 1 | BQ29: 0 | BR29: 3 | BS29: 0 | BT29: 0 | BU29: 0 | BV29: 0 | BW29: 0 | BX29: 2 | BY29: 0 | BZ29: 0 | CA29: 2 | CB29: 0 | CC29: 0 | CD29: 0 | CE29: 0 | CF29: 0 | CG29: 0 | CH29: 0 | CI29: 0 | CJ29: 0 | CK29: 0 | CL29: 0 | CM29: 0 | CN29: 0
A30: 26 | B30: Levindo Neto | C30: 70 | D30: 21 | E30: 10 | G30: -5 | H30: 16 | I30: 15 | L30: 20 | M30: 11 | P30: 21 | Q30: 10 | T30: 31 | U30: 1 | W30: SIM | X30: 23 | Y30: 8 | AC30: 0 | AG30: 0 | AK30: 0 | AN30: 23 | AO30: 8 | AR30: 14 | AS30: 17 | AW30: 0 | AY30: -5 | AZ30: 0 | BA30: 0 | BB30: 0 | BC30: 0 | BD30: 0 | BE30: 0 | BF30: 0 | BG30: 0 | BH30: 0 | BI30: 0 | BJ30: 0 | BK30: 0 | BL30: 0 | BM30: 1 | BN30: 0 | BO30: 1 | BP30: 0 | BQ30: 0 | BR30: 0 | BS30: 1 | BT30: 2 | BU30: 0 | BV30: 2 | BW30: 0 | BX30: 0 | BY30: 0 | BZ30: 0 | CA30: 0 | CB30: 0 | CC30: 0 | CD30: 1 | CE30: 0 | CF30: 0 | CG30: 0 | CH30: 0 | CI30: 0 | CJ30: 0 | CK30: 0 | CL30: 0 | CM30: 0 | CN30: 0
A31: 27 | B31: Felipe Bouhid | C31: 53 | E31: 0 | I31: 0 | M31: 0 | Q31: 0 | U31: 0 | Y31: 0 | AC31: 0 | AF31: 24 | AG31: 7 | AI31: SIM | AJ31: 18 | AK31: 13 | AN31: 14 | AO31: 17 | AS31: 0 | AV31: 15 | AW31: 16 | AZ31: 0 | BA31: 0 | BB31: 0 | BC31: 0 | BD31: 0 | BE31: 1 | BF31: 0 | BG31: 0 | BH31: 0 | BI31: 0 | BJ31: 0 | BK31: 0 | BL31: 1 | BM31: 2 | BN31: 1 | BO31: 0 | BP31: 0 | BQ31: 1 | BR31: 0 | BS31: 0 | BT31: 0 | BU31: 0 | BV31: 0 | BW31: 1 | BX31: 0 | BY31: 0 | BZ31: 0 | CA31: 0 | CB31: 0 | CC31: 0 | CD31: 0 | CE31: 0 | CF31: 0 | CG31: 0 | CH31: 0 | CI31: 0 | CJ31: 0 | CK31: 0 | CL31: 0 | CM31: 0 | CN31: 0
A32: 28 | B32: Gustavo Barros | C32: 53 | E32: 0 | I32: 0 | L32: 18 | M32: 13 | P32: 20 | Q32: 11 | S32: -5 | U32: 0 | X32: 15 | Y32: 16 | AB32: 18 | AC32: 13 | AG32: 0 | AJ32: 21 | AK32: 10 | AO32: 0 | AS32: 0 | AU32: -5 | AW32: 0 | AZ32: 0 | BA32: 0 | BB32: 0 | BC32: 0 | BD32: 0 | BE32: 0 | BF32: 0 | BG32: 0 | BH32: 0 | BI32: 0 | BJ32: 0 | BK32: 0 | BL32: 0 | BM32: 0 | BN32: 1 | BO32: 0 | BP32: 0 | BQ32: 2 | BR32: 0 | BS32: 1 | BT32: 1 | BU32: 0 | BV32: 0 | BW32: 0 | BX32: 0 | BY32: 0 | BZ32: 0 | CA32: 0 | CB32: 0 | CC32: 0 | CD32: 0 | CE32: 0 | CF32: 0 | CG32: 0 | CH32: 0 | CI32: 0 | CJ32: 0 | CK32: 0 | CL32: 0 | CM32: 0 | CN32: 0
A33: 29 | B33: Celso Dantas | C33: 40 | D33: 24 | E33: 7 | H33: 11 | I33: 22 | M33: 0 | Q33: 0 | U33: 0 | Y33: 0 | AC33: 0 | AG33: 0 | AK33: 0 | AO33: 0 | AR33: 15 | AS33: 16 | AW33: 0 | AY33: -5 | AZ33: 0 | BA33: 0 | BB33: 0 | BC33: 0 | BD33: 0 | BE33: 0 | BF33: 0 | BG33: 0 | BH33: 0 | BI33: 0 | BJ33: 1 | BK33: 0 | BL33: 0 | BM33: 0 | BN33: 1 | BO33: 0 | BP33: 0 | BQ33: 0 | BR33: 0 | BS33: 0 | BT33: 0 | BU33: 0 | BV33: 0 | BW33: 1 | BX33: 0 | BY33: 0 | BZ33: 0 | CA33: 0 | CB33: 0 | CC33: 0 | CD33: 0 | CE33: 0 | CF33: 0 | CG33: 0 | CH33: 0 | CI33: 0 | CJ33: 0 | CK33: 0 | CL33: 0 | CM33: 0 | CN33: 0
A34: 30 | B34: João Ferreira | C34: 35 | D34: 26 | E34: 5 | H34: 29 | I34: 2 | L34: 32 | M34: 1 | P34: 22 | Q34: 9 | T34: 15 | U34: 16 | X34: 24 | Y34: 7 | AC34: 0 | AG34: 0 | AK34: 0 | AO34: 0 | AQ34: -5 | AS34: 0 | AW34: 0 | AZ34: 0 | BA34: 0 | BB34: 0 | BC34: 0 | BD34: 0 | BE34: 0 | BF34: 0 | BG34: 0 | BH34: 0 | BI34: 0 | BJ34: 0 | BK34: 0 | BL34: 0 | BM34: 0 | BN34: 1 | BO34: 0 | BP34: 0 | BQ34: 0 | BR34: 0 | BS34: 0 | BT34: 0 | BU34: 1 | BV34: 0 | BW34: 1 | BX34: 0 | BY34: 1 | BZ34: 0 | CA34: 0 | CB34: 1 | CC34: 0 | CD34: 0 | CE34: 1 | CF34: 0 | CG34: 0 | CH34: 0 | CI34: 0 | CJ34: 0 | CK34: 0 | CL34: 0 | CM34: 0 | CN34: 0
A35: 31 | B35: Alan Moreira | C35: 9 | E35: 0 | H35: 26 | I35: 5 | L35: 21 | M35: 10 | Q35: 0 | S35: -5 | U35: 0 | W35: -5 | X35: 17 | Y35: 14 | AC35: 0 | AE35: -5 | AG35: 0 | AK35: 0 | AO35: 0 | AS35: 0 | AU35: -5 | AW35: 0 | AZ35: 0 | BA35: 0 | BB35: 0 | BC35: 0 | BD35: 0 | BE35: 0 | BF35: 0 | BG35: 0 | BH35: 0 | BI35: 0 | BJ35: 0 | BK35: 0 | BL35: 0 | BM35: 0 | BN35: 0 | BO35: 0 | BP35: 1 | BQ35: 0 | BR35: 0 | BS35: 0 | BT35: 1 | BU35: 0 | BV35: 0 | BW35: 0 | BX35: 0 | BY35: 1 | BZ35: 0 | CA35: 0 | CB35: 0 | CC35: 0 | CD35: 0 | CE35: 0 | CF35: 0 | CG35: 0 | CH35: 0 | CI35: 0 | CJ35: 0 | CK35: 0 | CL35: 0 | CM35: 0 | CN35: 0
A36: 32 | B36: Hugo Denucci | C36: 6 | D36: 27 | E36: 4 | I36: 0 | M36: 0 | P36: 24 | Q36: 7 | T36: 21 | U36: 10 | Y36: 0 | AC36: 0 | AG36: 0 | AI36: -5 | AK36: 0 | AO36: 0 | AS36: 0 | AU36: -5 | AW36: 0 | AY36: -5 | AZ36: 0 | BA36: 0 | BB36: 0 | BC36: 0 | BD36: 0 | BE36: 0 | BF36: 0 | BG36: 0 | BH36: 0 | BI36: 0 | BJ36: 0 | BK36: 0 | BL36: 0 | BM36: 0 | BN36: 0 | BO36: 0 | BP36: 0 | BQ36: 0 | BR36: 0 | BS36: 0 | BT36: 1 | BU36: 0 | BV36: 0 | BW36: 1 | BX36: 0 | BY36: 0 | BZ36: 1 | CA36: 0 | CB36: 0 | CC36: 0 | CD36: 0 | CE36: 0 | CF36: 0 | CG36: 0 | CH36: 0 | CI36: 0 | CJ36: 0 | CK36: 0 | CL36: 0 | CM36: 0 | CN36: 0
A37: 33 | B37: Victor Marinho | C37: 6 | D37: 28 | E37: 3 | H37: 24 | I37: 7 | L37: 33 | M37: 1 | P37: 25 | Q37: 6 | T37: 23 | U37: 8 | X37: 36 | Y37: 1 | AA37: SIM | AC37: 0 | AG37: 0 | AK37: 0 | AM37: -5 | AO37: 0 | AQ37: -5 | AS37: 0 | AU37: -5 | AW37: 0 | AY37: -5 | AZ37: 0 | BA37: 0 | BB37: 0 | BC37: 0 | BD37: 0 | BE37: 0 | BF37: 0 | BG37: 0 | BH37: 0 | BI37: 0 | BJ37: 0 | BK37: 0 | BL37: 0 | BM37: 0 | BN37: 0 | BO37: 0 | BP37: 0 | BQ37: 0 | BR37: 0 | BS37: 0 | BT37: 0 | BU37: 0 | BV37: 1 | BW37: 1 | BX37: 1 | BY37: 0 | BZ37: 0 | CA37: 1 | CB37: 0 | CC37: 0 | CD37: 0 | CE37: 0 | CF37: 1 | CG37: 0 | CH37: 0 | CI37: 1 | CJ37: 0 | CK37: 0 | CL37: 0 | CM37: 0 | CN37: 0
A38: 34 | B38: Luiza Mendes | C38: 0 | D38: 30 | E38: 1 | I38: 0 | L38: 4 | M38: 36 | Q38: 0 | U38: 0 | W38: -5 | Y38: 0 | AA38: -5 | AC38: 0 | AE38: -5 | AG38: 0 | AI38: -5 | AK38: 0 | AM38: -5 | AO38: 0 | AQ38: -5 | AS38: 0 | AU38: -5 | AW38: 0 | AY38: -5 | AZ38: 0 | BA38: 0 | BB38: 0 | BC38: 1 | BD38: 0 | BE38: 0 | BF38: 0 | BG38: 0 | BH38: 0 | BI38: 0 | BJ38: 0 | BK38: 0 | BL38: 0 | BM38: 0 | BN38: 0 | BO38: 0 | BP38: 0 | BQ38: 0 | BR38: 0 | BS38: 0 | BT38: 0 | BU38: 0 | BV38: 0 | BW38: 0 | BX38: 0 | BY38: 0 | BZ38: 0 | CA38: 0 | CB38: 0 | CC38: 1 | CD38: 0 | CE38: 0 | CF38: 0 | CG38: 0 | CH38: 0 | CI38: 0 | CJ38: 0 | CK38: 0 | CL38: 0 | CM38: 0 | CN38: 0
A39: 35 | B39: SSSSSSS | C39: 0 | E39: 0 | I39: 0 | M39: 0 | Q39: 0 | U39: 0 | Y39: 0 | AC39: 0 | AG39: 0 | AK39: 0 | AO39: 0 | AS39: 0 | AW39: 0 | AZ39: 0 | BA39: 0 | BB39: 0 | BC39: 0 | BD39: 1 | BE39: 0 | BF39: 0 | BG39: 0 | BH39: 0 | BI39: 0 | BJ39: 0 | BK39: 0 | BL39: 1 | BM39: 0 | BN39: 0 | BO39: 0 | BP39: 0 | BQ39: 0 | BR39: 0 | BS39: 0 | BT39: 0 | BU39: 0 | BV39: 0 | BW39: 1 | BX39: 0 | BY39: 0 | BZ39: 0 | CA39: 0 | CB39: 0 | CC39: 0 | CD39: 0 | CE39: 0 | CF39: 0 | CG39: 0 | CH39: 0 | CI39: 0 | CJ39: 0 | CK39: 0 | CL39: 0 | CM39: 0 | CN39: 0
A40: 36 | B40: Rafael Lemes | C40: 0 | D40: 17 | E40: 14 | I40: 0 | K40: -5 | L40: 34 | M40: 1 | Q40: 0 | S40: -5 | T40: 19 | U40: 12 | Y40: 0 | AA40: -5 | AC40: 0 | AE40: -5 | AG40: 0 | AI40: -5 | AK40: 0 | AM40: -5 | AO40: 0 | AQ40: -5 | AS40: 0 | AU40: -5 | AW40: 0 | AY40: -5 | AZ40: 0 | BA40: 0 | BB40: 0 | BC40: 0 | BD40: 0 | BE40: 0 | BF40: 0 | BG40: 0 | BH40: 0 | BI40: 0 | BJ40: 0 | BK40: 0 | BL40: 0 | BM40: 0 | BN40: 0 | BO40: 0 | BP40: 1 | BQ40: 0 | BR40: 1 | BS40: 0 | BT40: 0 | BU40: 0 | BV40: 0 | BW40: 0 | BX40: 0 | BY40: 0 | BZ40: 0 | CA40: 0 | CB40: 0 | CC40: 0 | CD40: 0 | CE40: 0 | CF40: 0 | CG40: 1 | CH40: 0 | CI40: 0 | CJ40: 0 | CK40: 0 | CL40: 0 | CM40: 0 | CN40: 0
A41: 37 | B41: Gustavo Pereira | C41: 0 | D41: 19 | E41: 12 | H41: 30 | I41: 1 | L41: 19 | M41: 12 | Q41: 0 | S41: -5 | U41: 0 | W41: -5 | Y41: 0 | AA41: -5 | AC41: 0 | AG41: 0 | AI41: -5 | AK41: 0 | AO41: 0 | AQ41: -5 | AS41: 0 | AU41: -5 | AW41: 0 | AY41: -5 | AZ41: 0 | BA41: 0 | BB41: 0 | BC41: 0 | BD41: 0 | BE41: 0 | BF41: 0 | BG41: 0 | BH41: 0 | BI41: 0 | BJ41: 0 | BK41: 0 | BL41: 0 | BM41: 0 | BN41: 0 | BO41: 0 | BP41: 0 | BQ41: 0 | BR41: 2 | BS41: 0 | BT41: 0 | BU41: 0 | BV41: 0 | BW41: 0 | BX41: 0 | BY41: 0 | BZ41: 0 | CA41: 0 | CB41: 0 | CC41: 1 | CD41: 0 | CE41: 0 | CF41: 0 | CG41: 0 | CH41: 0 | CI41: 0 | CJ41: 0 | CK41: 0 | CL41: 0 | CM41: 0 | CN41: 0
A42: 38 | B42: Gustavo Mourão | C42: 0 | E42: 0 | G42: -5 | I42: 0 | K42: -5 | M42: 0 | Q42: 0 | S42: -5 | U42: 0 | W42: -5 | Y42: 0 | AA42: -5 | AC42: 0 | AE42: -5 | AG42: 0 | AI42: -5 | AK42: 0 | AM42: -5 | AO42: 0 | AQ42: -5 | AS42: 0 | AU42: -5 | AW42: 0 | AY42: -5 | AZ42: 0 | BA42: 0 | BB42: 0 | BC42: 0 | BD42: 0 | BE42: 0 | BF42: 0 | BG42: 0 | BH42: 0 | BI42: 0 | BJ42: 0 | BK42: 0 | BL42: 0 | BM42: 0 | BN42: 0 | BO42: 0 | BP42: 0 | BQ42: 0 | BR42: 0 | BS42: 0 | BT42: 0 | BU42: 0 | BV42: 0 | BW42: 0 | BX42: 0 | BY42: 0 | BZ42: 0 | CA42: 0 | CB42: 0 | CC42: 0 | CD42: 0 | CE42: 0 | CF42: 0 | CG42: 0 | CH42: 0 | CI42: 0 | CJ42: 0 | CK42: 0 | CL42: 0 | CM42: 0 | CN42: 0
A43: 39 | C43: 0 | E43: 0 | I43: 0 | M43: 0 | Q43: 0 | U43: 0 | Y43: 0 | AC43: 0 | AG43: 0 | AK43: 0 | AO43: 0 | AS43: 0 | AW43: 0 | AZ43: 0 | BA43: 0 | BB43: 0 | BC43: 0 | BD43: 0 | BE43: 0 | BF43: 0 | BG43: 0 | BH43: 0 | BI43: 0 | BJ43: 0 | BK43: 0 | BL43: 0 | BM43: 0 | BN43: 0 | BO43: 0 | BP43: 0 | BQ43: 0 | BR43: 0 | BS43: 0 | BT43: 0 | BU43: 0 | BV43: 0 | BW43: 0 | BX43: 0 | BY43: 0 | BZ43: 0 | CA43: 0 | CB43: 0 | CC43: 0 | CD43: 0 | CE43: 0 | CF43: 0 | CG43: 0 | CH43: 0 | CI43: 0 | CJ43: 0 | CK43: 0 | CL43: 0 | CM43: 0 | CN43: 0
A44: 40 | C44: 0 | E44: 0 | I44: 0 | M44: 0 | Q44: 0 | U44: 0 | Y44: 0 | AC44: 0 | AG44: 0 | AK44: 0 | AO44: 0 | AS44: 0 | AW44: 0 | AZ44: 0 | BA44: 0 | BB44: 0 | BC44: 0 | BD44: 0 | BE44: 0 | BF44: 0 | BG44: 0 | BH44: 0 | BI44: 0 | BJ44: 0 | BK44: 0 | BL44: 0 | BM44: 0 | BN44: 0 | BO44: 0 | BP44: 0 | BQ44: 0 | BR44: 0 | BS44: 0 | BT44: 0 | BU44: 0 | BV44: 0 | BW44: 0 | BX44: 0 | BY44: 0 | BZ44: 0 | CA44: 0 | CB44: 0 | CC44: 0 | CD44: 0 | CE44: 0 | CF44: 0 | CG44: 0 | CH44: 0 | CI44: 0 | CJ44: 0 | CK44: 0 | CL44: 0 | CM44: 0 | CN44: 0
A45: 41 | C45: 0 | E45: 0 | I45: 0 | M45: 0 | Q45: 0 | U45: 0 | Y45: 0 | AC45: 0 | AG45: 0 | AK45: 0 | AO45: 0 | AS45: 0 | AW45: 0 | AZ45: 0 | BA45: 0 | BB45: 0 | BC45: 0 | BD45: 0 | BE45: 0 | BF45: 0 | BG45: 0 | BH45: 0 | BI45: 0 | BJ45: 0 | BK45: 0 | BL45: 0 | BM45: 0 | BN45: 0 | BO45: 0 | BP45: 0 | BQ45: 0 | BR45: 0 | BS45: 0 | BT45: 0 | BU45: 0 | BV45: 0 | BW45: 0 | BX45: 0 | BY45: 0 | BZ45: 0 | CA45: 0 | CB45: 0 | CC45: 0 | CD45: 0 | CE45: 0 | CF45: 0 | CG45: 0 | CH45: 0 | CI45: 0 | CJ45: 0 | CK45: 0 | CL45: 0 | CM45: 0 | CN45: 0
A46: 42 | C46: 0 | E46: 0 | I46: 0 | M46: 0 | Q46: 0 | U46: 0 | Y46: 0 | AC46: 0 | AG46: 0 | AK46: 0 | AO46: 0 | AS46: 0 | AW46: 0 | AZ46: 0 | BA46: 0 | BB46: 0 | BC46: 0 | BD46: 0 | BE46: 0 | BF46: 0 | BG46: 0 | BH46: 0 | BI46: 0 | BJ46: 0 | BK46: 0 | BL46: 0 | BM46: 0 | BN46: 0 | BO46: 0 | BP46: 0 | BQ46: 0 | BR46: 0 | BS46: 0 | BT46: 0 | BU46: 0 | BV46: 0 | BW46: 0 | BX46: 0 | BY46: 0 | BZ46: 0 | CA46: 0 | CB46: 0 | CC46: 0 | CD46: 0 | CE46: 0 | CF46: 0 | CG46: 0 | CH46: 0 | CI46: 0 | CJ46: 0 | CK46: 0 | CL46: 0 | CM46: 0 | CN46: 0
A47: 43 | C47: 0 | E47: 0 | I47: 0 | M47: 0 | Q47: 0 | U47: 0 | Y47: 0 | AC47: 0 | AG47: 0 | AK47: 0 | AO47: 0 | AS47: 0 | AW47: 0 | AZ47: 0 | BA47: 0 | BB47: 0 | BC47: 0 | BD47: 0 | BE47: 0 | BF47: 0 | BG47: 0 | BH47: 0 | BI47: 0 | BJ47: 0 | BK47: 0 | BL47: 0 | BM47: 0 | BN47: 0 | BO47: 0 | BP47: 0 | BQ47: 0 | BR47: 0 | BS47: 0 | BT47: 0 | BU47: 0 | BV47: 0 | BW47: 0 | BX47: 0 | BY47: 0 | BZ47: 0 | CA47: 0 | CB47: 0 | CC47: 0 | CD47: 0 | CE47: 0 | CF47: 0 | CG47: 0 | CH47: 0 | CI47: 0 | CJ47: 0 | CK47: 0 | CL47: 0 | CM47: 0 | CN47: 0
A48: 44 | C48: 0 | E48: 0 | I48: 0 | M48: 0 | Q48: 0 | U48: 0 | Y48: 0 | AC48: 0 | AG48: 0 | AK48: 0 | AO48: 0 | AS48: 0 | AW48: 0 | AZ48: 0 | BA48: 0 | BB48: 0 | BC48: 0 | BD48: 0 | BE48: 0 | BF48: 0 | BG48: 0 | BH48: 0 | BI48: 0 | BJ48: 0 | BK48: 0 | BL48: 0 | BM48: 0 | BN48: 0 | BO48: 0 | BP48: 0 | BQ48: 0 | BR48: 0 | BS48: 0 | BT48: 0 | BU48: 0 | BV48: 0 | BW48: 0 | BX48: 0 | BY48: 0 | BZ48: 0 | CA48: 0 | CB48: 0 | CC48: 0 | CD48: 0 | CE48: 0 | CF48: 0 | CG48: 0 | CH48: 0 | CI48: 0 | CJ48: 0 | CK48: 0 | CL48: 0 | CM48: 0 | CN48: 0
A49: 45 | C49: 0 | E49: 0 | I49: 0 | M49: 0 | Q49: 0 | U49: 0 | Y49: 0 | AC49: 0 | AG49: 0 | AK49: 0 | AO49: 0 | AS49: 0 | AW49: 0 | AZ49: 0 | BA49: 0 | BB49: 0 | BC49: 0 | BD49: 0 | BE49: 0 | BF49: 0 | BG49: 0 | BH49: 0 | BI49: 0 | BJ49: 0 | BK49: 0 | BL49: 0 | BM49: 0 | BN49: 0 | BO49: 0 | BP49: 0 | BQ49: 0 | BR49: 0 | BS49: 0 | BT49: 0 | BU49: 0 | BV49: 0 | BW49: 0 | BX49: 0 | BY49: 0 | BZ49: 0 | CA49: 0 | CB49: 0 | CC49: 0 | CD49: 0 | CE49: 0 | CF49: 0 | CG49: 0 | CH49: 0 | CI49: 0 | CJ49: 0 | CK49: 0 | CL49: 0 | CM49: 0 | CN49: 0

Sheet Class. elimin. 2 piores res
A1: 2022 | E1: OK | I1: OK | M1: OK | Q1: OK | U1: OK | Y1: OK | AC1: OK | AG1: OK | AK1: OK | AO1: OK | AS1: OK | AW1: OK
D2: 1ª etapa | H2: 2ª etapa | L2: 3ª etapa | P2: 4ª etapa | T2: 5ª etapa | X2: 6ª etapa | AB2: 7ª etapa | AF2: 8ª etapa | AJ2: 9ª etapa | AN2: 10ª etapa | AR2: 11ª etapa | AV2: 12ª etapa
B4: Nome do (a) Piloto (a) | C4: Pontuação Geral | D4: Posição | E4: Pontos | F4: Bônus | G4: Penalidade | H4: Posição | I4: Pontos | J4: Bônus | K4: Penalidade | L4: Posição | M4: Pontos | N4: Bônus | O4: Penalidade | P4: Posição | Q4: Pontos | R4: Bônus | S4: Penalidade | T4: Posição | U4: Pontos | V4: Bônus | W4: Penalidade | X4: Posição | Y4: Pontos | Z4: Bônus | AA4: Penalidade | AB4: Posição | AC4: Pontos | AD4: Bônus | AE4: Penalidade | AF4: Posição | AG4: Pontos | AH4: Bônus | AI4: Penalidade | AJ4: Posição | AK4: Pontos | AL4: Bônus | AM4: Penalidade | AN4: Posição | AO4: Pontos | AP4: Bônus | AQ4: Penalidade | AR4: Posição | AS4: Pontos | AT4: Bônus | AU4: Penalidade | AV4: Posição | AW4: Pontos | AX4: Bônus | AY4: Penalidade | AZ4: 1º LUGAR | BA4: 2º LUGAR | BB4: 3º LUGAR | BC4: 4º LUGAR | BD4: 5º LUGAR | BE4: 6º LUGAR | BF4: 7º LUGAR | BG4: 8º LUGAR | BH4: 9º LUGAR | BI4: 10º LUGAR | BJ4: 11º LUGAR | BK4: 12º LUGAR | BL4: 13º LUGAR | BM4: 14º LUGAR | BN4: 15º LUGAR | BO4: 16º LUGAR | BP4: 17º LUGAR | BQ4: 18º LUGAR | BR4: 19º LUGAR | BS4: 20º LUGAR | BT4: 21º LUGAR | BU4: 22º LUGAR | BV4: 23º LUGAR | BW4: 24º LUGAR | BX4: 25º LUGAR | BY4: 26º LUGAR | BZ4: 27º LUGAR | CA4: 28º LUGAR | CB4: 29º LUGAR | CC4: 30º LUGAR | CD4: 31º LUGAR | CE4: 32º LUGAR | CF4: 33º LUGAR | CG4: 34º LUGAR | CH4: 35º LUGAR | CI4: 36º LUGAR | CJ4: 37º LUGAR | CK4: 38º LUGAR | CL4: 39º LUGAR | CM4: 40º LUGAR | CN4: 41º LUGAR
A5: 1 | B5: Christian Guedes | C5: 364 | D5: 16 | E5: 15* | H5: 21 | I5: 10* | L5: 5 | M5: 34 | P5: 2 | Q5: 41 | T5: 2 | U5: 41 | X5: 13 | Y5: 18 | AB5: 4 | AC5: 36 | AF5: 2 | AG5: 41 | AJ5: 2 | AK5: 41 | AN5: 7 | AO5: 30 | AR5: 2 | AS5: 41 | AV5: 2 | AW5: 41 | AZ5: 0 | BA5: 6 | BB5: 0 | BC5: 1 | BD5: 1 | BE5: 0 | BF5: 1 | BG5: 0 | BH5: 0 | BI5: 0 | BJ5: 0 | BK5: 0 | BL5: 1 | BM5: 0 | BN5: 0 | BO5: 1 | BP5: 0 | BQ5: 0 | BR5: 0 | BS5: 0 | BT5: 1 | BU5: 0 | BV5: 0 | BW5: 0 | BX5: 0 | BY5: 0 | BZ5: 0 | CA5: 0 | CB5: 0 | CC5: 0 | CD5: 0 | CE5: 0 | CF5: 0 | CG5: 0 | CH5: 0 | CI5: 0 | CJ5: 0 | CK5: 0 | CL5: 0 | CM5: 0 | CN5: 0
A6: 2 | B6: Gui Figueiredo | C6: 356 | D6: 1 | E6: 45 | I6: 0* | L6: 3 | M6: 38 | P6: 1 | Q6: 45 | R6: 1 | T6: 8 | U6: 28 | X6: 3 | Y6: 38 | AC6: 0* | AG6: 0 | AJ6: 4 | AK6: 36 | AN6: 2 | AO6: 41 | AR6: 1 | AS6: 45 | AT6: 1 | AV6: 3 | AW6: 38 | AZ6: 3 | BA6: 1 | BB6: 3 | BC6: 1 | BD6: 0 | BE6: 0 | BF6: 0 | BG6: 1 | BH6: 0 | BI6: 0 | BJ6: 0 | BK6: 0 | BL6: 0 | BM6: 0 | BN6: 0 | BO6: 0 | BP6: 0 | BQ6: 0 | BR6: 0 | BS6: 0 | BT6: 0 | BU6: 0 | BV6: 0 | BW6: 0 | BX6: 0 | BY6: 0 | BZ6: 0 | CA6: 0 | CB6: 0 | CC6: 0 | CD6: 0 | CE6: 0 | CF6: 0 | CG6: 0 | CH6: 0 | CI6: 0 | CJ6: 0 | CK6: 0 | CL6: 0 | CM6: 0 | CN6: 0
A7: 3 | B7: Fernando Mota | C7: 339 | D7: 31 | E7: 1* | H7: 12 | I7: 20 | L7: 8 | M7: 28 | P7: 3 | Q7: 38 | T7: 1 | U7: 45 | X7: 1 | Y7: 45 | Z7: 1 | AB7: 22 | AC7: 9* | AF7: 4 | AG7: 36 | AJ7: 3 | AK7: 38 | AN7: 8 | AO7: 28 | AR7: 5 | AS7: 34 | AV7: 9 | AW7: 26 | AZ7: 2 | BA7: 0 | BB7: 2 | BC7: 1 | BD7: 1 | BE7: 0 | BF7: 0 | BG7: 2 | BH7: 1 | BI7: 0 | BJ7: 0 | BK7: 1 | BL7: 0 | BM7: 0 | BN7: 0 | BO7: 0 | BP7: 0 | BQ7: 0 | BR7: 0 | BS7: 0 | BT7: 0 | BU7: 1 | BV7: 0 | BW7: 0 | BX7: 0 | BY7: 0 | BZ7: 0 | CA7: 0 | CB7: 0 | CC7: 0 | CD7: 1 | CE7: 0 | CF7: 0 | CG7: 0 | CH7: 0 | CI7: 0 | CJ7: 0 | CK7: 0 | CL7: 0 | CM7: 0 | CN7: 0
A8: 4 | B8: Alexandre Melillo | C8: 331 | D8: 2 | E8: 41 | F8: 1 | H8: 9 | I8: 26 | L8: 7 | M8: 30 | P8: 4 | Q8: 36 | T8: 9 | U8: 26 | X8: 4 | Y8: 36 | AB8: 13 | AC8: 18* | AF8: 7 | AG8: 30 | AJ8: 1 | AK8: 45 | AN8: 11 | AO8: 22 | AR8: 3 | AS8: 38 | AV8: 14 | AW8: 17* | AZ8: 1 | BA8: 1 | BB8: 1 | BC8: 2 | BD8: 0 | BE8: 0 | BF8: 2 | BG8: 0 | BH8: 2 | BI8: 0 | BJ8: 1 | BK8: 0 | BL8: 1 | BM8: 1 | BN8: 0 | BO8: 0 | BP8: 0 | BQ8: 0 | BR8: 0 | BS8: 0 | BT8: 0 | BU8: 0 | BV8: 0 | BW8: 0 | BX8: 0 | BY8: 0 | BZ8: 0 | CA8: 0 | CB8: 0 | CC8: 0 | CD8: 0 | CE8: 0 | CF8: 0 | CG8: 0 | CH8: 0 | CI8: 0 | CJ8: 0 | CK8: 0 | CL8: 0 | CM8: 0 | CN8: 0
A9: 5 | B9: Jarbas Reis | C9: 306 | D9: 14 | E9: 17 | H9: 1 | I9: 45 | L9: 27 | M9: 4* | P9: 18 | Q9: 13 | T9: 3 | U9: 38 | X9: 9 | Y9: 26 | AB9: 9 | AC9: 26 | AF9: 1 | AG9: 45 | AH9: 1 | AJ9: 5 | AK9: 34 | AL9: 1 | AN9: 10 | AO9: 24 | AR9: 4 | AS9: 36 | AW9: 0* | AZ9: 2 | BA9: 0 | BB9: 1 | BC9: 1 | BD9: 1 | BE9: 0 | BF9: 0 | BG9: 0 | BH9: 2 | BI9: 1 | BJ9: 0 | BK9: 0 | BL9: 0 | BM9: 1 | BN9: 0 | BO9: 0 | BP9: 0 | BQ9: 1 | BR9: 0 | BS9: 0 | BT9: 0 | BU9: 0 | BV9: 0 | BW9: 0 | BX9: 0 | BY9: 0 | BZ9: 1 | CA9: 0 | CB9: 0 | CC9: 0 | CD9: 0 | CE9: 0 | CF9: 0 | CG9: 0 | CH9: 0 | CI9: 0 | CJ9: 0 | CK9: 0 | CL9: 0 | CM9: 0 | CN9: 0
A10: 6 | B10: Bruno Nosse | C10: 300 | D10: 6 | E10: 32 | H10: 10 | I10: 24 | L10: 2 | M10: 41 | N10: 1 | P10: 5 | Q10: 34 | T10: 18 | U10: 13 | X10: 8 | Y10: 28 | AB10: 1 | AC10: 45 | AF10: 19 | AG10: 12* | AJ10: 13 | AK10: 18 | AN10: 3 | AO10: 38 | AR10: 9 | AS10: 26 | AV10: 22 | AW10: 9* | AZ10: 1 | BA10: 1 | BB10: 1 | BC10: 0 | BD10: 1 | BE10: 1 | BF10: 0 | BG10: 1 | BH10: 1 | BI10: 1 | BJ10: 0 | BK10: 0 | BL10: 1 | BM10: 0 | BN10: 0 | BO10: 0 | BP10: 0 | BQ10: 1 | BR10: 1 | BS10: 0 | BT10: 0 | BU10: 1 | BV10: 0 | BW10: 0 | BX10: 0 | BY10: 0 | BZ10: 0 | CA10: 0 | CB10: 0 | CC10: 0 | CD10: 0 | CE10: 0 | CF10: 0 | CG10: 0 | CH10: 0 | CI10: 0 | CJ10: 0 | CK10: 0 | CL10: 0 | CM10: 0 | CN10: 0
A11: 7 | B11: Wesley Canuto | C11: 291 | D11: 11 | E11: 22 | H11: 2 | I11: 41 | L11: 9 | M11: 26 | P11: 8 | Q11: 28 | T11: 12 | U11: 20* | X11: 6 | Y11: 32 | AB11: 6 | AC11: 32 | AF11: 8 | AG11: 28 | AJ11: 7 | AK11: 30 | AN11: 6 | AO11: 32 | AR11: 12 | AS11: 20 | AV11: 21 | AW11: 10* | AZ11: 0 | BA11: 1 | BB11: 0 | BC11: 0 | BD11: 0 | BE11: 3 | BF11: 1 | BG11: 2 | BH11: 1 | BI11: 0 | BJ11: 1 | BK11: 2 | BL11: 0 | BM11: 0 | BN11: 0 | BO11: 0 | BP11: 0 | BQ11: 0 | BR11: 0 | BS11: 0 | BT11: 1 | BU11: 0 | BV11: 0 | BW11: 0 | BX11: 0 | BY11: 0 | BZ11: 0 | CA11: 0 | CB11: 0 | CC11: 0 | CD11: 0 | CE11: 0 | CF11: 0 | CG11: 0 | CH11: 0 | CI11: 0 | CJ11: 0 | CK11: 0 | CL11: 0 | CM11: 0 | CN11: 0
A12: 8 | B12: Guilherme Alves | C12: 287 | D12: 9 | E12: 26 | H12: 28 | I12: 3 | L12: 1 | M12: 45 | Q12: 0* | T12: 4 | U12: 36 | X12: 5 | Y12: 34 | AB12: 10 | AC12: 24 | AF12: 3 | AG12: 38 | AJ12: 35 | AK12: 1 | AM12: SIM | AN12: 5 | AO12: 34 | AP12: 1 | AS12: 0* | AV12: 1 | AW12: 45 | AZ12: 2 | BA12: 0 | BB12: 1 | BC12: 1 | BD12: 2 | BE12: 0 | BF12: 0 | BG12: 0 | BH12: 1 | BI12: 1 | BJ12: 0 | BK12: 0 | BL12: 0 | BM12: 0 | BN12: 0 | BO12: 0 | BP12: 0 | BQ12: 0 | BR12: 0 | BS12: 0 | BT12: 0 | BU12: 0 | BV12: 0 | BW12: 0 | BX12: 0 | BY12: 0 | BZ12: 0 | CA12: 1 | CB12: 0 | CC12: 0 | CD12: 0 | CE12: 0 | CF12: 0 | CG12: 0 | CH12: 1 | CI12: 0 | CJ12: 0 | CK12: 0 | CL12: 0 | CM12: 0 | CN12: 0
A13: 9 | B13: Anderson Teixeira | C13: 277 | E13: 0* | H13: 4 | I13: 36 | L13: 12 | M13: 20 | P13: 10 | Q13: 24 | T13: 10 | U13: 24 | X13: 2 | Y13: 41 | AB13: 2 | AC13: 41 | AF13: 21 | AG13: 10 | AI13: SIM | AJ13: 10 | AK13: 24 | AN13: 22 | AO13: 9* | AR13: 6 | AS13: 32 | AV13: 10 | AW13: 24 | AX13: 1 | AZ13: 0 | BA13: 2 | BB13: 0 | BC13: 1 | BD13: 0 | BE13: 1 | BF13: 0 | BG13: 0 | BH13: 0 | BI13: 4 | BJ13: 0 | BK13: 1 | BL13: 0 | BM13: 0 | BN13: 0 | BO13: 0 | BP13: 0 | BQ13: 0 | BR13: 0 | BS13: 0 | BT13: 1 | BU13: 1 | BV13: 0 | BW13: 0 | BX13: 0 | BY13: 0 | BZ13: 0 | CA13: 0 | CB13: 0 | CC13: 0 | CD13: 0 | CE13: 0 | CF13: 0 | CG13: 0 | CH13: 0 | CI13: 0 | CJ13: 0 | CK13: 0 | CL13: 0 | CM13: 0 | CN13: 0
A14: 10 | B14: Jean Paul | C14: 273 | D14: 12 | E14: 20 | I14: 0* | L14: 25 | M14: 6* | P14: 6 | Q14: 32 | T14: 14 | U14: 17 | X14: 18 | Y14: 13 | AB14: 5 | AC14: 34 | AF14: 13 | AG14: 18 | AJ14: 6 | AK14: 32 | AN14: 1 | AO14: 45 | AR14: 8 | AS14: 28 | AV14: 5 | AW14: 34 | AZ14: 1 | BA14: 0 | BB14: 0 | BC14: 0 | BD14: 2 | BE14: 2 | BF14: 0 | BG14: 1 | BH14: 0 | BI14: 0 | BJ14: 0 | BK14: 1 | BL14: 1 | BM14: 1 | BN14: 0 | BO14: 0 | BP14: 0 | BQ14: 1 | BR14: 0 | BS14: 0 | BT14: 0 | BU14: 0 | BV14: 0 | BW14: 0 | BX14: 1 | BY14: 0 | BZ14: 0 | CA14: 0 | CB14: 0 | CC14: 0 | CD14: 0 | CE14: 0 | CF14: 0 | CG14: 0 | CH14: 0 | CI14: 0 | CJ14: 0 | CK14: 0 | CL14: 0 | CM14: 0 | CN14: 0
A15: 11 | B15: Diego Rodrigues | C15: 233 | D15: 5 | E15: 34 | H15: 17 | I15: 14 | K15: SIM | L15: 10 | M15: 24 | P15: 17 | Q15: 14 | U15: 0* | X15: 7 | Y15: 30 | AB15: 31 | AC15: 1 | AE15: SIM | AF15: 15 | AG15: 16 | AJ15: 8 | AK15: 28 | AN15: 4 | AO15: 36 | AS15: 0* | AV15: 4 | AW15: 36 | AZ15: 0 | BA15: 0 | BB15: 0 | BC15: 2 | BD15: 1 | BE15: 0 | BF15: 1 | BG15: 1 | BH15: 0 | BI15: 1 | BJ15: 0 | BK15: 0 | BL15: 0 | BM15: 0 | BN15: 1 | BO15: 0 | BP15: 2 | BQ15: 0 | BR15: 0 | BS15: 0 | BT15: 0 | BU15: 0 | BV15: 0 | BW15: 0 | BX15: 0 | BY15: 0 | BZ15: 0 | CA15: 0 | CB15: 0 | CC15: 0 | CD15: 1 | CE15: 0 | CF15: 0 | CG15: 0 | CH15: 0 | CI15: 0 | CJ15: 0 | CK15: 0 | CL15: 0 | CM15: 0 | CN15: 0
A16: 12 | B16: Samuel Farley | C16: 223 | D16: 23 | E16: 8* | H16: 5 | I16: 34 | L16: 22 | M16: 9* | P16: 15 | Q16: 16 | T16: 17 | U16: 14 | X16: 10 | Y16: 24 | AB16: 12 | AC16: 20 | AF16: 5 | AG16: 34 | AJ16: 22 | AK16: 9 | AN16: 12 | AO16: 20 | AR16: 11 | AS16: 22 | AV16: 7 | AW16: 30 | AZ16: 0 | BA16: 0 | BB16: 0 | BC16: 0 | BD16: 2 | BE16: 0 | BF16: 1 | BG16: 0 | BH16: 0 | BI16: 1 | BJ16: 1 | BK16: 2 | BL16: 0 | BM16: 0 | BN16: 1 | BO16: 0 | BP16: 1 | BQ16: 0 | BR16: 0 | BS16: 0 | BT16: 0 | BU16: 2 | BV16: 1 | BW16: 0 | BX16: 0 | BY16: 0 | BZ16: 0 | CA16: 0 | CB16: 0 | CC16: 0 | CD16: 0 | CE16: 0 | CF16: 0 | CG16: 0 | CH16: 0 | CI16: 0 | CJ16: 0 | CK16: 0 | CL16: 0 | CM16: 0 | CN16: 0
A17: 13 | B17: Lucio Chequer | C17: 222 | D17: 7 | E17: 30 | H17: 3 | I17: 38 | M17: 0* | P17: 13 | Q17: 18 | T17: 20 | U17: 11 | W17: SIM | X17: 11 | Y17: 22 | AB17: 20 | AC17: 11 | AF17: 9 | AG17: 26 | AJ17: 11 | AK17: 22 | AN17: 9 | AO17: 26 | AS17: 0* | AV17: 13 | AW17: 18 | AZ17: 0 | BA17: 0 | BB17: 1 | BC17: 0 | BD17: 0 | BE17: 0 | BF17: 1 | BG17: 0 | BH17: 2 | BI17: 0 | BJ17: 2 | BK17: 0 | BL17: 2 | BM17: 0 | BN17: 0 | BO17: 0 | BP17: 0 | BQ17: 0 | BR17: 0 | BS17: 2 | BT17: 0 | BU17: 0 | BV17: 0 | BW17: 0 | BX17: 0 | BY17: 0 | BZ17: 0 | CA17: 0 | CB17: 0 | CC17: 0 | CD17: 0 | CE17: 0 | CF17: 0 | CG17: 0 | CH17: 0 | CI17: 0 | CJ17: 0 | CK17: 0 | CL17: 0 | CM17: 0 | CN17: 0
A18: 14 | B18: Matheus Azevedo | C18: 179 | D18: 4 | E18: 36 | H18: 8 | I18: 28 | J18: 1 | L18: 29 | M18: 2 | O18: SIM | P18: 19 | Q18: 12 | T18: 6 | U18: 32 | X18: 16 | Y18: 15 | AB18: 3 | AC18: 38 | AD18: 1 | AF18: 10 | AG18: 24 | AJ18: 50 | AK18: 0 | AM18: SIM | AO18: 0* | AS18: 0* | AU18: -5 | AW18: 0 | AY18: -5 | AZ18: 0 | BA18: 0 | BB18: 1 | BC18: 1 | BD18: 0 | BE18: 1 | BF18: 0 | BG18: 1 | BH18: 0 | BI18: 1 | BJ18: 0 | BK18: 0 | BL18: 0 | BM18: 0 | BN18: 0 | BO18: 1 | BP18: 0 | BQ18: 0 | BR18: 1 | BS18: 0 | BT18: 0 | BU18: 0 | BV18: 0 | BW18: 0 | BX18: 0 | BY18: 0 | BZ18: 0 | CA18: 0 | CB18: 1 | CC18: 0 | CD18: 0 | CE18: 0 | CF18: 0 | CG18: 0 | CH18: 0 | CI18: 0 | CJ18: 0 | CK18: 0 | CL18: 0 | CM18: 0 | CN18: 0
A19: 15 | B19: Frederico Papatella | C19: 177 | D19: 8 | E19: 28 | H19: 14 | I19: 17 | L19: 15 | M19: 16 | P19: 7 | Q19: 30 | T19: 13 | U19: 18 | X19: 35 | Y19: 1 | AA19: SIM | AC19: 0* | AF19: 18 | AG19: 13* | AJ19: 14 | AK19: 17 | AN19: 18 | AO19: 13 | AR19: 16 | AS19: 15 | AV19: 11 | AW19: 22 | AZ19: 0 | BA19: 0 | BB19: 0 | BC19: 0 | BD19: 0 | BE19: 0 | BF19: 1 | BG19: 1 | BH19: 0 | BI19: 0 | BJ19: 1 | BK19: 0 | BL19: 1 | BM19: 2 | BN19: 1 | BO19: 1 | BP19: 0 | BQ19: 2 | BR19: 0 | BS19: 0 | BT19: 0 | BU19: 0 | BV19: 0 | BW19: 0 | BX19: 0 | BY19: 0 | BZ19: 0 | CA19: 0 | CB19: 0 | CC19: 0 | CD19: 0 | CE19: 0 | CF19: 0 | CG19: 0 | CH19: 1 | CI19: 0 | CJ19: 0 | CK19: 0 | CL19: 0 | CM19: 0 | CN19: 0
A20: 16 | B20: Renato Amaral | C20: 173 | D20: 22 | E20: 9 | H20: 23 | I20: 8* | L20: 11 | M20: 22 | P20: 11 | Q20: 22 | T20: 11 | U20: 22 | X20: 25 | Y20: 6* | AB20: 14 | AC20: 17 | AF20: 6 | AG20: 32 | AJ20: 23 | AK20: 8 | AN20: 13 | AO20: 18 | AR20: 23 | AS20: 8 | AU20: SIM | AV20: 16 | AW20: 15 | AZ20: 0 | BA20: 0 | BB20: 0 | BC20: 0 | BD20: 0 | BE20: 1 | BF20: 0 | BG20: 0 | BH20: 0 | BI20: 0 | BJ20: 3 | BK20: 0 | BL20: 1 | BM20: 1 | BN20: 0 | BO20: 1 | BP20: 0 | BQ20: 0 | BR20: 0 | BS20: 0 | BT20: 0 | BU20: 1 | BV20: 3 | BW20: 0 | BX20: 1 | BY20: 0 | BZ20: 0 | CA20: 0 | CB20: 0 | CC20: 0 | CD20: 0 | CE20: 0 | CF20: 0 | CG20: 0 | CH20: 0 | CI20: 0 | CJ20: 0 | CK20: 0 | CL20: 0 | CM20: 0 | CN20: 0
A21: 17 | B21: Vitor Gatti | C21: 173 | D21: 32 | E21: 1* | H21: 27 | I21: 4 | K21: SIM | L21: 17 | M21: 14 | P21: 9 | Q21: 26 | T21: 7 | U21: 30 | X21: 31 | Y21: 1 | AA21: SIM | AB21: 8 | AC21: 28 | AF21: 29 | AG21: 2 | AI21: SIM | AJ21: 9 | AK21: 26 | AN21: 17 | AO21: 14 | AS21: 0* | AV21: 8 | AW21: 28 | AZ21: 0 | BA21: 0 | BB21: 0 | BC21: 0 | BD21: 0 | BE21: 0 | BF21: 1 | BG21: 2 | BH21: 2 | BI21: 0 | BJ21: 0 | BK21: 0 | BL21: 0 | BM21: 0 | BN21: 0 | BO21: 0 | BP21: 2 | BQ21: 0 | BR21: 0 | BS21: 0 | BT21: 0 | BU21: 0 | BV21: 0 | BW21: 0 | BX21: 0 | BY21: 0 | BZ21: 1 | CA21: 0 | CB21: 1 | CC21: 0 | CD21: 1 | CE21: 1 | CF21: 0 | CG21: 0 | CH21: 0 | CI21: 0 | CJ21: 0 | CK21: 0 | CL21: 0 | CM21: 0 | CN21: 0
A22: 18 | B22: Wander Neto | C22: 160 | D22: 15 | E22: 16 | H22: 22 | I22: 9 | L22: 6 | M22: 32 | P22: 14 | Q22: 17 | T22: 27 | U22: 4 | W22: SIM | X22: 21 | Y22: 10 | AB22: 7 | AC22: 30 | AF22: 12 | AG22: 20 | AJ22: 15 | AK22: 16 | AN22: 15 | AO22: 16 | AS22: 0* | AU22: -5 | AW22: 0* | AY22: -5 | AZ22: 0 | BA22: 0 | BB22: 0 | BC22: 0 | BD22: 0 | BE22: 1 | BF22: 1 | BG22: 0 | BH22: 0 | BI22: 0 | BJ22: 0 | BK22: 1 | BL22: 0 | BM22: 1 | BN22: 3 | BO22: 0 | BP22: 0 | BQ22: 0 | BR22: 0 | BS22: 0 | BT22: 1 | BU22: 1 | BV22: 0 | BW22: 0 | BX22: 0 | BY22: 0 | BZ22: 1 | CA22: 0 | CB22: 0 | CC22: 0 | CD22: 0 | CE22: 0 | CF22: 0 | CG22: 0 | CH22: 0 | CI22: 0 | CJ22: 0 | CK22: 0 | CL22: 0 | CM22: 0 | CN22: 0
A23: 19 | B23: Ricardo Amaral | C23: 155 | D23: 3 | E23: 38 | H23: 18 | I23: 13 | L23: 26 | M23: 5 | O23: SIM | Q23: 0* | U23: 0* | W23: -5 | Y23: 0 | AB23: 16 | AC23: 15 | AF23: 17 | AG23: 14 | AJ23: 12 | AK23: 20 | AN23: 20 | AO23: 11 | AR23: 7 | AS23: 30 | AV23: 17 | AW23: 14 | AZ23: 0 | BA23: 0 | BB23: 1 | BC23: 0 | BD23: 0 | BE23: 0 | BF23: 1 | BG23: 0 | BH23: 0 | BI23: 0 | BJ23: 0 | BK23: 1 | BL23: 0 | BM23: 0 | BN23: 0 | BO23: 1 | BP23: 2 | BQ23: 1 | BR23: 0 | BS23: 1 | BT23: 0 | BU23: 0 | BV23: 0 | BW23: 0 | BX23: 0 | BY23: 1 | BZ23: 0 | CA23: 0 | CB23: 0 | CC23: 0 | CD23: 0 | CE23: 0 | CF23: 0 | CG23: 0 | CH23: 0 | CI23: 0 | CJ23: 0 | CK23: 0 | CL23: 0 | CM23: 0 | CN23: 0
A24: 20 | B24: Raphael Reis | C24: 130 | D24: 10 | E24: 24 | H24: 31 | I24: 1 | L24: 16 | M24: 15 | Q24: 0* | U24: 0* | X24: 26 | Y24: 5 | AB24: 11 | AC24: 22 | AG24: 0 | AJ24: 24 | AK24: 7 | AO24: 0 | AR24: 10 | AS24: 24 | AV24: 6 | AW24: 32 | AZ24: 0 | BA24: 0 | BB24: 0 | BC24: 0 | BD24: 0 | BE24: 1 | BF24: 0 | BG24: 0 | BH24: 0 | BI24: 2 | BJ24: 1 | BK24: 0 | BL24: 0 | BM24: 0 | BN24: 0 | BO24: 1 | BP24: 0 | BQ24: 0 | BR24: 0 | BS24: 0 | BT24: 0 | BU24: 0 | BV24: 0 | BW24: 1 | BX24: 0 | BY24: 1 | BZ24: 0 | CA24: 0 | CB24: 0 | CC24: 0 | CD24: 1 | CE24: 0 | CF24: 0 | CG24: 0 | CH24: 0 | CI24: 0 | CJ24: 0 | CK24: 0 | CL24: 0 | CM24: 0 | CN24: 0
A25: 21 | B25: Henry Douglas | C25: 130 | D25: 18 | E25: 13 | H25: 15 | I25: 16 | L25: 30 | M25: 1 | O25: SIM | P25: 12 | Q25: 20 | T25: 16 | U25: 15 | X25: 20 | Y25: 11* | AB25: 15 | AC25: 16 | AF25: 20 | AG25: 11 | AJ25: 20 | AK25: 11 | AN25: 21 | AO25: 10* | AR25: 17 | AS25: 14 | AV25: 18 | AW25: 13 | AZ25: 0 | BA25: 0 | BB25: 0 | BC25: 0 | BD25: 0 | BE25: 0 | BF25: 0 | BG25: 0 | BH25: 0 | BI25: 0 | BJ25: 0 | BK25: 1 | BL25: 0 | BM25: 0 | BN25: 2 | BO25: 1 | BP25: 1 | BQ25: 2 | BR25: 0 | BS25: 3 | BT25: 1 | BU25: 0 | BV25: 0 | BW25: 0 | BX25: 0 | BY25: 0 | BZ25: 0 | CA25: 0 | CB25: 0 | CC25: 1 | CD25: 0 | CE25: 0 | CF25: 0 | CG25: 0 | CH25: 0 | CI25: 0 | CJ25: 0 | CK25: 0 | CL25: 0 | CM25: 0 | CN25: 0
A26: 22 | B26: Aparecido Arantes | C26: 114 | E26: 0* | H26: 7 | I26: 30 | L26: 31 | M26: 1 | P26: 16 | Q26: 15 | S26: -5 | U26: 0* | X26: 14 | Y26: 17 | AC26: 0 | AF26: 16 | AG26: 15 | AJ26: 16 | AK26: 15 | AN26: 16 | AO26: 15 | AS26: 0 | AV26: 20 | AW26: 11 | AZ26: 0 | BA26: 0 | BB26: 0 | BC26: 0 | BD26: 0 | BE26: 0 | BF26: 1 | BG26: 0 | BH26: 0 | BI26: 0 | BJ26: 0 | BK26: 0 | BL26: 0 | BM26: 1 | BN26: 0 | BO26: 4 | BP26: 0 | BQ26: 0 | BR26: 0 | BS26: 1 | BT26: 0 | BU26: 0 | BV26: 0 | BW26: 0 | BX26: 0 | BY26: 0 | BZ26: 0 | CA26: 0 | CB26: 0 | CC26: 0 | CD26: 1 | CE26: 0 | CF26: 0 | CG26: 0 | CH26: 0 | CI26: 0 | CJ26: 0 | CK26: 0 | CL26: 0 | CM26: 0 | CN26: 0
A27: 23 | B27: Renato Martins | C27: 113 | D27: 29 | E27: 2 | G27: SIM | H27: 19 | I27: 12 | L27: 23 | M27: 8 | P27: 23 | Q27: 8 | U27: 0* | X27: 12 | Y27: 20 | AB27: 19 | AC27: 12 | AG27: 0* | AJ27: 25 | AK27: 6 | AN27: 19 | AO27: 12 | AR27: 18 | AS27: 13 | AV27: 12 | AW27: 20 | AZ27: 0 | BA27: 0 | BB27: 0 | BC27: 0 | BD27: 0 | BE27: 0 | BF27: 0 | BG27: 0 | BH27: 0 | BI27: 0 | BJ27: 0 | BK27: 2 | BL27: 0 | BM27: 0 | BN27: 0 | BO27: 0 | BP27: 0 | BQ27: 1 | BR27: 3 | BS27: 0 | BT27: 0 | BU27: 0 | BV27: 2 | BW27: 0 | BX27: 1 | BY27: 0 | BZ27: 0 | CA27: 0 | CB27: 1 | CC27: 0 | CD27: 0 | CE27: 0 | CF27: 0 | CG27: 0 | CH27: 0 | CI27: 0 | CJ27: 0 | CK27: 0 | CL27: 0 | CM27: 0 | CN27: 0
A28: 24 | B28: Iago Bastos | C28: 102 | D28: 20 | E28: 11 | H28: 20 | I28: 11 | L28: 13 | M28: 18 | Q28: 0* | S28: -5 | T28: 22 | U28: 9 | X28: 22 | Y28: 9 | AB28: 21 | AC28: 10 | AF28: 14 | AG28: 17 | AJ28: 17 | AK28: 14 | AM28: -5 | AO28: 0* | AR28: 13 | AS28: 18 | AW28: 0 | AY28: -5 | AZ28: 0 | BA28: 0 | BB28: 0 | BC28: 0 | BD28: 0 | BE28: 0 | BF28: 0 | BG28: 0 | BH28: 0 | BI28: 0 | BJ28: 0 | BK28: 0 | BL28: 2 | BM28: 1 | BN28: 0 | BO28: 0 | BP28: 1 | BQ28: 0 | BR28: 0 | BS28: 2 | BT28: 1 | BU28: 2 | BV28: 0 | BW28: 0 | BX28: 0 | BY28: 0 | BZ28: 0 | CA28: 0 | CB28: 0 | CC28: 0 | CD28: 0 | CE28: 0 | CF28: 0 | CG28: 0 | CH28: 0 | CI28: 0 | CJ28: 0 | CK28: 0 | CL28: 0 | CM28: 0 | CN28: 0
A29: 25 | B29: Bernardo Gatti | C29: 85 | D29: 25 | E29: 6 | H29: 25 | I29: 6 | L29: 28 | M29: 3 | Q29: 0* | S29: -5 | T29: 28 | U29: 3 | W29: SIM | X29: 19 | Y29: 12 | AB29: 17 | AC29: 14 | AF29: 11 | AG29: 22 | AJ29: 19 | AK29: 12 | AN29: 47 | AO29: 0 | AQ29: SIM | AS29: 0* | AV29: 19 | AW29: 12 | AZ29: 0 | BA29: 0 | BB29: 0 | BC29: 0 | BD29: 0 | BE29: 0 | BF29: 0 | BG29: 0 | BH29: 0 | BI29: 0 | BJ29: 1 | BK29: 0 | BL29: 0 | BM29: 0 | BN29: 0 | BO29: 0 | BP29: 1 | BQ29: 0 | BR29: 3 | BS29: 0 | BT29: 0 | BU29: 0 | BV29: 0 | BW29: 0 | BX29: 2 | BY29: 0 | BZ29: 0 | CA29: 2 | CB29: 0 | CC29: 0 | CD29: 0 | CE29: 0 | CF29: 0 | CG29: 0 | CH29: 0 | CI29: 0 | CJ29: 0 | CK29: 0 | CL29: 0 | CM29: 0 | CN29: 0
A30: 26 | B30: Levindo Neto | C30: 70 | D30: 21 | E30: 10 | G30: -5 | H30: 16 | I30: 15 | L30: 20 | M30: 11 | P30: 21 | Q30: 10 | T30: 31 | U30: 1 | W30: SIM | X30: 23 | Y30: 8 | AC30: 0* | AG30: 0* | AK30: 0 | AN30: 23 | AO30: 8 | AR30: 14 | AS30: 17 | AW30: 0 | AY30: -5 | AZ30: 0 | BA30: 0 | BB30: 0 | BC30: 0 | BD30: 0 | BE30: 0 | BF30: 0 | BG30: 0 | BH30: 0 | BI30: 0 | BJ30: 0 | BK30: 0 | BL30: 0 | BM30: 1 | BN30: 0 | BO30: 1 | BP30: 0 | BQ30: 0 | BR30: 0 | BS30: 1 | BT30: 2 | BU30: 0 | BV30: 2 | BW30: 0 | BX30: 0 | BY30: 0 | BZ30: 0 | CA30: 0 | CB30: 0 | CC30: 0 | CD30: 1 | CE30: 0 | CF30: 0 | CG30: 0 | CH30: 0 | CI30: 0 | CJ30: 0 | CK30: 0 | CL30: 0 | CM30: 0 | CN30: 0
A31: 27 | B31: Felipe Bouhid | C31: 53 | E31: 0* | I31: 0* | M31: 0 | Q31: 0 | U31: 0 | Y31: 0 | AC31: 0 | AF31: 24 | AG31: 7 | AI31: SIM | AJ31: 18 | AK31: 13 | AN31: 14 | AO31: 17 | AS31: 0 | AV31: 15 | AW31: 16 | AZ31: 0 | BA31: 0 | BB31: 0 | BC31: 0 | BD31: 0 | BE31: 1 | BF31: 0 | BG31: 0 | BH31: 0 | BI31: 0 | BJ31: 0 | BK31: 0 | BL31: 1 | BM31: 2 | BN31: 1 | BO31: 0 | BP31: 0 | BQ31: 1 | BR31: 0 | BS31: 0 | BT31: 0 | BU31: 0 | BV31: 0 | BW31: 1 | BX31: 0 | BY31: 0 | BZ31: 0 | CA31: 0 | CB31: 0 | CC31: 0 | CD31: 0 | CE31: 0 | CF31: 0 | CG31: 0 | CH31: 0 | CI31: 0 | CJ31: 0 | CK31: 0 | CL31: 0 | CM31: 0 | CN31: 0
A32: 28 | B32: Gustavo Barros | C32: 53 | E32: 0* | I32: 0* | L32: 18 | M32: 13 | P32: 20 | Q32: 11 | S32: -5 | U32: 0 | X32: 15 | Y32: 16 | AB32: 18 | AC32: 13 | AG32: 0 | AJ32: 21 | AK32: 10 | AO32: 0 | AS32: 0 | AU32: -5 | AW32: 0 | AZ32: 0 | BA32: 0 | BB32: 0 | BC32: 0 | BD32: 0 | BE32: 0 | BF32: 0 | BG32: 0 | BH32: 0 | BI32: 0 | BJ32: 0 | BK32: 0 | BL32: 0 | BM32: 0 | BN32: 1 | BO32: 0 | BP32: 0 | BQ32: 2 | BR32: 0 | BS32: 1 | BT32: 1 | BU32: 0 | BV32: 0 | BW32: 0 | BX32: 0 | BY32: 0 | BZ32: 0 | CA32: 0 | CB32: 0 | CC32: 0 | CD32: 0 | CE32: 0 | CF32: 0 | CG32: 0 | CH32: 0 | CI32: 0 | CJ32: 0 | CK32: 0 | CL32: 0 | CM32: 0 | CN32: 0
A33: 29 | B33: Celso Dantas | C33: 40 | D33: 24 | E33: 7 | H33: 11 | I33: 22 | M33: 0* | Q33: 0* | U33: 0 | Y33: 0 | AC33: 0 | AG33: 0 | AK33: 0 | AO33: 0 | AR33: 15 | AS33: 16 | AW33: 0 | AY33: -5 | AZ33: 0 | BA33: 0 | BB33: 0 | BC33: 0 | BD33: 0 | BE33: 0 | BF33: 0 | BG33: 0 | BH33: 0 | BI33: 0 | BJ33: 1 | BK33: 0 | BL33: 0 | BM33: 0 | BN33: 1 | BO33: 0 | BP33: 0 | BQ33: 0 | BR33: 0 | BS33: 0 | BT33: 0 | BU33: 0 | BV33: 0 | BW33: 1 | BX33: 0 | BY33: 0 | BZ33: 0 | CA33: 0 | CB33: 0 | CC33: 0 | CD33: 0 | CE33: 0 | CF33: 0 | CG33: 0 | CH33: 0 | CI33: 0 | CJ33: 0 | CK33: 0 | CL33: 0 | CM33: 0 | CN33: 0
A34: 30 | B34: João Ferreira | C34: 35 | D34: 26 | E34: 5 | H34: 29 | I34: 2 | L34: 32 | M34: 1 | P34: 22 | Q34: 9 | T34: 15 | U34: 16 | X34: 24 | Y34: 7 | AC34: 0* | AG34: 0* | AK34: 0 | AO34: 0 | AQ34: -5 | AS34: 0 | AW34: 0 | AZ34: 0 | BA34: 0 | BB34: 0 | BC34: 0 | BD34: 0 | BE34: 0 | BF34: 0 | BG34: 0 | BH34: 0 | BI34: 0 | BJ34: 0 | BK34: 0 | BL34: 0 | BM34: 0 | BN34: 1 | BO34: 0 | BP34: 0 | BQ34: 0 | BR34: 0 | BS34: 0 | BT34: 0 | BU34: 1 | BV34: 0 | BW34: 1 | BX34: 0 | BY34: 1 | BZ34: 0 | CA34: 0 | CB34: 1 | CC34: 0 | CD34: 0 | CE34: 1 | CF34: 0 | CG34: 0 | CH34: 0 | CI34: 0 | CJ34: 0 | CK34: 0 | CL34: 0 | CM34: 0 | CN34: 0
A35: 31 | B35: Alan Moreira | C35: 9 | E35: 0* | H35: 26 | I35: 5 | L35: 21 | M35: 10 | Q35: 0* | S35: -5 | U35: 0 | W35: -5 | X35: 17 | Y35: 14 | AC35: 0 | AE35: -5 | AG35: 0 | AK35: 0 | AO35: 0 | AS35: 0 | AU35: -5 | AW35: 0 | AZ35: 0 | BA35: 0 | BB35: 0 | BC35: 0 | BD35: 0 | BE35: 0 | BF35: 0 | BG35: 0 | BH35: 0 | BI35: 0 | BJ35: 0 | BK35: 0 | BL35: 0 | BM35: 0 | BN35: 0 | BO35: 0 | BP35: 1 | BQ35: 0 | BR35: 0 | BS35: 0 | BT35: 1 | BU35: 0 | BV35: 0 | BW35: 0 | BX35: 0 | BY35: 1 | BZ35: 0 | CA35: 0 | CB35: 0 | CC35: 0 | CD35: 0 | CE35: 0 | CF35: 0 | CG35: 0 | CH35: 0 | CI35: 0 | CJ35: 0 | CK35: 0 | CL35: 0 | CM35: 0 | CN35: 0
A36: 32 | B36: Hugo Denucci | C36: 6 | D36: 27 | E36: 4 | I36: 0* | M36: 0* | P36: 24 | Q36: 7 | T36: 21 | U36: 10 | Y36: 0 | AC36: 0 | AG36: 0 | AI36: -5 | AK36: 0 | AO36: 0 | AS36: 0 | AU36: -5 | AW36: 0 | AY36: -5 | AZ36: 0 | BA36: 0 | BB36: 0 | BC36: 0 | BD36: 0 | BE36: 0 | BF36: 0 | BG36: 0 | BH36: 0 | BI36: 0 | BJ36: 0 | BK36: 0 | BL36: 0 | BM36: 0 | BN36: 0 | BO36: 0 | BP36: 0 | BQ36: 0 | BR36: 0 | BS36: 0 | BT36: 1 | BU36: 0 | BV36: 0 | BW36: 1 | BX36: 0 | BY36: 0 | BZ36: 1 | CA36: 0 | CB36: 0 | CC36: 0 | CD36: 0 | CE36: 0 | CF36: 0 | CG36: 0 | CH36: 0 | CI36: 0 | CJ36: 0 | CK36: 0 | CL36: 0 | CM36: 0 | CN36: 0
A37: 33 | B37: Victor Marinho | C37: 6 | D37: 28 | E37: 3 | H37: 24 | I37: 7 | L37: 33 | M37: 1 | P37: 25 | Q37: 6 | T37: 23 | U37: 8 | X37: 36 | Y37: 1 | AA37: SIM | AC37: 0* | AG37: 0* | AK37: 0 | AM37: -5 | AO37: 0 | AQ37: -5 | AS37: 0 | AU37: -5 | AW37: 0 | AY37: -5 | AZ37: 0 | BA37: 0 | BB37: 0 | BC37: 0 | BD37: 0 | BE37: 0 | BF37: 0 | BG37: 0 | BH37: 0 | BI37: 0 | BJ37: 0 | BK37: 0 | BL37: 0 | BM37: 0 | BN37: 0 | BO37: 0 | BP37: 0 | BQ37: 0 | BR37: 0 | BS37: 0 | BT37: 0 | BU37: 0 | BV37: 1 | BW37: 1 | BX37: 1 | BY37: 0 | BZ37: 0 | CA37: 1 | CB37: 0 | CC37: 0 | CD37: 0 | CE37: 0 | CF37: 1 | CG37: 0 | CH37: 0 | CI37: 1 | CJ37: 0 | CK37: 0 | CL37: 0 | CM37: 0 | CN37: 0
A38: 34 | B38: Luiza Mendes | C38: 0 | D38: 30 | E38: 1 | I38: 0* | L38: 4 | M38: 36 | Q38: 0* | U38: 0 | W38: -5 | Y38: 0 | AA38: -5 | AC38: 0 | AE38: -5 | AG38: 0 | AI38: -5 | AK38: 0 | AM38: -5 | AO38: 0 | AQ38: -5 | AS38: 0 | AU38: -5 | AW38: 0 | AY38: -5 | AZ38: 0 | BA38: 0 | BB38: 0 | BC38: 1 | BD38: 0 | BE38: 0 | BF38: 0 | BG38: 0 | BH38: 0 | BI38: 0 | BJ38: 0 | BK38: 0 | BL38: 0 | BM38: 0 | BN38: 0 | BO38: 0 | BP38: 0 | BQ38: 0 | BR38: 0 | BS38: 0 | BT38: 0 | BU38: 0 | BV38: 0 | BW38: 0 | BX38: 0 | BY38: 0 | BZ38: 0 | CA38: 0 | CB38: 0 | CC38: 1 | CD38: 0 | CE38: 0 | CF38: 0 | CG38: 0 | CH38: 0 | CI38: 0 | CJ38: 0 | CK38: 0 | CL38: 0 | CM38: 0 | CN38: 0
A39: 35 | B39: SSSSSSS | C39: 0 | E39: 0* | I39: 0* | M39: 0 | Q39: 0 | U39: 0 | Y39: 0 | AC39: 0 | AG39: 0 | AK39: 0 | AO39: 0 | AS39: 0 | AW39: 0 | AZ39: 0 | BA39: 0 | BB39: 0 | BC39: 0 | BD39: 1 | BE39: 0 | BF39: 0 | BG39: 0 | BH39: 0 | BI39: 0 | BJ39: 0 | BK39: 0 | BL39: 1 | BM39: 0 | BN39: 0 | BO39: 0 | BP39: 0 | BQ39: 0 | BR39: 0 | BS39: 0 | BT39: 0 | BU39: 0 | BV39: 0 | BW39: 1 | BX39: 0 | BY39: 0 | BZ39: 0 | CA39: 0 | CB39: 0 | CC39: 0 | CD39: 0 | CE39: 0 | CF39: 0 | CG39: 0 | CH39: 0 | CI39: 0 | CJ39: 0 | CK39: 0 | CL39: 0 | CM39: 0 | CN39: 0
A40: 36 | B40: Rafael Lemes | C40: 0 | D40: 17 | E40: 14 | I40: 0* | K40: -5 | L40: 34 | M40: 1 | Q40: 0* | S40: -5 | T40: 19 | U40: 12 | Y40: 0 | AA40: -5 | AC40: 0 | AE40: -5 | AG40: 0 | AI40: -5 | AK40: 0 | AM40: -5 | AO40: 0 | AQ40: -5 | AS40: 0 | AU40: -5 | AW40: 0 | AY40: -5 | AZ40: 0 | BA40: 0 | BB40: 0 | BC40: 0 | BD40: 0 | BE40: 0 | BF40: 0 | BG40: 0 | BH40: 0 | BI40: 0 | BJ40: 0 | BK40: 0 | BL40: 0 | BM40: 0 | BN40: 0 | BO40: 0 | BP40: 1 | BQ40: 0 | BR40: 1 | BS40: 0 | BT40: 0 | BU40: 0 | BV40: 0 | BW40: 0 | BX40: 0 | BY40: 0 | BZ40: 0 | CA40: 0 | CB40: 0 | CC40: 0 | CD40: 0 | CE40: 0 | CF40: 0 | CG40: 1 | CH40: 0 | CI40: 0 | CJ40: 0 | CK40: 0 | CL40: 0 | CM40: 0 | CN40: 0
A41: 37 | B41: Gustavo Pereira | C41: 0 | D41: 19 | E41: 12 | H41: 30 | I41: 1 | L41: 19 | M41: 12 | Q41: 0* | S41: -5 | U41: 0* | W41: -5 | Y41: 0 | AA41: -5 | AC41: 0 | AG41: 0 | AI41: -5 | AK41: 0 | AO41: 0 | AQ41: -5 | AS41: 0 | AU41: -5 | AW41: 0 | AY41: -5 | AZ41: 0 | BA41: 0 | BB41: 0 | BC41: 0 | BD41: 0 | BE41: 0 | BF41: 0 | BG41: 0 | BH41: 0 | BI41: 0 | BJ41: 0 | BK41: 0 | BL41: 0 | BM41: 0 | BN41: 0 | BO41: 0 | BP41: 0 | BQ41: 0 | BR41: 2 | BS41: 0 | BT41: 0 | BU41: 0 | BV41: 0 | BW41: 0 | BX41: 0 | BY41: 0 | BZ41: 0 | CA41: 0 | CB41: 0 | CC41: 1 | CD41: 0 | CE41: 0 | CF41: 0 | CG41: 0 | CH41: 0 | CI41: 0 | CJ41: 0 | CK41: 0 | CL41: 0 | CM41: 0 | CN41: 0
A42: 38 | B42: Gustavo Mourão | C42: 0 | E42: 0* | G42: -5 | I42: 0* | K42: -5 | M42: 0 | Q42: 0 | S42: -5 | U42: 0 | W42: -5 | Y42: 0 | AA42: -5 | AC42: 0 | AE42: -5 | AG42: 0 | AI42: -5 | AK42: 0 | AM42: -5 | AO42: 0 | AQ42: -5 | AS42: 0 | AU42: -5 | AW42: 0 | AY42: -5 | AZ42: 0 | BA42: 0 | BB42: 0 | BC42: 0 | BD42: 0 | BE42: 0 | BF42: 0 | BG42: 0 | BH42: 0 | BI42: 0 | BJ42: 0 | BK42: 0 | BL42: 0 | BM42: 0 | BN42: 0 | BO42: 0 | BP42: 0 | BQ42: 0 | BR42: 0 | BS42: 0 | BT42: 0 | BU42: 0 | BV42: 0 | BW42: 0 | BX42: 0 | BY42: 0 | BZ42: 0 | CA42: 0 | CB42: 0 | CC42: 0 | CD42: 0 | CE42: 0 | CF42: 0 | CG42: 0 | CH42: 0 | CI42: 0 | CJ42: 0 | CK42: 0 | CL42: 0 | CM42: 0 | CN42: 0
A43: 39 | C43: 0 | E43: 0 | I43: 0 | M43: 0 | Q43: 0 | U43: 0 | Y43: 0 | AC43: 0 | AG43: 0 | AK43: 0 | AO43: 0 | AS43: 0 | AW43: 0 | AZ43: 0 | BA43: 0 | BB43: 0 | BC43: 0 | BD43: 0 | BE43: 0 | BF43: 0 | BG43: 0 | BH43: 0 | BI43: 0 | BJ43: 0 | BK43: 0 | BL43: 0 | BM43: 0 | BN43: 0 | BO43: 0 | BP43: 0 | BQ43: 0 | BR43: 0 | BS43: 0 | BT43: 0 | BU43: 0 | BV43: 0 | BW43: 0 | BX43: 0 | BY43: 0 | BZ43: 0 | CA43: 0 | CB43: 0 | CC43: 0 | CD43: 0 | CE43: 0 | CF43: 0 | CG43: 0 | CH43: 0 | CI43: 0 | CJ43: 0 | CK43: 0 | CL43: 0 | CM43: 0 | CN43: 0
A44: 40 | C44: 0 | E44: 0 | I44: 0 | M44: 0 | Q44: 0 | U44: 0 | Y44: 0 | AC44: 0 | AG44: 0 | AK44: 0 | AO44: 0 | AS44: 0 | AW44: 0 | AZ44: 0 | BA44: 0 | BB44: 0 | BC44: 0 | BD44: 0 | BE44: 0 | BF44: 0 | BG44: 0 | BH44: 0 | BI44: 0 | BJ44: 0 | BK44: 0 | BL44: 0 | BM44: 0 | BN44: 0 | BO44: 0 | BP44: 0 | BQ44: 0 | BR44: 0 | BS44: 0 | BT44: 0 | BU44: 0 | BV44: 0 | BW44: 0 | BX44: 0 | BY44: 0 | BZ44: 0 | CA44: 0 | CB44: 0 | CC44: 0 | CD44: 0 | CE44: 0 | CF44: 0 | CG44: 0 | CH44: 0 | CI44: 0 | CJ44: 0 | CK44: 0 | CL44: 0 | CM44: 0 | CN44: 0
A45: 41 | C45: 0 | E45: 0 | I45: 0 | M45: 0 | Q45: 0 | U45: 0 | Y45: 0 | AC45: 0 | AG45: 0 | AK45: 0 | AO45: 0 | AS45: 0 | AW45: 0 | AZ45: 0 | BA45: 0 | BB45: 0 | BC45: 0 | BD45: 0 | BE45: 0 | BF45: 0 | BG45: 0 | BH45: 0 | BI45: 0 | BJ45: 0 | BK45: 0 | BL45: 0 | BM45: 0 | BN45: 0 | BO45: 0 | BP45: 0 | BQ45: 0 | BR45: 0 | BS45: 0 | BT45: 0 | BU45: 0 | BV45: 0 | BW45: 0 | BX45: 0 | BY45: 0 | BZ45: 0 | CA45: 0 | CB45: 0 | CC45: 0 | CD45: 0 | CE45: 0 | CF45: 0 | CG45: 0 | CH45: 0 | CI45: 0 | CJ45: 0 | CK45: 0 | CL45: 0 | CM45: 0 | CN45: 0
A46: 42 | C46: 0 | E46: 0 | I46: 0 | M46: 0 | Q46: 0 | U46: 0 | Y46: 0 | AC46: 0 | AG46: 0 | AK46: 0 | AO46: 0 | AS46: 0 | AW46: 0 | AZ46: 0 | BA46: 0 | BB46: 0 | BC46: 0 | BD46: 0 | BE46: 0 | BF46: 0 | BG46: 0 | BH46: 0 | BI46: 0 | BJ46: 0 | BK46: 0 | BL46: 0 | BM46: 0 | BN46: 0 | BO46: 0 | BP46: 0 | BQ46: 0 | BR46: 0 | BS46: 0 | BT46: 0 | BU46: 0 | BV46: 0 | BW46: 0 | BX46: 0 | BY46: 0 | BZ46: 0 | CA46: 0 | CB46: 0 | CC46: 0 | CD46: 0 | CE46: 0 | CF46: 0 | CG46: 0 | CH46: 0 | CI46: 0 | CJ46: 0 | CK46: 0 | CL46: 0 | CM46: 0 | CN46: 0
A47: 43 | C47: 0 | E47: 0 | I47: 0 | M47: 0 | Q47: 0 | U47: 0 | Y47: 0 | AC47: 0 | AG47: 0 | AK47: 0 | AO47: 0 | AS47: 0 | AW47: 0 | AZ47: 0 | BA47: 0 | BB47: 0 | BC47: 0 | BD47: 0 | BE47: 0 | BF47: 0 | BG47: 0 | BH47: 0 | BI47: 0 | BJ47: 0 | BK47: 0 | BL47: 0 | BM47: 0 | BN47: 0 | BO47: 0 | BP47: 0 | BQ47: 0 | BR47: 0 | BS47: 0 | BT47: 0 | BU47: 0 | BV47: 0 | BW47: 0 | BX47: 0 | BY47: 0 | BZ47: 0 | CA47: 0 | CB47: 0 | CC47: 0 | CD47: 0 | CE47: 0 | CF47: 0 | CG47: 0 | CH47: 0 | CI47: 0 | CJ47: 0 | CK47: 0 | CL47: 0 | CM47: 0 | CN47: 0
A48: 44 | C48: 0 | E48: 0 | I48: 0 | M48: 0 | Q48: 0 | U48: 0 | Y48: 0 | AC48: 0 | AG48: 0 | AK48: 0 | AO48: 0 | AS48: 0 | AW48: 0 | AZ48: 0 | BA48: 0 | BB48: 0 | BC48: 0 | BD48: 0 | BE48: 0 | BF48: 0 | BG48: 0 | BH48: 0 | BI48: 0 | BJ48: 0 | BK48: 0 | BL48: 0 | BM48: 0 | BN48: 0 | BO48: 0 | BP48: 0 | BQ48: 0 | BR48: 0 | BS48: 0 | BT48: 0 | BU48: 0 | BV48: 0 | BW48: 0 | BX48: 0 | BY48: 0 | BZ48: 0 | CA48: 0 | CB48: 0 | CC48: 0 | CD48: 0 | CE48: 0 | CF48: 0 | CG48: 0 | CH48: 0 | CI48: 0 | CJ48: 0 | CK48: 0 | CL48: 0 | CM48: 0 | CN48: 0
A49: 45 | C49: 0 | E49: 0 | I49: 0 | M49: 0 | Q49: 0 | U49: 0 | Y49: 0 | AC49: 0 | AG49: 0 | AK49: 0 | AO49: 0 | AS49: 0 | AW49: 0 | AZ49: 0 | BA49: 0 | BB49: 0 | BC49: 0 | BD49: 0 | BE49: 0 | BF49: 0 | BG49: 0 | BH49: 0 | BI49: 0 | BJ49: 0 | BK49: 0 | BL49: 0 | BM49: 0 | BN49: 0 | BO49: 0 | BP49: 0 | BQ49: 0 | BR49: 0 | BS49: 0 | BT49: 0 | BU49: 0 | BV49: 0 | BW49: 0 | BX49: 0 | BY49: 0 | BZ49: 0 | CA49: 0 | CB49: 0 | CC49: 0 | CD49: 0 | CE49: 0 | CF49: 0 | CG49: 0 | CH49: 0 | CI49: 0 | CJ49: 0 | CK49: 0 | CL49: 0 | CM49: 0 | CN49: 0

Sheet Tabela Equipes
A1: 2022 | D1: OK | H1: OK | L1: OK | P1: OK | T1: OK | X1: OK | AB1: OK | AF1: OK | AJ1: OK | AN1: OK | AR1: OK | AV1: OK
C2: 1ª etapa | G2: 2ª etapa | K2: 3ª etapa | O2: 4ª etapa | S2: 5ª etapa | W2: 6ª etapa | AA2: 7ª etapa | AE2: 8ª etapa | AI2: 9ª etapa | AM2: 10ª etapa | AQ2: 11ª etapa | AU2: 12ª etapa
C3: 00:00:00 | G3: 00:00:00 | K3: 00:00:00 | O3: 00:00:00 | S3: 00:00:00 | W3: 00:00:00 | AA3: 00:00:00 | AE3: 00:00:00 | AI3: 00:00:00 | AM3: 00:00:00 | AQ3: 00:00:00 | AU3: 00:00:00
A4: EQUIPES | B4: Pontuação Geral | C4: Posição | D4: Pontos | E4: Bônus | F4: Penalidade | G4: Posição | H4: Pontos | I4: Bônus | J4: Penalidade | K4: Posição | L4: Pontos | M4: Bônus | N4: Penalidade | O4: Posição | P4: Pontos | Q4: Bônus | R4: Penalidade | S4: Posição | T4: Pontos | U4: Bônus | V4: Penalidade | W4: Posição | X4: Pontos | Y4: Bônus | Z4: Penalidade | AA4: Posição | AB4: Pontos | AC4: Bônus | AD4: Penalidade | AE4: Posição | AF4: Pontos | AG4: Bônus | AH4: Penalidade | AI4: Posição | AJ4: Pontos | AK4: Bônus | AL4: Penalidade | AM4: Posição | AN4: Pontos | AO4: Bônus | AP4: Penalidade | AQ4: Posição | AR4: Pontos | AS4: Bônus | AT4: Penalidade | AU4: Posição | AV4: Pontos | AW4: Bônus | AX4: Penalidade
A5: SASantiago | B5: 646 | D5: 57 | E5: 0 | H5: 39 | I5: 0 | L5: 57 | M5: 0 | P5: 68 | Q5: 1 | T5: 52 | U5: 0 | X5: 76 | Y5: 0 | AB5: 20 | AC5: 0 | AF5: 34 | AG5: 0 | AJ5: 45 | AK5: 0 | AN5: 61 | AO5: 0 | AR5: 67 | AS5: 1 | AV5: 68 | AW5: 0
A6: Gui Figueiredo | B6: 356 | C6: 1 | D6: 45 | E6: 0 | G6: 0 | H6: 0 | I6: 0 | K6: 3 | L6: 38 | M6: 0 | O6: 1 | P6: 45 | Q6: 1 | S6: 8 | T6: 28 | U6: 0 | W6: 3 | X6: 38 | Y6: 0 | AA6: 0 | AB6: 0 | AC6: 0 | AE6: 0 | AF6: 0 | AG6: 0 | AI6: 4 | AJ6: 36 | AK6: 0 | AM6: 2 | AN6: 41 | AO6: 0 | AQ6: 1 | AR6: 45 | AS6: 1 | AU6: 3 | AV6: 38 | AW6: 0
A7: Alan Moreira | B7: 29 | C7: 0 | D7: 0 | E7: 0 | G7: 26 | H7: 5 | I7: 0 | K7: 21 | L7: 10 | M7: 0 | O7: 0 | P7: 0 | Q7: 0 | S7: 0 | T7: 0 | U7: 0 | W7: 17 | X7: 14 | Y7: 0 | AA7: 0 | AB7: 0 | AC7: 0 | AE7: 0 | AF7: 0 | AG7: 0 | AI7: 0 | AJ7: 0 | AK7: 0 | AM7: 0 | AN7: 0 | AO7: 0 | AQ7: 0 | AR7: 0 | AS7: 0 | AU7: 0 | AV7: 0 | AW7: 0
A8: Samuel Farley | B8: 240 | C8: 23 | D8: 8 | E8: 0 | G8: 5 | H8: 34 | I8: 0 | K8: 22 | L8: 9 | M8: 0 | O8: 15 | P8: 16 | Q8: 0 | S8: 17 | T8: 14 | U8: 0 | W8: 10 | X8: 24 | Y8: 0 | AA8: 12 | AB8: 20 | AC8: 0 | AE8: 5 | AF8: 34 | AG8: 0 | AI8: 22 | AJ8: 9 | AK8: 0 | AM8: 12 | AN8: 20 | AO8: 0 | AQ8: 11 | AR8: 22 | AS8: 0 | AU8: 7 | AV8: 30 | AW8: 0
A9: Hugo Denucci | B9: 21 | C9: 27 | D9: 4 | E9: 0 | G9: 0 | H9: 0 | I9: 0 | K9: 0 | L9: 0 | M9: 0 | O9: 24 | P9: 7 | Q9: 0 | S9: 21 | T9: 10 | U9: 0 | W9: 0 | X9: 0 | Y9: 0 | AA9: 0 | AB9: 0 | AC9: 0 | AE9: 0 | AF9: 0 | AG9: 0 | AI9: 0 | AJ9: 0 | AK9: 0 | AM9: 0 | AN9: 0 | AO9: 0 | AQ9: 0 | AR9: 0 | AS9: 0 | AU9: 0 | AV9: 0 | AW9: 0
A10: X
A11: Alpha | B11: 776 | D11: 64 | E11: 0 | H11: 53 | I11: 0 | L11: 79 | M11: 0 | P11: 81 | Q11: 0 | T11: 69 | U11: 0 | X11: 36 | Y11: 0 | AB11: 46 | AC11: 0 | AF11: 71 | AG11: 0 | AJ11: 72 | AK11: 0 | AN11: 51 | AO11: 0 | AR11: 91 | AS11: 0 | AV11: 63 | AW11: 0
A12: Christian Guedes | B12: 389 | C12: 16 | D12: 15 | E12: 0 | G12: 21 | H12: 10 | I12: 0 | K12: 5 | L12: 34 | M12: 0 | O12: 2 | P12: 41 | Q12: 0 | S12: 2 | T12: 41 | U12: 0 | W12: 13 | X12: 18 | Y12: 0 | AA12: 4 | AB12: 36 | AC12: 0 | AE12: 2 | AF12: 41 | AG12: 0 | AI12: 2 | AJ12: 41 | AK12: 0 | AM12: 7 | AN12: 30 | AO12: 0 | AQ12: 2 | AR12: 41 | AS12: 0 | AU12: 2 | AV12: 41 | AW12: 0
A13: Levindo Neto | B13: 80 | C13: 21 | D13: 10 | E13: 0 | G13: 16 | H13: 15 | I13: 0 | K13: 20 | L13: 11 | M13: 0 | O13: 21 | P13: 10 | Q13: 0 | S13: 31 | T13: 1 | U13: 0 | W13: 23 | X13: 8 | Y13: 0 | AA13: 0 | AB13: 0 | AC13: 0 | AE13: 0 | AF13: 0 | AG13: 0 | AI13: 0 | AJ13: 0 | AK13: 0 | AM13: 23 | AN13: 8 | AO13: 0 | AQ13: 14 | AR13: 17 | AS13: 0 | AU13: 0 | AV13: 0 | AW13: 0
A14: Frederico Papatella | B14: 190 | C14: 8 | D14: 28 | E14: 0 | G14: 14 | H14: 17 | I14: 0 | K14: 15 | L14: 16 | M14: 0 | O14: 7 | P14: 30 | Q14: 0 | S14: 13 | T14: 18 | U14: 0 | W14: 35 | X14: 1 | Y14: 0 | AA14: 0 | AB14: 0 | AC14: 0 | AE14: 18 | AF14: 13 | AG14: 0 | AI14: 14 | AJ14: 17 | AK14: 0 | AM14: 18 | AN14: 13 | AO14: 0 | AQ14: 16 | AR14: 15 | AS14: 0 | AU14: 11 | AV14: 22 | AW14: 0
A15: Iago Bastos | B15: 117 | C15: 20 | D15: 11 | E15: 0 | G15: 20 | H15: 11 | I15: 0 | K15: 13 | L15: 18 | M15: 0 | O15: 0 | P15: 0 | Q15: 0 | S15: 22 | T15: 9 | U15: 0 | W15: 22 | X15: 9 | Y15: 0 | AA15: 21 | AB15: 10 | AC15: 0 | AE15: 14 | AF15: 17 | AG15: 0 | AI15: 17 | AJ15: 14 | AK15: 0 | AM15: 0 | AN15: 0 | AO15: 0 | AQ15: 13 | AR15: 18 | AS15: 0 | AU15: 0 | AV15: 0 | AW15: 0
A16: XX
A17: LQN | B17: 795 | D17: 32 | E17: 0 | H17: 55 | I17: 0 | L17: 75 | M17: 0 | P17: 62 | Q17: 0 | T17: 97 | U17: 0 | X17: 103 | Y17: 1 | AB17: 33 | AC17: 0 | AF17: 89 | AG17: 0 | AJ17: 54 | AK17: 0 | AN17: 77 | AO17: 1 | AR17: 34 | AS17: 0 | AV17: 82 | AW17: 0
A18: Guilherme Alves | B18: 287 | C18: 9 | D18: 26 | E18: 0 | G18: 28 | H18: 3 | I18: 0 | K18: 1 | L18: 45 | M18: 0 | O18: 0 | P18: 0 | Q18: 0 | S18: 4 | T18: 36 | U18: 0 | W18: 5 | X18: 34 | Y18: 0 | AA18: 10 | AB18: 24 | AC18: 0 | AE18: 3 | AF18: 38 | AG18: 0 | AI18: 35 | AJ18: 1 | AK18: 0 | AM18: 5 | AN18: 34 | AO18: 1 | AQ18: 0 | AR18: 0 | AS18: 0 | AU18: 1 | AV18: 45 | AW18: 0
A19: Aparecido Arantes | B19: 119 | C19: 0 | D19: 0 | E19: 0 | G19: 7 | H19: 30 | I19: 0 | K19: 31 | L19: 1 | M19: 0 | O19: 16 | P19: 15 | Q19: 0 | S19: 0 | T19: 0 | U19: 0 | W19: 14 | X19: 17 | Y19: 0 | AA19: 0 | AB19: 0 | AC19: 0 | AE19: 16 | AF19: 15 | AG19: 0 | AI19: 16 | AJ19: 15 | AK19: 0 | AM19: 16 | AN19: 15 | AO19: 0 | AQ19: 0 | AR19: 0 | AS19: 0 | AU19: 20 | AV19: 11 | AW19: 0
A20: Fernando Mota | B20: 349 | C20: 31 | D20: 1 | E20: 0 | G20: 12 | H20: 20 | I20: 0 | K20: 8 | L20: 28 | M20: 0 | O20: 3 | P20: 38 | Q20: 0 | S20: 1 | T20: 45 | U20: 0 | W20: 1 | X20: 45 | Y20: 1 | AA20: 22 | AB20: 9 | AC20: 0 | AE20: 4 | AF20: 36 | AG20: 0 | AI20: 3 | AJ20: 38 | AK20: 0 | AM20: 8 | AN20: 28 | AO20: 0 | AQ20: 5 | AR20: 34 | AS20: 0 | AU20: 9 | AV20: 26 | AW20: 0
A21: João Ferreira | B21: 40 | C21: 26 | D21: 5 | E21: 0 | G21: 29 | H21: 2 | I21: 0 | K21: 32 | L21: 1 | M21: 0 | O21: 22 | P21: 9 | Q21: 0 | S21: 15 | T21: 16 | U21: 0 | W21: 24 | X21: 7 | Y21: 0 | AA21: 0 | AB21: 0 | AC21: 0 | AE21: 0 | AF21: 0 | AG21: 0 | AI21: 0 | AJ21: 0 | AK21: 0 | AM21: 0 | AN21: 0 | AO21: 0 | AQ21: 0 | AR21: 0 | AS21: 0 | AU21: 0 | AV21: 0 | AW21: 0
A22: XXX | B22: 0
A23: Frigoindaiá | B23: 592 | D23: 76 | E23: 0 | H23: 74 | I23: 1 | L23: 79 | M23: 1 | P23: 46 | Q23: 0 | T23: 45 | U23: 0 | X23: 43 | Y23: 0 | AB23: 83 | AC23: 1 | AF23: 36 | AG23: 0 | AJ23: 18 | AK23: 0 | AN23: 38 | AO23: 0 | AR23: 42 | AS23: 0 | AV23: 9 | AW23: 0
A24: Bruno Nosse | B24: 321 | C24: 6 | D24: 32 | E24: 0 | G24: 10 | H24: 24 | I24: 0 | K24: 2 | L24: 41 | M24: 1 | O24: 5 | P24: 34 | Q24: 0 | S24: 18 | T24: 13 | U24: 0 | W24: 8 | X24: 28 | Y24: 0 | AA24: 1 | AB24: 45 | AC24: 0 | AE24: 19 | AF24: 12 | AG24: 0 | AI24: 13 | AJ24: 18 | AK24: 0 | AM24: 3 | AN24: 38 | AO24: 0 | AQ24: 9 | AR24: 26 | AS24: 0 | AU24: 22 | AV24: 9 | AW24: 0
A25: Celso Dantas | B25: 45 | C25: 24 | D25: 7 | E25: 0 | G25: 11 | H25: 22 | I25: 0 | K25: 0 | L25: 0 | M25: 0 | O25: 0 | P25: 0 | Q25: 0 | S25: 0 | T25: 0 | U25: 0 | W25: 0 | X25: 0 | Y25: 0 | AA25: 0 | AB25: 0 | AC25: 0 | AE25: 0 | AF25: 0 | AG25: 0 | AI25: 0 | AJ25: 0 | AK25: 0 | AM25: 0 | AN25: 0 | AO25: 0 | AQ25: 15 | AR25: 16 | AS25: 0 | AU25: 0 | AV25: 0 | AW25: 0
A26: Matheus Azevedo | B26: 189 | C26: 4 | D26: 36 | E26: 0 | G26: 8 | H26: 28 | I26: 1 | K26: 29 | L26: 2 | M26: 0 | O26: 19 | P26: 12 | Q26: 0 | S26: 6 | T26: 32 | U26: 0 | W26: 16 | X26: 15 | Y26: 0 | AA26: 3 | AB26: 38 | AC26: 1 | AE26: 10 | AF26: 24 | AG26: 0 | AI26: 50 | AJ26: 0 | AK26: 0 | AM26: 0 | AN26: 0 | AO26: 0 | AQ26: 0 | AR26: 0 | AS26: 0 | AU26: 0 | AV26: 0 | AW26: 0
A27: Luiza Mendes | B27: 37 | C27: 30 | D27: 1 | E27: 0 | G27: 0 | H27: 0 | I27: 0 | K27: 4 | L27: 36 | M27: 0 | O27: 0 | P27: 0 | Q27: 0 | S27: 0 | T27: 0 | U27: 0 | W27: 0 | X27: 0 | Y27: 0 | AA27: 0 | AB27: 0 | AC27: 0 | AE27: 0 | AF27: 0 | AG27: 0 | AI27: 0 | AJ27: 0 | AK27: 0 | AM27: 0 | AN27: 0 | AO27: 0 | AQ27: 0 | AR27: 0 | AS27: 0 | AU27: 0 | AV27: 0 | AW27: 0
A28: XXXX | B28: 0
A29: Ventura | B29: 473 | D29: 50 | E29: 0 | H29: 37 | I29: 0 | L29: 39 | M29: 0 | P29: 51 | Q29: 0 | T29: 23 | U29: 0 | X29: 58 | Y29: 0 | AB29: 30 | AC29: 0 | AF29: 27 | AG29: 0 | AJ29: 49 | AK29: 0 | AN29: 46 | AO29: 0 | AR29: 14 | AS29: 0 | AV29: 49 | AW29: 0
A30: Diego Rodrigues | B30: 233 | C30: 5 | D30: 34 | E30: 0 | G30: 17 | H30: 14 | I30: 0 | K30: 10 | L30: 24 | M30: 0 | O30: 17 | P30: 14 | Q30: 0 | S30: 0 | T30: 0 | U30: 0 | W30: 7 | X30: 30 | Y30: 0 | AA30: 31 | AB30: 1 | AC30: 0 | AE30: 15 | AF30: 16 | AG30: 0 | AI30: 8 | AJ30: 28 | AK30: 0 | AM30: 4 | AN30: 36 | AO30: 0 | AQ30: 0 | AR30: 0 | AS30: 0 | AU30: 4 | AV30: 36 | AW30: 0
A31: Henry Douglas | B31: 151 | C31: 18 | D31: 13 | E31: 0 | G31: 15 | H31: 16 | I31: 0 | K31: 30 | L31: 1 | M31: 0 | O31: 12 | P31: 20 | Q31: 0 | S31: 16 | T31: 15 | U31: 0 | W31: 20 | X31: 11 | Y31: 0 | AA31: 15 | AB31: 16 | AC31: 0 | AE31: 20 | AF31: 11 | AG31: 0 | AI31: 20 | AJ31: 11 | AK31: 0 | AM31: 21 | AN31: 10 | AO31: 0 | AQ31: 17 | AR31: 14 | AS31: 0 | AU31: 18 | AV31: 13 | AW31: 0
A32: Gustavo Barros | B32: 63 | C32: 0 | D32: 0 | E32: 0 | G32: 0 | H32: 0 | I32: 0 | K32: 18 | L32: 13 | M32: 0 | O32: 20 | P32: 11 | Q32: 0 | S32: 0 | T32: 0 | U32: 0 | W32: 15 | X32: 16 | Y32: 0 | AA32: 18 | AB32: 13 | AC32: 0 | AE32: 0 | AF32: 0 | AG32: 0 | AI32: 21 | AJ32: 10 | AK32: 0 | AM32: 0 | AN32: 0 | AO32: 0 | AQ32: 0 | AR32: 0 | AS32: 0 | AU32: 0 | AV32: 0 | AW32: 0
A33: Victor Marinho | B33: 26 | C33: 28 | D33: 3 | E33: 0 | G33: 24 | H33: 7 | I33: 0 | K33: 33 | L33: 1 | M33: 0 | O33: 25 | P33: 6 | Q33: 0 | S33: 23 | T33: 8 | U33: 0 | W33: 36 | X33: 1 | Y33: 0 | AA33: 0 | AB33: 0 | AC33: 0 | AE33: 0 | AF33: 0 | AG33: 0 | AI33: 0 | AJ33: 0 | AK33: 0 | AM33: 0 | AN33: 0 | AO33: 0 | AQ33: 0 | AR33: 0 | AS33: 0 | AU33: 0 | AV33: 0 | AW33: 0
A34: XXXXX | B34: 0
A35: Delcar | B35: 1012 | D35: 51 | E35: 0 | H35: 59 | I35: 0 | L35: 83 | M35: 0 | P35: 95 | Q35: 0 | T35: 70 | U35: 0 | X35: 82 | Y35: 0 | AB35: 136 | AC35: 0 | AF35: 102 | AG35: 0 | AJ35: 92 | AK35: 0 | AN35: 88 | AO35: 0 | AR35: 68 | AS35: 0 | AV35: 85 | AW35: 1
A36: Anderson Teixeira | B36: 286 | C36: 0 | D36: 0 | E36: 0 | G36: 4 | H36: 36 | I36: 0 | K36: 12 | L36: 20 | M36: 0 | O36: 10 | P36: 24 | Q36: 0 | S36: 10 | T36: 24 | U36: 0 | W36: 2 | X36: 41 | Y36: 0 | AA36: 2 | AB36: 41 | AC36: 0 | AE36: 21 | AF36: 10 | AG36: 0 | AI36: 10 | AJ36: 24 | AK36: 0 | AM36: 22 | AN36: 9 | AO36: 0 | AQ36: 6 | AR36: 32 | AS36: 0 | AU36: 10 | AV36: 24 | AW36: 1
A37: Jean Paul | B37: 279 | C37: 12 | D37: 20 | E37: 0 | G37: 0 | H37: 0 | I37: 0 | K37: 25 | L37: 6 | M37: 0 | O37: 6 | P37: 32 | Q37: 0 | S37: 14 | T37: 17 | U37: 0 | W37: 18 | X37: 13 | Y37: 0 | AA37: 5 | AB37: 34 | AC37: 0 | AE37: 13 | AF37: 18 | AG37: 0 | AI37: 6 | AJ37: 32 | AK37: 0 | AM37: 1 | AN37: 45 | AO37: 0 | AQ37: 8 | AR37: 28 | AS37: 0 | AU37: 5 | AV37: 34 | AW37: 0
A38: Bernardo Gatti | B38: 90 | C38: 25 | D38: 6 | E38: 0 | G38: 25 | H38: 6 | I38: 0 | K38: 28 | L38: 3 | M38: 0 | O38: 0 | P38: 0 | Q38: 0 | S38: 28 | T38: 3 | U38: 0 | W38: 19 | X38: 12 | Y38: 0 | AA38: 17 | AB38: 14 | AC38: 0 | AE38: 11 | AF38: 22 | AG38: 0 | AI38: 19 | AJ38: 12 | AK38: 0 | AM38: 47 | AN38: 0 | AO38: 0 | AQ38: 0 | AR38: 0 | AS38: 0 | AU38: 19 | AV38: 12 | AW38: 0
A39: Renato Amaral | B39: 187 | C39: 22 | D39: 9 | E39: 0 | G39: 23 | H39: 8 | I39: 0 | K39: 11 | L39: 22 | M39: 0 | O39: 11 | P39: 22 | Q39: 0 | S39: 11 | T39: 22 | U39: 0 | W39: 25 | X39: 6 | Y39: 0 | AA39: 14 | AB39: 17 | AC39: 0 | AE39: 6 | AF39: 32 | AG39: 0 | AI39: 23 | AJ39: 8 | AK39: 0 | AM39: 13 | AN39: 18 | AO39: 0 | AQ39: 23 | AR39: 8 | AS39: 0 | AU39: 16 | AV39: 15 | AW39: 0
A40: Wander Neto | B40: 170 | C40: 15 | D40: 16 | E40: 0 | G40: 22 | H40: 9 | I40: 0 | K40: 6 | L40: 32 | M40: 0 | O40: 14 | P40: 17 | Q40: 0 | S40: 27 | T40: 4 | U40: 0 | W40: 21 | X40: 10 | Y40: 0 | AA40: 7 | AB40: 30 | AC40: 0 | AE40: 12 | AF40: 20 | AG40: 0 | AI40: 15 | AJ40: 16 | AK40: 0 | AM40: 15 | AN40: 16 | AO40: 0 | AQ40: 0 | AR40: 0 | AS40: 0 | AU40: 0 | AV40: 0 | AW40: 0
A41: AST | B41: 725 | D41: 95 | E41: 1 | H41: 69 | I41: 0 | L41: 51 | M41: 0 | P41: 44 | Q41: 0 | T41: 72 | U41: 0 | X41: 56 | Y41: 0 | AB41: 45 | AC41: 0 | AF41: 44 | AG41: 0 | AJ41: 71 | AK41: 0 | AN41: 45 | AO41: 0 | AR41: 81 | AS41: 0 | AV41: 51 | AW41: 0
A42: Alexandre Melillo | B42: 366 | C42: 2 | D42: 41 | E42: 1 | G42: 9 | H42: 26 | I42: 0 | K42: 7 | L42: 30 | M42: 0 | O42: 4 | P42: 36 | Q42: 0 | S42: 9 | T42: 26 | U42: 0 | W42: 4 | X42: 36 | Y42: 0 | AA42: 13 | AB42: 18 | AC42: 0 | AE42: 7 | AF42: 30 | AG42: 0 | AI42: 1 | AJ42: 45 | AK42: 0 | AM42: 11 | AN42: 22 | AO42: 0 | AQ42: 3 | AR42: 38 | AS42: 0 | AU42: 14 | AV42: 17 | AW42: 0
A43: Renato Martins | B43: 113 | C43: 29 | D43: 2 | E43: 0 | G43: 19 | H43: 12 | I43: 0 | K43: 23 | L43: 8 | M43: 0 | O43: 23 | P43: 8 | Q43: 0 | S43: 0 | T43: 0 | U43: 0 | W43: 12 | X43: 20 | Y43: 0 | AA43: 19 | AB43: 12 | AC43: 0 | AE43: 0 | AF43: 0 | AG43: 0 | AI43: 25 | AJ43: 6 | AK43: 0 | AM43: 19 | AN43: 12 | AO43: 0 | AQ43: 18 | AR43: 13 | AS43: 0 | AU43: 12 | AV43: 20 | AW43: 0
A44: SSSSSSS | B44: 59 | C44: 0 | D44: 0 | E44: 0 | G44: 13 | H44: 18 | I44: 0 | K44: 24 | L44: 7 | M44: 0 | O44: 0 | P44: 0 | Q44: 0 | S44: 5 | T44: 34 | U44: 0 | W44: 0 | X44: 0 | Y44: 0 | AA44: 0 | AB44: 0 | AC44: 0 | AE44: 0 | AF44: 0 | AG44: 0 | AI44: 0 | AJ44: 0 | AK44: 0 | AM44: 0 | AN44: 0 | AO44: 0 | AQ44: 0 | AR44: 0 | AS44: 0 | AU44: 0 | AV44: 0 | AW44: 0
A45: Ricardo Amaral | B45: 160 | C45: 3 | D45: 38 | E45: 0 | G45: 18 | H45: 13 | I45: 0 | K45: 26 | L45: 5 | M45: 0 | O45: 0 | P45: 0 | Q45: 0 | S45: 0 | T45: 0 | U45: 0 | W45: 0 | X45: 0 | Y45: 0 | AA45: 16 | AB45: 15 | AC45: 0 | AE45: 17 | AF45: 14 | AG45: 0 | AI45: 12 | AJ45: 20 | AK45: 0 | AM45: 20 | AN45: 11 | AO45: 0 | AQ45: 7 | AR45: 30 | AS45: 0 | AU45: 17 | AV45: 14 | AW45: 0
A46: Rafael Lemes | B46: 27 | C46: 17 | D46: 14 | E46: 0 | G46: 0 | H46: 0 | I46: 0 | K46: 34 | L46: 1 | M46: 0 | O46: 0 | P46: 0 | Q46: 0 | S46: 19 | T46: 12 | U46: 0 | W46: 0 | X46: 0 | Y46: 0 | AA46: 0 | AB46: 0 | AC46: 0 | AE46: 0 | AF46: 0 | AG46: 0 | AI46: 0 | AJ46: 0 | AK46: 0 | AM46: 0 | AN46: 0 | AO46: 0 | AQ46: 0 | AR46: 0 | AS46: 0 | AU46: 0 | AV46: 0 | AW46: 0
A47: Clinorte | B47: 560 | D47: 59 | E47: 0 | H47: 78 | I47: 0 | L47: 36 | M47: 0 | P47: 13 | Q47: 0 | T47: 38 | U47: 0 | X47: 31 | Y47: 0 | AB47: 48 | AC47: 0 | AF47: 52 | AG47: 1 | AJ47: 54 | AK47: 1 | AN47: 41 | AO47: 0 | AR47: 60 | AS47: 0 | AV47: 48 | AW47: 0
A48: Raphael Reis | B48: 130 | C48: 10 | D48: 24 | E48: 0 | G48: 31 | H48: 1 | I48: 0 | K48: 16 | L48: 15 | M48: 0 | O48: 0 | P48: 0 | Q48: 0 | S48: 0 | T48: 0 | U48: 0 | W48: 26 | X48: 5 | Y48: 0 | AA48: 11 | AB48: 22 | AC48: 0 | AE48: 0 | AF48: 0 | AG48: 0 | AI48: 24 | AJ48: 7 | AK48: 0 | AM48: 0 | AN48: 0 | AO48: 0 | AQ48: 10 | AR48: 24 | AS48: 0 | AU48: 6 | AV48: 32 | AW48: 0
A49: Jarbas Reis | B49: 310 | C49: 14 | D49: 17 | E49: 0 | G49: 1 | H49: 45 | I49: 0 | K49: 27 | L49: 4 | M49: 0 | O49: 18 | P49: 13 | Q49: 0 | S49: 3 | T49: 38 | U49: 0 | W49: 9 | X49: 26 | Y49: 0 | AA49: 9 | AB49: 26 | AC49: 0 | AE49: 1 | AF49: 45 | AG49: 1 | AI49: 5 | AJ49: 34 | AK49: 1 | AM49: 10 | AN49: 24 | AO49: 0 | AQ49: 4 | AR49: 36 | AS49: 0 | AU49: 0 | AV49: 0 | AW49: 0
A50: Gustavo Mourão | B50: 0 | C50: 0 | D50: 0 | E50: 0 | G50: 0 | H50: 0 | I50: 0 | K50: 0 | L50: 0 | M50: 0 | O50: 0 | P50: 0 | Q50: 0 | S50: 0 | T50: 0 | U50: 0 | W50: 0 | X50: 0 | Y50: 0 | AA50: 0 | AB50: 0 | AC50: 0 | AE50: 0 | AF50: 0 | AG50: 0 | AI50: 0 | AJ50: 0 | AK50: 0 | AM50: 0 | AN50: 0 | AO50: 0 | AQ50: 0 | AR50: 0 | AS50: 0 | AU50: 0 | AV50: 0 | AW50: 0
A51: Felipe Bouhid | B51: 120 | C51: 13 | D51: 18 | E51: 0 | G51: 6 | H51: 32 | I51: 0 | K51: 14 | L51: 17 | M51: 0 | O51: 0 | P51: 0 | Q51: 0 | S51: 0 | T51: 0 | U51: 0 | W51: 0 | X51: 0 | Y51: 0 | AA51: 0 | AB51: 0 | AC51: 0 | AE51: 24 | AF51: 7 | AG51: 0 | AI51: 18 | AJ51: 13 | AK51: 0 | AM51: 14 | AN51: 17 | AO51: 0 | AQ51: 0 | AR51: 0 | AS51: 0 | AU51: 15 | AV51: 16 | AW51: 0
A52: XXXXXXXX | B52: 0
A53: Lokamig | B53: 742 | D53: 65 | E53: 0 | H53: 84 | I53: 0 | L53: 52 | M53: 0 | P53: 72 | Q53: 0 | T53: 61 | U53: 0 | X53: 55 | Y53: 0 | AB53: 71 | AC53: 0 | AF53: 56 | AG53: 0 | AJ53: 78 | AK53: 0 | AN53: 72 | AO53: 0 | AR53: 20 | AS53: 0 | AV53: 56 | AW53: 0
A54: Wesley Canuto | B54: 321 | C54: 11 | D54: 22 | E54: 0 | G54: 2 | H54: 41 | I54: 0 | K54: 9 | L54: 26 | M54: 0 | O54: 8 | P54: 28 | Q54: 0 | S54: 12 | T54: 20 | U54: 0 | W54: 6 | X54: 32 | Y54: 0 | AA54: 6 | AB54: 32 | AC54: 0 | AE54: 8 | AF54: 28 | AG54: 0 | AI54: 7 | AJ54: 30 | AK54: 0 | AM54: 6 | AN54: 32 | AO54: 0 | AQ54: 12 | AR54: 20 | AS54: 0 | AU54: 21 | AV54: 10 | AW54: 0
A55: Lucio Chequer | B55: 222 | C55: 7 | D55: 30 | E55: 0 | G55: 3 | H55: 38 | I55: 0 | K55: 0 | L55: 0 | M55: 0 | O55: 13 | P55: 18 | Q55: 0 | S55: 20 | T55: 11 | U55: 0 | W55: 11 | X55: 22 | Y55: 0 | AA55: 20 | AB55: 11 | AC55: 0 | AE55: 9 | AF55: 26 | AG55: 0 | AI55: 11 | AJ55: 22 | AK55: 0 | AM55: 9 | AN55: 26 | AO55: 0 | AQ55: 0 | AR55: 0 | AS55: 0 | AU55: 13 | AV55: 18 | AW55: 0
A56: Gustavo Pereira | B56: 25 | C56: 19 | D56: 12 | E56: 0 | G56: 30 | H56: 1 | I56: 0 | K56: 19 | L56: 12 | M56: 0 | O56: 0 | P56: 0 | Q56: 0 | S56: 0 | T56: 0 | U56: 0 | W56: 0 | X56: 0 | Y56: 0 | AA56: 0 | AB56: 0 | AC56: 0 | AE56: 0 | AF56: 0 | AG56: 0 | AI56: 0 | AJ56: 0 | AK56: 0 | AM56: 0 | AN56: 0 | AO56: 0 | AQ56: 0 | AR56: 0 | AS56: 0 | AU56: 0 | AV56: 0 | AW56: 0
A57: Vitor Gatti | B57: 174 | C57: 32 | D57: 1 | E57: 0 | G57: 27 | H57: 4 | I57: 0 | K57: 17 | L57: 14 | M57: 0 | O57: 9 | P57: 26 | Q57: 0 | S57: 7 | T57: 30 | U57: 0 | W57: 31 | X57: 1 | Y57: 0 | AA57: 8 | AB57: 28 | AC57: 0 | AE57: 29 | AF57: 2 | AG57: 0 | AI57: 9 | AJ57: 26 | AK57: 0 | AM57: 17 | AN57: 14 | AO57: 0 | AQ57: 0 | AR57: 0 | AS57: 0 | AU57: 8 | AV57: 28 | AW57: 0
A58: XXXXXXXXX | B58: 0

Sheet Class Elimin 2 Piores Equip
A1: 2022 | D1: OK | H1: OK | L1: OK | P1: OK | T1: OK | X1: OK | AB1: OK | AF1: OK | AJ1: OK | AN1: OK | AR1: OK | AV1: OK
C2: 1ª etapa | G2: 2ª etapa | K2: 3ª etapa | O2: 4ª etapa | S2: 5ª etapa | W2: 6ª etapa | AA2: 7ª etapa | AE2: 8ª etapa | AI2: 9ª etapa | AM2: 10ª etapa | AQ2: 11ª etapa | AU2: 12ª etapa
C3: 00:00:00 | G3: 00:00:00 | K3: 00:00:00 | O3: 00:00:00 | S3: 00:00:00 | W3: 00:00:00 | AA3: 00:00:00 | AE3: 00:00:00 | AI3: 00:00:00 | AM3: 00:00:00 | AQ3: 00:00:00 | AU3: 00:00:00
A4: EQUIPES | B4: Pontuação Geral | C4: Posição | D4: Pontos | E4: Bônus | F4: Penalidade | G4: Posição | H4: Pontos | I4: Bônus | J4: Penalidade | K4: Posição | L4: Pontos | M4: Bônus | N4: Penalidade | O4: Posição | P4: Pontos | Q4: Bônus | R4: Penalidade | S4: Posição | T4: Pontos | U4: Bônus | V4: Penalidade | W4: Posição | X4: Pontos | Y4: Bônus | Z4: Penalidade | AA4: Posição | AB4: Pontos | AC4: Bônus | AD4: Penalidade | AE4: Posição | AF4: Pontos | AG4: Bônus | AH4: Penalidade | AI4: Posição | AJ4: Pontos | AK4: Bônus | AL4: Penalidade | AM4: Posição | AN4: Pontos | AO4: Bônus | AP4: Penalidade | AQ4: Posição | AR4: Pontos | AS4: Bônus | AT4: Penalidade | AU4: Posição | AV4: Pontos | AW4: Bônus | AX4: Penalidade
A5: Delcar | B5: 753 | D5: 45* | E5: 0 | H5: 53* | I5: 0 | L5: 74 | M5: 0 | P5: 78 | Q5: 0 | T5: 63 | U5: 0 | X5: 66 | Y5: 0 | AB5: 105 | AC5: 0 | AF5: 74 | AG5: 0 | AJ5: 72 | AK5: 0 | AN5: 79 | AO5: 0 | AR5: 68 | AS5: 0 | AV5: 73 | AW5: 1
A6: Anderson Teixeira | B6: 231 | C6: 0 | D6: 0* | E6: 0 | G6: 4 | H6: 36* | I6: 0 | K6: 12 | L6: 20 | M6: 0 | O6: 10 | P6: 24 | Q6: 0 | S6: 10 | T6: 24 | U6: 0 | W6: 2 | X6: 41 | Y6: 0 | AA6: 2 | AB6: 41 | AC6: 0 | AE6: 21 | AF6: 10* | AG6: 0 | AI6: 10 | AJ6: 24 | AK6: 0 | AM6: 22 | AN6: 9* | AO6: 0 | AQ6: 6 | AR6: 32 | AS6: 0 | AU6: 10 | AV6: 24 | AW6: 1
A7: Jean Paul | B7: 235 | C7: 12 | D7: 20* | E7: 0 | G7: 0 | H7: 0* | I7: 0 | K7: 25 | L7: 6* | M7: 0 | O7: 6 | P7: 32 | Q7: 0 | S7: 14 | T7: 17 | U7: 0 | W7: 18 | X7: 13 | Y7: 0 | AA7: 5 | AB7: 34 | AC7: 0 | AE7: 13 | AF7: 18* | AG7: 0 | AI7: 6 | AJ7: 32 | AK7: 0 | AM7: 1 | AN7: 45 | AO7: 0 | AQ7: 8 | AR7: 28 | AS7: 0 | AU7: 5 | AV7: 34 | AW7: 0
A8: Bernardo Gatti | B8: 34 | C8: 25 | D8: 6** | E8: 0 | G8: 25 | H8: 6** | I8: 0 | K8: 28 | L8: 3* | M8: 0 | O8: 0 | P8: 0 | Q8: 0 | S8: 28 | T8: 3* | U8: 0 | W8: 19 | X8: 12 | Y8: 0 | AA8: 17 | AB8: 14* | AC8: 0 | AE8: 11 | AF8: 22 | AG8: 0 | AI8: 19 | AJ8: 12* | AK8: 0 | AM8: 47 | AN8: 0 | AO8: 0 | AQ8: 0 | AR8: 0 | AS8: 0 | AU8: 19 | AV8: 12* | AW8: 0
A9: Renato Amaral | B9: 139 | C9: 22 | D9: 9* | E9: 0 | G9: 23 | H9: 8* | I9: 0 | K9: 11 | L9: 22 | M9: 0 | O9: 11 | P9: 22 | Q9: 0 | S9: 11 | T9: 22 | U9: 0 | W9: 25 | X9: 6* | Y9: 0 | AA9: 14 | AB9: 17* | AC9: 0 | AE9: 6 | AF9: 32 | AG9: 0 | AI9: 23 | AJ9: 8* | AK9: 0 | AM9: 13 | AN9: 18 | AO9: 0 | AQ9: 23 | AR9: 8 | AS9: 0 | AU9: 16 | AV9: 15 | AW9: 0
A10: Wander Neto | B10: 114 | C10: 15 | D10: 16* | E10: 0 | G10: 22 | H10: 9* | I10: 0 | K10: 6 | L10: 32 | M10: 0 | O10: 14 | P10: 17* | Q10: 0 | S10: 27 | T10: 4* | U10: 0 | W10: 21 | X10: 10* | Y10: 0 | AA10: 7 | AB10: 30 | AC10: 0 | AE10: 12 | AF10: 20 | AG10: 0 | AI10: 15 | AJ10: 16 | AK10: 0 | AM10: 15 | AN10: 16 | AO10: 0 | AQ10: 0 | AR10: 0 | AS10: 0 | AU10: 0 | AV10: 0 | AW10: 0
A11: LQN | B11: 720 | D11: 32* | E11: 0 | H11: 53 | I11: 0 | L11: 74 | M11: 0 | P11: 62 | Q11: 0 | T11: 97 | U11: 0 | X11: 96 | Y11: 1 | AB11: 33* | AC11: 0 | AF11: 89 | AG11: 0 | AJ11: 54 | AK11: 0 | AN11: 77 | AO11: 1 | AR11: 34 | AS11: 0 | AV11: 82 | AW11: 0
A12: Guilherme Alves | B12: 237 | C12: 9 | D12: 26* | E12: 0 | G12: 28 | H12: 3 | I12: 0 | K12: 1 | L12: 45 | M12: 0 | O12: 0 | P12: 0 | Q12: 0 | S12: 4 | T12: 36 | U12: 0 | W12: 5 | X12: 34 | Y12: 0 | AA12: 10 | AB12: 24* | AC12: 0 | AE12: 3 | AF12: 38 | AG12: 0 | AI12: 35 | AJ12: 1 | AK12: 0 | AM12: 5 | AN12: 34 | AO12: 1 | AQ12: 0 | AR12: 0 | AS12: 0 | AU12: 1 | AV12: 45 | AW12: 0
A13: Aparecido Arantes | B13: 118 | C13: 0 | D13: 0* | E13: 0 | G13: 7 | H13: 30 | I13: 0 | K13: 31 | L13: 1* | M13: 0 | O13: 16 | P13: 15 | Q13: 0 | S13: 0 | T13: 0 | U13: 0 | W13: 14 | X13: 17 | Y13: 0 | AA13: 0 | AB13: 0* | AC13: 0 | AE13: 16 | AF13: 15 | AG13: 0 | AI13: 16 | AJ13: 15 | AK13: 0 | AM13: 16 | AN13: 15 | AO13: 0 | AQ13: 0 | AR13: 0 | AS13: 0 | AU13: 20 | AV13: 11 | AW13: 0
A14: Fernando Mota | B14: 339 | C14: 31 | D14: 1* | E14: 0 | G14: 12 | H14: 20 | I14: 0 | K14: 8 | L14: 28 | M14: 0 | O14: 3 | P14: 38 | Q14: 0 | S14: 1 | T14: 45 | U14: 0 | W14: 1 | X14: 45 | Y14: 1 | AA14: 22 | AB14: 9* | AC14: 0 | AE14: 4 | AF14: 36 | AG14: 0 | AI14: 3 | AJ14: 38 | AK14: 0 | AM14: 8 | AN14: 28 | AO14: 0 | AQ14: 5 | AR14: 34 | AS14: 0 | AU14: 9 | AV14: 26 | AW14: 0
A15: João Ferreira | B15: 26 | C15: 26 | D15: 5* | E15: 0 | G15: 29 | H15: 2* | I15: 0 | K15: 32 | L15: 1 | M15: 0 | O15: 22 | P15: 9 | Q15: 0 | S15: 15 | T15: 16 | U15: 0 | W15: 24 | X15: 7* | Y15: 0 | AA15: 0 | AB15: 0* | AC15: 0 | AE15: 0 | AF15: 0 | AG15: 0 | AI15: 0 | AJ15: 0 | AK15: 0 | AM15: 0 | AN15: 0 | AO15: 0 | AQ15: 0 | AR15: 0 | AS15: 0 | AU15: 0 | AV15: 0 | AW15: 0
A16: XXX | B16: 0 | D16: * | AB16: *
A17: Lokamig | B17: 668 | D17: 64 | E17: 0 | H17: 83 | I17: 0 | L17: 52* | M17: 0 | P17: 72 | Q17: 0 | T17: 61 | U17: 0 | X17: 55 | Y17: 0 | AB17: 71 | AC17: 0 | AF17: 56 | AG17: 0 | AJ17: 78 | AK17: 0 | AN17: 72 | AO17: 0 | AR17: 20* | AS17: 0 | AV17: 56 | AW17: 0
A18: Wesley Canuto | B18: 275 | C18: 11 | D18: 22 | E18: 0 | G18: 2 | H18: 41 | I18: 0 | K18: 9 | L18: 26* | M18: 0 | O18: 8 | P18: 28 | Q18: 0 | S18: 12 | T18: 20 | U18: 0 | W18: 6 | X18: 32 | Y18: 0 | AA18: 6 | AB18: 32 | AC18: 0 | AE18: 8 | AF18: 28 | AG18: 0 | AI18: 7 | AJ18: 30 | AK18: 0 | AM18: 6 | AN18: 32 | AO18: 0 | AQ18: 12 | AR18: 20* | AS18: 0 | AU18: 21 | AV18: 10 | AW18: 0
A19: Lucio Chequer | B19: 222 | C19: 7 | D19: 30 | E19: 0 | G19: 3 | H19: 38 | I19: 0 | K19: 0 | L19: 0* | M19: 0 | O19: 13 | P19: 18 | Q19: 0 | S19: 20 | T19: 11 | U19: 0 | W19: 11 | X19: 22 | Y19: 0 | AA19: 20 | AB19: 11 | AC19: 0 | AE19: 9 | AF19: 26 | AG19: 0 | AI19: 11 | AJ19: 22 | AK19: 0 | AM19: 9 | AN19: 26 | AO19: 0 | AQ19: 0 | AR19: 0* | AS19: 0 | AU19: 13 | AV19: 18 | AW19: 0
A20: Gustavo Pereira | B20: 12 | C20: 19 | D20: 12 | E20: 0 | G20: 30 | H20: 1* | I20: 0 | K20: 19 | L20: 12* | M20: 0 | O20: 0 | P20: 0 | Q20: 0 | S20: 0 | T20: 0 | U20: 0 | W20: 0 | X20: 0 | Y20: 0 | AA20: 0 | AB20: 0 | AC20: 0 | AE20: 0 | AF20: 0 | AG20: 0 | AI20: 0 | AJ20: 0 | AK20: 0 | AM20: 0 | AN20: 0 | AO20: 0 | AQ20: 0 | AR20: 0* | AS20: 0 | AU20: 0 | AV20: 0 | AW20: 0
A21: Vitor Gatti | B21: 159 | C21: 32 | D21: 1* | E21: 0 | G21: 27 | H21: 4 | I21: 0 | K21: 17 | L21: 14* | M21: 0 | O21: 9 | P21: 26 | Q21: 0 | S21: 7 | T21: 30 | U21: 0 | W21: 31 | X21: 1 | Y21: 0 | AA21: 8 | AB21: 28 | AC21: 0 | AE21: 29 | AF21: 2 | AG21: 0 | AI21: 9 | AJ21: 26 | AK21: 0 | AM21: 17 | AN21: 14 | AO21: 0 | AQ21: 0 | AR21: 0* | AS21: 0 | AU21: 8 | AV21: 28 | AW21: 0
A22: XXXXXXXXX | B22: 0 | L22: * | AR22: *
A23: Alpha | B23: 650 | D23: 54 | E23: 0 | H23: 43* | I23: 0 | L23: 68 | M23: 0 | P23: 81 | Q23: 0 | T23: 68 | U23: 0 | X23: 35* | Y23: 0 | AB23: 46 | AC23: 0 | AF23: 71 | AG23: 0 | AJ23: 72 | AK23: 0 | AN23: 51 | AO23: 0 | AR23: 76 | AS23: 0 | AV23: 63 | AW23: 0
A24: Christian Guedes | B24: 361 | C24: 16 | D24: 15 | E24: 0 | G24: 21 | H24: 10** | I24: 0 | K24: 5 | L24: 34 | M24: 0 | O24: 2 | P24: 41 | Q24: 0 | S24: 2 | T24: 41 | U24: 0 | W24: 13 | X24: 18* | Y24: 0 | AA24: 4 | AB24: 36 | AC24: 0 | AE24: 2 | AF24: 41 | AG24: 0 | AI24: 2 | AJ24: 41 | AK24: 0 | AM24: 7 | AN24: 30 | AO24: 0 | AQ24: 2 | AR24: 41 | AS24: 0 | AU24: 2 | AV24: 41 | AW24: 0
A25: Levindo Neto | B25: 35 | C25: 21 | D25: 10* | E25: 0 | G25: 16 | H25: 15* | I25: 0 | K25: 20 | L25: 11* | M25: 0 | O25: 21 | P25: 10 | Q25: 0 | S25: 31 | T25: 1* | U25: 0 | W25: 23 | X25: 8* | Y25: 0 | AA25: 0 | AB25: 0 | AC25: 0 | AE25: 0 | AF25: 0 | AG25: 0 | AI25: 0 | AJ25: 0 | AK25: 0 | AM25: 23 | AN25: 8 | AO25: 0 | AQ25: 14 | AR25: 17 | AS25: 0 | AU25: 0 | AV25: 0 | AW25: 0
A26: Frederico Papatella | B26: 157 | C26: 8 | D26: 28 | E26: 0 | G26: 14 | H26: 17* | I26: 0 | K26: 15 | L26: 16 | M26: 0 | O26: 7 | P26: 30 | Q26: 0 | S26: 13 | T26: 18 | U26: 0 | W26: 35 | X26: 1** | Y26: 0 | AA26: 0 | AB26: 0 | AC26: 0 | AE26: 18 | AF26: 13 | AG26: 0 | AI26: 14 | AJ26: 17 | AK26: 0 | AM26: 18 | AN26: 13 | AO26: 0 | AQ26: 16 | AR26: 15* | AS26: 0 | AU26: 11 | AV26: 22 | AW26: 0
A27: Iago Bastos | B27: 97 | C27: 20 | D27: 11 | E27: 0 | G27: 20 | H27: 11* | I27: 0 | K27: 13 | L27: 18 | M27: 0 | O27: 0 | P27: 0 | Q27: 0 | S27: 22 | T27: 9 | U27: 0 | W27: 22 | X27: 9* | Y27: 0 | AA27: 21 | AB27: 10 | AC27: 0 | AE27: 14 | AF27: 17 | AG27: 0 | AI27: 17 | AJ27: 14 | AK27: 0 | AM27: 0 | AN27: 0 | AO27: 0 | AQ27: 13 | AR27: 18 | AS27: 0 | AU27: 0 | AV27: 0 | AW27: 0
A28: XX | H28: * | X28: *
A29: AST | B29: 617 | D29: 93 | E29: 1 | H29: 57 | I29: 0 | L29: 45 | M29: 0 | P29: 44* | Q29: 0 | T29: 72 | U29: 0 | X29: 56 | Y29: 0 | AB29: 45 | AC29: 0 | AF29: 44* | AG29: 0 | AJ29: 71 | AK29: 0 | AN29: 45 | AO29: 0 | AR29: 81 | AS29: 0 | AV29: 51 | AW29: 0
A30: Alexandre Melillo | B30: 300 | C30: 2 | D30: 41 | E30: 1 | G30: 9 | H30: 26 | I30: 0 | K30: 7 | L30: 30 | M30: 0 | O30: 4 | P30: 36* | Q30: 0 | S30: 9 | T30: 26 | U30: 0 | W30: 4 | X30: 36 | Y30: 0 | AA30: 13 | AB30: 18 | AC30: 0 | AE30: 7 | AF30: 30* | AG30: 0 | AI30: 1 | AJ30: 45 | AK30: 0 | AM30: 11 | AN30: 22 | AO30: 0 | AQ30: 3 | AR30: 38 | AS30: 0 | AU30: 14 | AV30: 17 | AW30: 0
A31: Renato Martins | B31: 91 | C31: 29 | D31: 2* | E31: 0 | G31: 19 | H31: 12* | I31: 0 | K31: 23 | L31: 8 | M31: 0 | O31: 23 | P31: 8* | Q31: 0 | S31: 0 | T31: 0 | U31: 0 | W31: 12 | X31: 20 | Y31: 0 | AA31: 19 | AB31: 12 | AC31: 0 | AE31: 0 | AF31: 0* | AG31: 0 | AI31: 25 | AJ31: 6 | AK31: 0 | AM31: 19 | AN31: 12 | AO31: 0 | AQ31: 18 | AR31: 13 | AS31: 0 | AU31: 12 | AV31: 20 | AW31: 0
A32: SSSSSSS | B32: 59 | C32: 0 | D32: 0 | E32: 0 | G32: 13 | H32: 18 | I32: 0 | K32: 24 | L32: 7 | M32: 0 | O32: 0 | P32: 0* | Q32: 0 | S32: 5 | T32: 34 | U32: 0 | W32: 0 | X32: 0 | Y32: 0 | AA32: 0 | AB32: 0 | AC32: 0 | AE32: 0 | AF32: 0* | AG32: 0 | AI32: 0 | AJ32: 0 | AK32: 0 | AM32: 0 | AN32: 0 | AO32: 0 | AQ32: 0 | AR32: 0 | AS32: 0 | AU32: 0 | AV32: 0 | AW32: 0
A33: Ricardo Amaral | B33: 141 | C33: 3 | D33: 38 | E33: 0 | G33: 18 | H33: 13 | I33: 0 | K33: 26 | L33: 5* | M33: 0 | O33: 0 | P33: 0* | Q33: 0 | S33: 0 | T33: 0 | U33: 0 | W33: 0 | X33: 0 | Y33: 0 | AA33: 16 | AB33: 15 | AC33: 0 | AE33: 17 | AF33: 14* | AG33: 0 | AI33: 12 | AJ33: 20 | AK33: 0 | AM33: 20 | AN33: 11 | AO33: 0 | AQ33: 7 | AR33: 30 | AS33: 0 | AU33: 17 | AV33: 14 | AW33: 0
A34: Rafael Lemes | B34: 26 | C34: 17 | D34: 14 | E34: 0 | G34: 0 | H34: 0 | I34: 0 | K34: 34 | L34: 1* | M34: 0 | O34: 0 | P34: 0* | Q34: 0 | S34: 19 | T34: 12 | U34: 0 | W34: 0 | X34: 0 | Y34: 0 | AA34: 0 | AB34: 0 | AC34: 0 | AE34: 0 | AF34: 0* | AG34: 0 | AI34: 0 | AJ34: 0 | AK34: 0 | AM34: 0 | AN34: 0 | AO34: 0 | AQ34: 0 | AR34: 0 | AS34: 0 | AU34: 0 | AV34: 0 | AW34: 0
A35: SASantiago | B35: 592 | D35: 57 | E35: 0 | H35: 39 | I35: 0 | L35: 57 | M35: 0 | P35: 68 | Q35: 1 | T35: 52 | U35: 0 | X35: 76 | Y35: 0 | AB35: 20* | AC35: 0 | AF35: 34* | AG35: 0 | AJ35: 45 | AK35: 0 | AN35: 61 | AO35: 0 | AR35: 67 | AS35: 1 | AV35: 68 | AW35: 0
A36: Gui Figueiredo | B36: 356 | C36: 1 | D36: 45 | E36: 0 | G36: 0 | H36: 0 | I36: 0 | K36: 3 | L36: 38 | M36: 0 | O36: 1 | P36: 45 | Q36: 1 | S36: 8 | T36: 28 | U36: 0 | W36: 3 | X36: 38 | Y36: 0 | AA36: 0 | AB36: 0* | AC36: 0 | AE36: 0 | AF36: 0* | AG36: 0 | AI36: 4 | AJ36: 36 | AK36: 0 | AM36: 2 | AN36: 41 | AO36: 0 | AQ36: 1 | AR36: 45 | AS36: 1 | AU36: 3 | AV36: 38 | AW36: 0
A37: Alan Moreira | B37: 29 | C37: 0 | D37: 0 | E37: 0 | G37: 26 | H37: 5 | I37: 0 | K37: 21 | L37: 10 | M37: 0 | O37: 0 | P37: 0 | Q37: 0 | S37: 0 | T37: 0 | U37: 0 | W37: 17 | X37: 14 | Y37: 0 | AA37: 0 | AB37: 0* | AC37: 0 | AE37: 0 | AF37: 0* | AG37: 0 | AI37: 0 | AJ37: 0 | AK37: 0 | AM37: 0 | AN37: 0 | AO37: 0 | AQ37: 0 | AR37: 0 | AS37: 0 | AU37: 0 | AV37: 0 | AW37: 0
A38: Samuel Farley | B38: 186 | C38: 23 | D38: 8 | E38: 0 | G38: 5 | H38: 34 | I38: 0 | K38: 22 | L38: 9 | M38: 0 | O38: 15 | P38: 16 | Q38: 0 | S38: 17 | T38: 14 | U38: 0 | W38: 10 | X38: 24 | Y38: 0 | AA38: 12 | AB38: 20* | AC38: 0 | AE38: 5 | AF38: 34* | AG38: 0 | AI38: 22 | AJ38: 9 | AK38: 0 | AM38: 12 | AN38: 20 | AO38: 0 | AQ38: 11 | AR38: 22 | AS38: 0 | AU38: 7 | AV38: 30 | AW38: 0
A39: Hugo Denucci | B39: 21 | C39: 27 | D39: 4 | E39: 0 | G39: 0 | H39: 0 | I39: 0 | K39: 0 | L39: 0 | M39: 0 | O39: 24 | P39: 7 | Q39: 0 | S39: 21 | T39: 10 | U39: 0 | W39: 0 | X39: 0 | Y39: 0 | AA39: 0 | AB39: 0* | AC39: 0 | AE39: 0 | AF39: 0* | AG39: 0 | AI39: 0 | AJ39: 0 | AK39: 0 | AM39: 0 | AN39: 0 | AO39: 0 | AQ39: 0 | AR39: 0 | AS39: 0 | AU39: 0 | AV39: 0 | AW39: 0
A40: X | AB40: * | AF40: *
A41: Frigoindaiá | B41: 564 | D41: 75 | E41: 0 | H41: 74 | I41: 1 | L41: 79 | M41: 1 | P41: 46 | Q41: 0 | T41: 45 | U41: 0 | X41: 43 | Y41: 0 | AB41: 83 | AC41: 1 | AF41: 36 | AG41: 0 | AJ41: 18* | AK41: 0 | AN41: 38 | AO41: 0 | AR41: 42 | AS41: 0 | AV41: 9* | AW41: 0
A42: Bruno Nosse | B42: 294 | C42: 6 | D42: 32 | E42: 0 | G42: 10 | H42: 24 | I42: 0 | K42: 2 | L42: 41 | M42: 1 | O42: 5 | P42: 34 | Q42: 0 | S42: 18 | T42: 13 | U42: 0 | W42: 8 | X42: 28 | Y42: 0 | AA42: 1 | AB42: 45 | AC42: 0 | AE42: 19 | AF42: 12 | AG42: 0 | AI42: 13 | AJ42: 18* | AK42: 0 | AM42: 3 | AN42: 38 | AO42: 0 | AQ42: 9 | AR42: 26 | AS42: 0 | AU42: 22 | AV42: 9* | AW42: 0
A43: Celso Dantas | B43: 45 | C43: 24 | D43: 7 | E43: 0 | G43: 11 | H43: 22 | I43: 0 | K43: 0 | L43: 0 | M43: 0 | O43: 0 | P43: 0 | Q43: 0 | S43: 0 | T43: 0 | U43: 0 | W43: 0 | X43: 0 | Y43: 0 | AA43: 0 | AB43: 0 | AC43: 0 | AE43: 0 | AF43: 0 | AG43: 0 | AI43: 0 | AJ43: 0* | AK43: 0 | AM43: 0 | AN43: 0 | AO43: 0 | AQ43: 15 | AR43: 16 | AS43: 0 | AU43: 0 | AV43: 0* | AW43: 0
A44: Matheus Azevedo | B44: 189 | C44: 4 | D44: 36 | E44: 0 | G44: 8 | H44: 28 | I44: 1 | K44: 29 | L44: 2 | M44: 0 | O44: 19 | P44: 12 | Q44: 0 | S44: 6 | T44: 32 | U44: 0 | W44: 16 | X44: 15 | Y44: 0 | AA44: 3 | AB44: 38 | AC44: 1 | AE44: 10 | AF44: 24 | AG44: 0 | AI44: 50 | AJ44: 0* | AK44: 0 | AM44: 0 | AN44: 0 | AO44: 0 | AQ44: 0 | AR44: 0 | AS44: 0 | AU44: 0 | AV44: 0* | AW44: 0
A45: Luiza Mendes | B45: 36 | C45: 30 | D45: 1* | E45: 0 | G45: 0 | H45: 0 | I45: 0 | K45: 4 | L45: 36 | M45: 0 | O45: 0 | P45: 0 | Q45: 0 | S45: 0 | T45: 0 | U45: 0 | W45: 0 | X45: 0 | Y45: 0 | AA45: 0 | AB45: 0 | AC45: 0 | AE45: 0 | AF45: 0 | AG45: 0 | AI45: 0 | AJ45: 0* | AK45: 0 | AM45: 0 | AN45: 0 | AO45: 0 | AQ45: 0 | AR45: 0 | AS45: 0 | AU45: 0 | AV45: 0* | AW45: 0
A46: XXXX | B46: 0 | AJ46: * | AV46: *
A47: Clinorte | B47: 516 | D47: 59 | E47: 0 | H47: 78 | I47: 0 | L47: 36 | M47: 0 | P47: 13* | Q47: 0 | T47: 38 | U47: 0 | X47: 31* | Y47: 0 | AB47: 48 | AC47: 0 | AF47: 52 | AG47: 1 | AJ47: 54 | AK47: 1 | AN47: 41 | AO47: 0 | AR47: 60 | AS47: 0 | AV47: 48 | AW47: 0
A48: Raphael Reis | B48: 125 | C48: 10 | D48: 24 | E48: 0 | G48: 31 | H48: 1 | I48: 0 | K48: 16 | L48: 15 | M48: 0 | O48: 0 | P48: 0* | Q48: 0 | S48: 0 | T48: 0 | U48: 0 | W48: 26 | X48: 5* | Y48: 0 | AA48: 11 | AB48: 22 | AC48: 0 | AE48: 0 | AF48: 0 | AG48: 0 | AI48: 24 | AJ48: 7 | AK48: 0 | AM48: 0 | AN48: 0 | AO48: 0 | AQ48: 10 | AR48: 24 | AS48: 0 | AU48: 6 | AV48: 32 | AW48: 0
A49: Jarbas Reis | B49: 271 | C49: 14 | D49: 17 | E49: 0 | G49: 1 | H49: 45 | I49: 0 | K49: 27 | L49: 4 | M49: 0 | O49: 18 | P49: 13* | Q49: 0 | S49: 3 | T49: 38 | U49: 0 | W49: 9 | X49: 26* | Y49: 0 | AA49: 9 | AB49: 26 | AC49: 0 | AE49: 1 | AF49: 45 | AG49: 1 | AI49: 5 | AJ49: 34 | AK49: 1 | AM49: 10 | AN49: 24 | AO49: 0 | AQ49: 4 | AR49: 36 | AS49: 0 | AU49: 0 | AV49: 0 | AW49: 0
A50: Gustavo Mourão | B50: 0 | C50: 0 | D50: 0 | E50: 0 | G50: 0 | H50: 0 | I50: 0 | K50: 0 | L50: 0 | M50: 0 | O50: 0 | P50: 0* | Q50: 0 | S50: 0 | T50: 0 | U50: 0 | W50: 0 | X50: 0* | Y50: 0 | AA50: 0 | AB50: 0 | AC50: 0 | AE50: 0 | AF50: 0 | AG50: 0 | AI50: 0 | AJ50: 0 | AK50: 0 | AM50: 0 | AN50: 0 | AO50: 0 | AQ50: 0 | AR50: 0 | AS50: 0 | AU50: 0 | AV50: 0 | AW50: 0
A51: Felipe Bouhid | B51: 120 | C51: 13 | D51: 18 | E51: 0 | G51: 6 | H51: 32 | I51: 0 | K51: 14 | L51: 17 | M51: 0 | O51: 0 | P51: 0* | Q51: 0 | S51: 0 | T51: 0 | U51: 0 | W51: 0 | X51: 0* | Y51: 0 | AA51: 0 | AB51: 0 | AC51: 0 | AE51: 24 | AF51: 7 | AG51: 0 | AI51: 18 | AJ51: 13 | AK51: 0 | AM51: 14 | AN51: 17 | AO51: 0 | AQ51: 0 | AR51: 0 | AS51: 0 | AU51: 15 | AV51: 16 | AW51: 0
A52: XXXXXXXX | B52: 0 | P52: * | X52: *
A53: Ventura | B53: 428 | D53: 50 | E53: 0 | H53: 37 | I53: 0 | L53: 38 | M53: 0 | P53: 45 | Q53: 0 | T53: 23* | U53: 0 | X53: 57 | Y53: 0 | AB53: 30 | AC53: 0 | AF53: 27 | AG53: 0 | AJ53: 49 | AK53: 0 | AN53: 46 | AO53: 0 | AR53: 14* | AS53: 0 | AV53: 49 | AW53: 0
A54: Diego Rodrigues | B54: 233 | C54: 5 | D54: 34 | E54: 0 | G54: 17 | H54: 14 | I54: 0 | K54: 10 | L54: 24 | M54: 0 | O54: 17 | P54: 14 | Q54: 0 | S54: 0 | T54: 0* | U54: 0 | W54: 7 | X54: 30 | Y54: 0 | AA54: 31 | AB54: 1 | AC54: 0 | AE54: 15 | AF54: 16 | AG54: 0 | AI54: 8 | AJ54: 28 | AK54: 0 | AM54: 4 | AN54: 36 | AO54: 0 | AQ54: 0 | AR54: 0* | AS54: 0 | AU54: 4 | AV54: 36 | AW54: 0
A55: Henry Douglas | B55: 121 | C55: 18 | D55: 13 | E55: 0 | G55: 15 | H55: 16 | I55: 0 | K55: 30 | L55: 1* | M55: 0 | O55: 12 | P55: 20 | Q55: 0 | S55: 16 | T55: 15* | U55: 0 | W55: 20 | X55: 11 | Y55: 0 | AA55: 15 | AB55: 16 | AC55: 0 | AE55: 20 | AF55: 11 | AG55: 0 | AI55: 20 | AJ55: 11 | AK55: 0 | AM55: 21 | AN55: 10 | AO55: 0 | AQ55: 17 | AR55: 14* | AS55: 0 | AU55: 18 | AV55: 13 | AW55: 0
A56: Gustavo Barros | B56: 63 | C56: 0 | D56: 0 | E56: 0 | G56: 0 | H56: 0 | I56: 0 | K56: 18 | L56: 13 | M56: 0 | O56: 20 | P56: 11 | Q56: 0 | S56: 0 | T56: 0* | U56: 0 | W56: 15 | X56: 16 | Y56: 0 | AA56: 18 | AB56: 13 | AC56: 0 | AE56: 0 | AF56: 0 | AG56: 0 | AI56: 21 | AJ56: 10 | AK56: 0 | AM56: 0 | AN56: 0 | AO56: 0 | AQ56: 0 | AR56: 0* | AS56: 0 | AU56: 0 | AV56: 0 | AW56: 0
A57: Victor Marinho | B57: 11 | C57: 28 | D57: 3 | E57: 0 | G57: 24 | H57: 7 | I57: 0 | K57: 33 | L57: 1 | M57: 0 | O57: 25 | P57: 6* | Q57: 0 | S57: 23 | T57: 8* | U57: 0 | W57: 36 | X57: 1* | Y57: 0 | AA57: 0 | AB57: 0 | AC57: 0 | AE57: 0 | AF57: 0 | AG57: 0 | AI57: 0 | AJ57: 0 | AK57: 0 | AM57: 0 | AN57: 0 | AO57: 0 | AQ57: 0 | AR57: 0* | AS57: 0 | AU57: 0 | AV57: 0 | AW57: 0
A58: XXXXX | B58: 0 | T58: * | AR58: *

Sheet Posição x Pontos
H1: Posição | I1: Pontos
H2: 1 | I2: 45
H3: 2 | I3: 41
H4: 3 | I4: 38
H5: 4 | I5: 36
H6: 5 | I6: 34
H7: 6 | I7: 32
H8: 7 | I8: 30
H9: 8 | I9: 28
H10: 9 | I10: 26
H11: 10 | I11: 24
H12: 11 | I12: 22
H13: 12 | I13: 20
H14: 13 | I14: 18
H15: 14 | I15: 17
H16: 15 | I16: 16
H17: 16 | I17: 15
H18: 17 | I18: 14
H19: 18 | I19: 13
H20: 19 | I20: 12
H21: 20 | I21: 11
H22: 21 | I22: 10
H23: 22 | I23: 9
H24: 23 | I24: 8
H25: 24 | I25: 7
H26: 25 | I26: 6
H27: 26 | I27: 5
H28: 27 | I28: 4
H29: 28 | I29: 3
H30: 29 | I30: 2
H31: 30 | I31: 1
H32: 31 | I32: 1
H33: 32 | I33: 1
H34: 33 | I34: 1
H35: 34 | I35: 1
H36: 35 | I36: 1
H37: 36 | I37: 1
H38: 37 | I38: 1
H39: 38 | I39: 1
H40: 39 | I40: 1
H41: 40 | I41: 1
H42: 41 | I42: 1
H43: 42 | I43: 1
H44: 43 | I44: 1
H45: 44 | I45: 1
H46: 45 | I46: 1
H47: 46 | I47: 1
H48: 47 | I48: 1
H49: 48 | I49: 1
H50: 49 | I50: 1
H51: 50 | I51: 1
H52: 51 | I52: 1
H53: 52 | I53: 1
H54: 53 | I54: 1
H55: 54 | I55: 1
H56: 55 | I56: 1
H57: 56 | I57: 1
H58: 57 | I58: 1
H59: 58 | I59: 1
H60: 59 | I60: 1
H61: 60 | I61: 1
H62: 61 | I62: 1
H63: 62 | I63: 1
H64: 63 | I64: 1
H65: 64 | I65: 1
H66: 65 | I66: 1
H67: 66 | I67: 1
H68: 67 | I68: 1
H69: 68 | I69: 1
H70: 69 | I70: 1
